Workbook

Sheet menu
B2: CO2 saver
B4: Met deze tool worden van de geselecteerde producten de milieuprestaties weergegeven,
B5: zoals de MKI-score, Paris proof CO2-emissies en de GWP CO2-emissies*.
B6: Daarnaast biedt de tool de gelegenheid om deze prestaties te vergelijken met
B7: alternatieve producten.
B9: Maak een productkeuze

Sheet Reno's
B2: CO2 saver na-isolatie hellend dak
B7: Product
B9: Type dakelement | H9: Rc-waarde | J9: =IF($D$9="SlimFix RenoTwin","**"," ") -> 
B11: Vergelijk de scores met:
B13: Projectgegevens
B15: Projectnaam (optioneel)
B17: Projectgrootte | E17: m2 isolatie
B19: Milieuprestaties
B39: Totale CO2 besparing project t.o.v. alternatief in kg CO2 | F39: Procentuele CO2 besparing t.o.v. alternatief
B40: =matrix!C16 ->  | F40: =matrix!D16 -> 
B41: Deze CO2-besparing komt overeen met de uitstoot van een personenauto bij het aantal gereden km's van*:
B42: =matrix!B19 -> 
B43: * Bij een auto met brandstofmotor en een gemid. uitstoot van 0,22 kg/km (bron: Autorai)
B45: =IF(J9="**",'lijst Reno'!B48," ") -> 
B55: Bron: Berekend met GPR materiaal gebaseerd op de data uit de NMD peildatum maart 2026.
B56: MKI=Milieu Kosten Index in € / m2,
B57: Paris proof = CO2-uitstoot module A1 t/m A5 in in kg CO2 eq /m2,
B58: GWP=Global Warming Potential gebaseerd op CO2 eq (GWP-total over 100 jaar, module A t/m D) EN 15804 +A1
B59: Aan de berekeningen kunnen geen rechten worden ontleed.

Sheet plat dak
B2: CO2 saver plat dakisolatie
B7: Product
B9: Type isolatie | H9: Dikte
B11: Vergelijk de scores met: | H11: Dikte opnieuw selecteren bij
H12: typeverandering isolatie
B13: Projectgegevens
B15: Projectnaam (optioneel)
B17: Projectgrootte | E17: m2 isolatie
B19: Milieuprestaties
B39: Totale CO2 besparing project t.o.v. alternatief in kg CO2 | F39: Procentuele CO2 besparing t.o.v. alternatief
B40: =matrix!C36 ->  | F40: =matrix!D36 -> 
B41: Deze CO2-besparing komt overeen met de uitstoot van een personenauto bij het aantal gereden km's van*:
B42: =matrix!B20 -> 
B43: * Bij een auto met brandstofmotor en een gemid. uitstoot van 0,22 kg/km (bron: Autorai)
B52: Bron: Berekend met GPR materiaal gebaseerd op de data uit de NMD peildatum maart 2026.
B53: MKI=Milieu Kosten Index in € / m2,
B54: Cradle to Gate = CO2-uitstoot module A1 t/m A3 in in kg CO2 eq /m2,
B55: GWP=Global Warming Potential gebaseerd op CO2 eq (GWP-total over 100 jaar, module A t/m D) EN 15804 +A1
B56: Gehanteerde lambda-waarden: PIR 0,022, steenwol 0,038, kurk 0,039, houtvezel 0,040
B57: Aan de berekeningen kunnen geen rechten worden ontleed.

Sheet Uitleg
B2: Toelichting milieu-indicatoren
B7: MKI
B8: MKI staat voor Milieu Kosten Index. De index geeft de milieubelasting weer uitgedrukt in Euro's per m2, per jaar. Hoe lager de MKI, hoe lager de milieu-impact en hoe beter de milieuprestatie. De MKI wordt in milieucalculatieprogramma's gebruikt voor de berekening van de wettelijk verplichte Milieu Prestatie Gebouw (MPG). De MKI-scores van onze producten zijn opgenomen in de NMD onder de beste categorie 1.
B15: Cradle to Gate
B16: Cradle-to-gate (wieg-tot-poort) is een milieubeoordeling (LCA) die de impact van een product meet vanaf grondstofwinning tot het moment dat het de fabriekspoort verlaat. Het omvat de productie en het energieverbruik, maar exclusief distributie, gebruik en afvalverwerking. In de LCA komt deze overeen met de CO2-emissies module A1 t/m A3. Cradle to Gate vormt vaak de basis voor de scope 3-emissies.
B22: Paris proof
B23: Paris Proof is een term die is geïntroduceerd als gemeenschappelijk verduurzamingsdoel voor gebouwen om de klimaatdoelstellingen van het Klimaatakkoord in Parijs te behalen. In de LCA komt deze overeen met de CO2-emissies naar aanleiding van de productie en toepassing van het product (module A1 t/m A5).
B30: GWP
B31: Global Warming Potential geeft de CO2-emissies weer gedurende de gehele levensduur van een product, inclusief het recyclingpotentieel na gebruik (module A t/m D).

Sheet matrix (hidden)
A2: Type dakelement | B2: ='Reno''s'!D9 -> 0 | D2: Rc-waarde | E2: ='Reno''s'!I9 -> 0.0
A4: Product | B4: Milieuprestaties per m2*
B5: MKI | C5: Paris proof | D5: GWP
A6: ='lijst Reno'!F26 -> 0 0 | B6: =VLOOKUP('lijst Reno'!$F$26,'lijst Reno'!C5:F23,2) ->  | C6: =VLOOKUP('lijst Reno'!$F$26,'lijst Reno'!C5:F23,3) ->  | D6: =VLOOKUP('lijst Reno'!$F$26,'lijst Reno'!C5:F23,4) -> 
A7: =IF(E9=0," ",VLOOKUP(matrix!$E$9,'lijst Reno'!E36:I38,2)) ->  | B7: =VLOOKUP(matrix!$E$9,'lijst Reno'!E36:I38,3) ->  | C7: =VLOOKUP(matrix!$E$9,'lijst Reno'!E36:I38,4) ->  | D7: =VLOOKUP(matrix!$E$9,'lijst Reno'!E36:I38,5) -> 
A9: Vergelijk deze scores met : | E9: ='Reno''s'!D11 -> 0
A11: Projectgrootte: | E11: =IF('Reno''s'!D17=0," ",'Reno''s'!D17) ->  | F11: m2
A14: Product | B14: CO2 emissies project
B15: =IF(A16=" "," ","Totaal") ->  | C15: =IF(A17=" "," ","CO2-besparing") ->  | D15: =IF(A17=" "," ","Besparing%") -> 
A16: =IF(E11=" "," ",'lijst Reno'!F26) ->  | B16: =IF(A16=" "," ",E11*D6) ->  | C16: =IF(E11=" "," ",B17-B16) ->  | D16: =IF(E9=0," ",1-(D6/D7)) ->  | G16: =B17-B16 -> 
A17: =IF(E11=" "," ",VLOOKUP(matrix!$E$9,'lijst Reno'!E36:I38,2)) ->  | B17: =IF(A17=" "," ",E11*D7) -> 
A19: aantal km reno | B19: =IF(C16=" "," ",C16/0.22) -> 
A20: aantal km plat dak | B20: =IF(C36=" "," ",C36/0.22) -> 
A22: Type dakisolatie | B22: ='plat dak'!D9 -> 0 | D22: Dikte | E22: ='plat dak'!I9 -> 0.0
A24: Product | B24: Milieuprestaties per m2*
B25: MKI | C25: Paris proof | D25: GWP
A26: =VLOOKUP('lijst plat dak'!$F$203,'lijst plat dak'!$F$10:$AL$199,2) ->  | B26: =VLOOKUP('lijst plat dak'!$F$203,'lijst plat dak'!$F$10:$AL$199,3) ->  | C26: =VLOOKUP('lijst plat dak'!$F$203,'lijst plat dak'!$F$10:$AL$199,4) ->  | D26: =VLOOKUP('lijst plat dak'!$F$203,'lijst plat dak'!$F$10:$AL$199,5) -> 
A27: =IF(E29=0," ",VLOOKUP(matrix!$E$29,'lijst plat dak'!E218:I221,2)) ->  | B27: =VLOOKUP(matrix!$E$29,'lijst plat dak'!E218:I221,3) ->  | C27: =VLOOKUP(matrix!$E$29,'lijst plat dak'!E218:I221,4) ->  | D27: =VLOOKUP(matrix!$E$29,'lijst plat dak'!E218:I221,5) -> 
A29: Vergelijk deze scores met : | E29: ='plat dak'!D11 -> 
A31: Projectgrootte: | E31: =IF('plat dak'!D17=0," ",'plat dak'!D17) ->  | F31: m2
A34: Product | B34: CO2 emissies project
B35: =IF(A36=" "," ","Totaal") ->  | C35: =IF(A37=" "," ","CO2-besparing") ->  | D35: =IF(A37=" "," ","Besparing%") -> 
A36: =IF(E31=" "," ",VLOOKUP('lijst plat dak'!$F$203,'lijst plat dak'!$F$10:$AL$199,2)) ->  | B36: =IF(A36=" "," ",E31*D26) ->  | C36: =IF(E31=" "," ",B37-B36) ->  | D36: =IF(E29=0," ",1-(D26/D27)) -> 
A37: =IF(E31=" "," ",VLOOKUP(matrix!$E$29,'lijst plat dak'!E218:I221,2)) ->  | B37: =IF(A37=" "," ",E31*D27) -> 
A41: Het aantal bomen dat nodig is om deze hoeveelheid CO2 in 1 jaar op te nemen bedraagt:

Sheet lijst Reno (hidden)
C1: 1 | D1: 2 | E1: 3 | F1: 4 | G1: 5 | H1: 6 | I1: 7 | J1: 8 | K1: 9 | L1: 10 | M1: 11 | N1: 12 | O1: 13 | P1: 14 | Q1: 15 | R1: 16 | S1: 17
H2: 74 | I2: 1.26 | J2: 1.04
B4: RC-waarde | D4: mki | E4: paris proof | F4: GWP | H4: dikte isol | I4: mki | J4: paris proof | K4: GWP | M4: mki | N4: paris proof | O4: GWP | Q4: mki | R4: paris proof | S4: GWP
A5: SlimFix Reno+ | B5: 2.5 | C5: =A5&" "&B5 -> SlimFix Reno+ 2.5 | D5: 0.44 | E5: 6 | F5: 4.1 | G5: PIR 2.5 | H5: 51 | I5: =(($I$2/$H$2)*H5)+$J$2 -> 1.91 | J5: 11 | K5: 14.4 | L5: Vlas 2.5 | P5: Alt.EPS 2.5 | Q5: 0.55 | R5: 8 | S5: 6.1
A6: SlimFix Reno+ | B6: 3.0 | C6: =A6&" "&B6 -> SlimFix Reno+ 3.0 | D6: 0.50 | E6: 7 | F6: 4.8 | G6: PIR 3.0 | H6: 63 | I6: =(($I$2/$H$2)*H6)+$J$2 -> 2.11 | J6: 13 | K6: 17.1 | L6: Vlas 3.0 | P6: Alt.EPS 3.0 | Q6: 0.63 | R6: 9 | S6: 7.0
A7: SlimFix Reno+ | B7: 3.5 | C7: SlimFix Reno+ 3.5 | D7: 0.56 | E7: 8 | F7: 5.4 | G7: PIR 3.5 | H7: 74 | I7: 2.29 | J7: 13 | K7: 23.3 | L7: Vlas 3.5 | M7: 0.97 | N7: 9 | O7: 6.8 | P7: Alt.EPS 3.5 | Q7: 0.71 | R7: 10 | S7: 7.9
A8: SlimFix Reno+ | B8: 4.0 | C8: SlimFix Reno+ 4.0 | D8: 0.62 | E8: 9 | F8: 6.1 | G8: PIR 4.0 | H8: 85 | I8: =(($I$2/$H$2)*H8)+$J$2 -> 2.49 | J8: 17 | K8: 22.4 | L8: Vlas 4.0 | P8: Alt.EPS 4.0 | Q8: 0.78 | R8: 11 | S8: 8.7
A9: SlimFix Reno+ | B9: 4.5 | C9: SlimFix Reno+ 4.5 | D9: 0.67 | E9: 10 | F9: 6.7 | G9: PIR 4.5 | H9: 96 | I9: 2.67 | J9: 19 | K9: 25.1 | L9: Vlas 4.5 | P9: Alt.EPS 4.5 | Q9: 0.86 | R9: 13 | S9: 9.6
A10: SlimFix Reno+ | B10: 5.0 | C10: SlimFix Reno+ 5.0 | D10: 0.73 | E10: 11 | F10: 7.3 | G10: PIR 5.0 | H10: 107 | I10: 2.86 | J10: 20 | K10: 27.7 | L10: Vlas 5.0 | P10: Alt.EPS 5.0 | Q10: 0.94 | R10: 14 | S10: 10.5
A11: SlimFix Reno+ | B11: 6.3 | C11: SlimFix Reno+ 6.3 | D11: 0.90 | E11: 13 | F11: 9.2 | G11: PIR 6.3 | H11: 134 | I11: 3.30 | J11: 22 | K11: 37.2 | L11: Vlas 6.3 | M11: 1.54 | N11: 15 | O11: 11.0 | P11: Alt.EPS 6.3 | Q11: 1.14 | R11: 17 | S11: 12.8
A12: SlimFix Reno+ | B12: 7.0 | C12: SlimFix Reno+ 7.0 | D12: 0.99 | E12: 15 | F12: 10.2 | G12: PIR 7.0 | H12: 152 | I12: =(($I$2/$H$2)*H12)+$J$2 -> 3.63 | J12: 28 | K12: 38.4 | L12: Vlas 7.0 | P12: Alt.EPS 7.0 | Q12: 1.25 | R12: 19 | S12: 14.0
A13: SlimFix Reno+ | B13: 8.0 | C13: SlimFix Reno+ 8.0 | D13: 1.10 | E13: 17 | F13: 11.5 | G13: PIR 8.0 | H13: 175 | I13: 4.02 | J13: 32 | K13: 43.7 | L13: Vlas 8.0 | P13: Alt.EPS 8.0 | Q13: 1.40 | R13: 21 | S13: 15.8
A14: SlimFix RenoTwin | B14: 3.5 | C14: SlimFix RenoTwin 3.5 | D14: 0.49 | E14: 7 | F14: 4.6 | G14: PIR 3.0 | H14: 63 | L14: Vlas 3.0 | P14: Alt.EPS 3.0
A15: SlimFix RenoTwin | B15: 4.0 | C15: SlimFix RenoTwin 4.0 | D15: 0.55 | E15: 8 | F15: 5.3 | G15: PIR 3.5 | H15: 74 | I15: 2.43 | J15: 14 | K15: 24.1 | L15: Vlas 3.5 | M15: 0.97 | N15: 9 | O15: 6.8 | P15: Alt.EPS 3.5 | Q15: 0.97 | R15: 12 | S15: 9.5
A16: SlimFix RenoTwin | B16: 4.5 | C16: SlimFix RenoTwin 4.5 | D16: 0.61 | E16: 9 | F16: 6.0 | G16: PIR 4.0 | H16: 85 | L16: Vlas 4.0 | P16: Alt.EPS 4.0 | Q16: 1.05 | R16: 13 | S16: 10.3
A17: SlimFix RenoTwin | B17: 5.0 | C17: SlimFix RenoTwin 5.0 | D17: 0.67 | E17: 10 | F17: 6.7 | G17: PIR 4.5 | H17: 96 | L17: Vlas 4.5 | P17: Alt.EPS 4.5 | Q17: 1.22 | R17: 14 | S17: 11.2
A18: SlimFix RenoTwin | B18: 5.5 | C18: SlimFix RenoTwin 5.5 | D18: 0.72 | E18: 10 | F18: 7.2 | G18: PIR 5.0 | H18: 107 | L18: Vlas 5.0 | P18: Alt.EPS 5.0 | Q18: 1.20 | R18: 15 | S18: 12.0
A19: SlimFix RenoTwin | B19: 6.3 | C19: SlimFix RenoTwin 6.3 | D19: 0.81 | E19: 12 | F19: 8.2 | G19: PIR 6.0 | H19: 130 | L19: Vlas 6.0 | P19: Alt.EPS 5.5 | Q19: 1.27 | R19: 16 | S19: 12.9
A20: SlimFix RenoTwin | B20: 6.7 | C20: SlimFix RenoTwin 6.7 | D20: 0.87 | E20: 13 | F20: 8.8 | G20: PIR 6.3 | H20: 134 | I20: =(I15/I6)*I10 -> 3.29 | J20: =(J15/J6)*J10 -> 22 | K20: 39.2 | L20: Vlas 6.3 | M20: 1.54 | N20: 15 | O20: 11.0 | P20: Alt.EPS 6.3 | Q20: 1.39 | R20: 18 | S20: 14.2
A21: SlimFix RenoTwin | B21: 7.0 | C21: SlimFix RenoTwin 7.0 | D21: 0.90 | E21: 13 | F21: 9.2 | G21: PIR 7.0 | H21: 152 | L21: Vlas 7.0 | P21: Alt.EPS 6.7 | Q21: 1.45 | R21: 19 | S21: 14.9
A22: SlimFix RenoTwin | B22: 8.0 | C22: SlimFix RenoTwin 8.0 | D22: 1.03 | E22: 16 | F22: 10.7 | G22: PIR 8.0 | H22: 175 | L22: Vlas 8.0 | P22: Alt.EPS 7.0 | Q22: 1.50 | R22: 20 | S22: 15.4
A23: SlimFix RenoTwin | B23: 9.0 | C23: SlimFix RenoTwin 9.0 | D23: 1.16 | E23: 18 | F23: 12.2 | P23: Alt.EPS 8.0 | Q23: 1.65 | R23: 22 | S23: 17.1
B26: ='Reno''s'!D9 -> 0 | C26: =IF($B$26="SlimFix RenoTwin",VLOOKUP('Reno''s'!$I$9,'lijst Reno'!B29:C30,2),'Reno''s'!$I$9) -> 0 | F26: =B26&" "&C26 -> 0 0
K27: SlimFix Reno+
K28: SlimFix RenoTwin
B29: 3.5 | C29: 4.0
B30: 6.3 | C30: 6.7
K31: Alt.EPS
K32: PIR
K33: Vlas
E36: Alt.EPS | F36: =VLOOKUP('lijst Reno'!$F$26,'lijst Reno'!C5:U23,14) ->  | G36: =VLOOKUP('lijst Reno'!$F$26,'lijst Reno'!C5:S23,15) ->  | H36: =VLOOKUP('lijst Reno'!$F$26,'lijst Reno'!C5:S23,16) ->  | I36: =VLOOKUP('lijst Reno'!$F$26,'lijst Reno'!C5:S23,17) -> 
E37: PIR | F37: =VLOOKUP('lijst Reno'!$F$26,'lijst Reno'!C5:O23,5) ->  | G37: =VLOOKUP('lijst Reno'!$F$26,'lijst Reno'!C5:O23,7) ->  | H37: =VLOOKUP('lijst Reno'!$F$26,'lijst Reno'!C5:O23,8) ->  | I37: =VLOOKUP('lijst Reno'!$F$26,'lijst Reno'!C5:O23,9) -> 
E38: Vlas | F38: =VLOOKUP('lijst Reno'!$F$26,'lijst Reno'!C5:O23,10) ->  | G38: =VLOOKUP('lijst Reno'!$F$26,'lijst Reno'!C5:O23,11) ->  | H38: =VLOOKUP('lijst Reno'!$F$26,'lijst Reno'!C5:O23,12) ->  | I38: =VLOOKUP('lijst Reno'!$F$26,'lijst Reno'!C5:O23,13) -> 
E42: vergelijk
F43: pir | G43: eps | I43: vlas
E44: reno | F44: renopir alba | G44: reno dekfolie | I44: alba
E45: twin | G45: Reno Dek Plus | I45: alba
B48: ** De type-aanduiding bij SlimFix RenoTwin is gebaseerd op toepassing op een bestaande geïsoleerde dak. In dit geval wordt uitgegaan van een vrijdragende toepassing op een ongeïsoleerd dak met dakbeschot. Om hier de gewenste Rc-waarde te bereiken is een ander type SlimFix RenoTwin nodig. Dit om een eerlijke vergelijking met alternatieven te kunnen maken.

Sheet lijst plat dak (hidden)
F1: 1 | G1: 2 | H1: 3 | I1: 4 | J1: 5 | K1: 6 | L1: 7 | M1: 8 | N1: 9 | O1: 10 | P1: 11 | Q1: 12 | R1: 13 | S1: 14 | T1: 15 | U1: 16 | V1: 17 | W1: 18 | X1: 19 | Y1: 20 | Z1: 21 | AA1: 22 | AB1: 23 | AC1: 24 | AD1: 25 | AE1: 26 | AF1: 27 | AG1: 28 | AH1: 29 | AI1: 30 | AJ1: 31 | AK1: 32 | AL1: 33
F3: LiteTop | G3: 235 | H3: 0.957 | I3: 14.7 | J3: 10.747
F4: LiteTop-HR | G4: 195 | H4: 0.766 | I4: 11.9 | J4: 8.6
F5: PolyTop | G5: 230 | H5: 1.056 | I5: 16.3 | J5: 11.853
F6: PolyTop-HR | G6: 195 | H6: 0.876 | I6: 13.6 | J6: 9.84
F7: PowerTop | G7: 200 | H7: 0.877 | I7: 14.15 | J7: 9.018
F8: PowerTop Eco30 | G8: 200 | H8: 0.843 | I8: 10.6 | J8: 8.279 | N8: 240 | O8: 3.025 | P8: 24.8 | Q8: 25.56 | U8: 246 | V8: 1.225 | W8: 11.4 | X8: 11.4 | AB8: 252 | AC8: 2.333 | AD8: 22.3 | AE8: 25.6 | AI8: 140 | AJ8: 2.96 | AK8: 18.5 | AL8: 24.9
B9: dikte | E9: Rd | H9: mki | I9: C to G | J9: GWP | L9: 0.038 | O9: mki | P9: C to G | Q9: GWP | S9: 0.039 | V9: mki | W9: C to G | X9: GWP | Z9: 0.04 | AC9: mki | AD9: C to G | AE9: GWP | AG9: 0.022 | AJ9: mki | AK9: C to G | AL9: GWP
A10: LiteTop | B10: 100 | C10: mm | D10: Rd | E10: 2.70 | F10: =A10&" "&B10 -> LiteTop 100 | G10: =A10&" "&B10&C10&" "&D10&" "&E10 -> LiteTop 100mm Rd 2,7 | H10: =($H$3/$G$3)*B10 -> 0.41 | I10: =($I$3/$G$3)*B10 -> 6 | J10: =($J$3/$G$3)*B10 -> 4.6 | K10: 105 | L10: =FLOOR((K10/1000)/$L$9,0.05) -> 2.75 | M10: Steenwol | N10: =M10&" "&K10&C10&" "&D10&" "&L10 -> Steenwol 105mm Rd 2,75 | O10: =($O$8/$N$8)*K10 -> 1.32 | P10: =($P$8/$N$8)*K10 -> 11 | Q10: =($Q$8/$N$8)*K10 -> 11.2 | R10: 105 | S10: =FLOOR((R10/1000)/$S$9,0.05) -> 2.65 | T10: kurk | U10: =T10&" "&R10&C10&" "&D10&" "&S10 -> kurk 105mm Rd 2,65 | V10: =($V$8/$U$8)*R10 -> 0.52 | W10: =($W$8/$U$8)*R10 -> 5 | X10: =($X$8/$U$8)*R10 -> 4.9 | Y10: 110 | Z10: =FLOOR((Y10/1000)/$Z$9,0.05) -> 2.75 | AA10: Houtvezel | AB10: =AA10&" "&Y10&C10&" "&D10&" "&Z10 -> Houtvezel 110mm Rd 2,75 | AC10: =($AC$8/$AB$8)*Y10 -> 1.02 | AD10: =($AD$8/$AB$8)*Y10 -> 10 | AE10: =($AE$8/$AB$8)*Y10 -> 11.2 | AF10: 60 | AG10: =FLOOR((AF10/1000)/$AG$9,0.05) -> 2.70 | AH10: PIR | AI10: =AH10&" "&AF10&C10&" "&D10&" "&AG10 -> PIR 60mm Rd 2,7 | AJ10: =($AJ$8/$AI$8)*AF10 -> 1.27 | AK10: =($AK$8/$AI$8)*AF10 -> 8 | AL10: =($AL$8/$AI$8)*AF10 -> 10.7
A11: LiteTop | B11: 110 | C11: mm | D11: Rd | E11: 2.95 | F11: LiteTop 110 | G11: LiteTop 110mm Rd 2,95 | H11: =($H$3/$G$3)*B11 -> 0.45 | I11: =($I$3/$G$3)*B11 -> 7 | J11: =($J$3/$G$3)*B11 -> 5.0 | K11: 115 | L11: 3.00 | M11: Steenwol | N11: Steenwol 115mm Rd 3 | O11: 1.45 | P11: 12 | Q11: 12.2 | R11: 115 | S11: 2.90 | T11: kurk | U11: kurk 115mm Rd 2,9 | V11: 0.57 | W11: 5 | X11: 5.3 | Y11: 120 | Z11: 3.00 | AA11: Houtvezel | AB11: Houtvezel 120mm Rd 3 | AC11: 1.11 | AD11: 11 | AE11: 12.2 | AF11: 65 | AG11: 2.95 | AH11: PIR | AI11: PIR 65mm Rd 2,95 | AJ11: 1.37 | AK11: 9 | AL11: 11.6
A12: LiteTop | B12: 120 | C12: mm | D12: Rd | E12: 3.20 | F12: LiteTop 120 | G12: LiteTop 120mm Rd 3,2 | H12: 0.49 | I12: 8 | J12: 5.5 | K12: 120 | L12: 3.15 | M12: Steenwol | N12: Steenwol 120mm Rd 3,15 | O12: 1.51 | P12: 12 | Q12: 12.8 | R12: 125 | S12: 3.20 | T12: kurk | U12: kurk 125mm Rd 3,2 | V12: 0.62 | W12: 6 | X12: 5.8 | Y12: 130 | Z12: 3.25 | AA12: Houtvezel | AB12: Houtvezel 130mm Rd 3,25 | AC12: 1.20 | AD12: 12 | AE12: 13.2 | AF12: 70 | AG12: 3.15 | AH12: PIR | AI12: PIR 70mm Rd 3,15 | AJ12: 1.48 | AK12: 9 | AL12: 12.5
A13: LiteTop | B13: 130 | C13: mm | D13: Rd | E13: 3.50 | F13: LiteTop 130 | G13: LiteTop 130mm Rd 3,5 | H13: 0.53 | I13: 8 | J13: 5.9 | K13: 135 | L13: 3.55 | M13: Steenwol | N13: Steenwol 135mm Rd 3,55 | O13: 1.70 | P13: 14 | Q13: 14.4 | R13: 140 | S13: 3.55 | T13: kurk | U13: kurk 140mm Rd 3,55 | V13: 0.70 | W13: 6 | X13: 6.5 | Y13: 140 | Z13: 3.50 | AA13: Houtvezel | AB13: Houtvezel 140mm Rd 3,5 | AC13: 1.30 | AD13: 12 | AE13: 14.2 | AF13: 75 | AG13: 3.40 | AH13: PIR | AI13: PIR 75mm Rd 3,4 | AJ13: 1.58 | AK13: 10 | AL13: 13.3
A14: LiteTop | B14: 140 | C14: mm | D14: Rd | E14: 3.75 | F14: LiteTop 140 | G14: LiteTop 140mm Rd 3,75 | H14: 0.57 | I14: 9 | J14: 6.4 | K14: 140 | L14: 3.65 | M14: Steenwol | N14: Steenwol 140mm Rd 3,65 | O14: 1.76 | P14: 14 | Q14: 14.9 | R14: 145 | S14: 3.70 | T14: kurk | U14: kurk 145mm Rd 3,7 | V14: 0.72 | W14: 7 | X14: 6.7 | Y14: 150 | Z14: 3.75 | AA14: Houtvezel | AB14: Houtvezel 150mm Rd 3,75 | AC14: 1.39 | AD14: 13 | AE14: 15.2 | AF14: 85 | AG14: 3.85 | AH14: PIR | AI14: PIR 85mm Rd 3,85 | AJ14: 1.80 | AK14: 11 | AL14: 15.1
A15: LiteTop | B15: 150 | C15: mm | D15: Rd | E15: 4.05 | F15: LiteTop 150 | G15: LiteTop 150mm Rd 4,05 | H15: 0.61 | I15: 9 | J15: 6.9 | K15: 155 | L15: 4.05 | M15: Steenwol | N15: Steenwol 155mm Rd 4,05 | O15: 1.95 | P15: 16 | Q15: 16.5 | R15: 160 | S15: 4.10 | T15: kurk | U15: kurk 160mm Rd 4,1 | V15: 0.80 | W15: 7 | X15: 7.4 | Y15: 160 | Z15: 4.00 | AA15: Houtvezel | AB15: Houtvezel 160mm Rd 4 | AC15: 1.48 | AD15: 14 | AE15: 16.3 | AF15: 90 | AG15: 4.05 | AH15: PIR | AI15: PIR 90mm Rd 4,05 | AJ15: 1.90 | AK15: 12 | AL15: 16.0
A16: LiteTop | B16: 160 | C16: mm | D16: Rd | E16: 4.30 | F16: LiteTop 160 | G16: LiteTop 160mm Rd 4,3 | H16: 0.65 | I16: 10 | J16: 7.3 | K16: 165 | L16: 4.30 | M16: Steenwol | N16: Steenwol 165mm Rd 4,3 | O16: 2.08 | P16: 17 | Q16: 17.6 | R16: 170 | S16: 4.35 | T16: kurk | U16: kurk 170mm Rd 4,35 | V16: 0.85 | W16: 8 | X16: 7.9 | Y16: 170 | Z16: 4.25 | AA16: Houtvezel | AB16: Houtvezel 170mm Rd 4,25 | AC16: 1.57 | AD16: 15 | AE16: 17.3 | AF16: 95 | AG16: 4.30 | AH16: PIR | AI16: PIR 95mm Rd 4,3 | AJ16: 2.01 | AK16: 13 | AL16: 16.9
A17: LiteTop | B17: 170 | C17: mm | D17: Rd | E17: 4.55 | F17: LiteTop 170 | G17: LiteTop 170mm Rd 4,55 | H17: 0.69 | I17: 11 | J17: 7.8 | K17: 175 | L17: 4.60 | M17: Steenwol | N17: Steenwol 175mm Rd 4,6 | O17: 2.21 | P17: 18 | Q17: 18.6 | R17: 180 | S17: 4.60 | T17: kurk | U17: kurk 180mm Rd 4,6 | V17: 0.90 | W17: 8 | X17: 8.3 | Y17: 180 | Z17: 4.50 | AA17: Houtvezel | AB17: Houtvezel 180mm Rd 4,5 | AC17: 1.67 | AD17: 16 | AE17: 18.3 | AF17: 100 | AG17: 4.50 | AH17: PIR | AI17: PIR 100mm Rd 4,5 | AJ17: 2.11 | AK17: 13 | AL17: 17.8
A18: LiteTop | B18: 180 | C18: mm | D18: Rd | E18: 4.85 | F18: LiteTop 180 | G18: LiteTop 180mm Rd 4,85 | H18: 0.73 | I18: 11 | J18: 8.2 | K18: 185 | L18: 4.85 | M18: Steenwol | N18: Steenwol 185mm Rd 4,85 | O18: 2.33 | P18: 19 | Q18: 19.7 | R18: 190 | S18: 4.85 | T18: kurk | U18: kurk 190mm Rd 4,85 | V18: 0.95 | W18: 9 | X18: 8.8 | Y18: 195 | Z18: 4.85 | AA18: Houtvezel | AB18: Houtvezel 195mm Rd 4,85 | AC18: 1.81 | AD18: 17 | AE18: 19.8 | AF18: 105 | AG18: 4.75 | AH18: PIR | AI18: PIR 105mm Rd 4,75 | AJ18: 2.22 | AK18: 14 | AL18: 18.7
A19: LiteTop | B19: 190 | C19: mm | D19: Rd | E19: 5.10 | F19: LiteTop 190 | G19: LiteTop 190mm Rd 5,1 | H19: 0.77 | I19: 12 | J19: 8.7 | K19: 195 | L19: 5.10 | M19: Steenwol | N19: Steenwol 195mm Rd 5,1 | O19: 2.46 | P19: 20 | Q19: 20.8 | R19: 200 | S19: 5.10 | T19: kurk | U19: kurk 200mm Rd 5,1 | V19: 1.00 | W19: 9 | X19: 9.3 | Y19: 205 | Z19: 5.10 | AA19: Houtvezel | AB19: Houtvezel 205mm Rd 5,1 | AC19: 1.90 | AD19: 18 | AE19: 20.8 | AF19: 110 | AG19: 5.00 | AH19: PIR | AI19: PIR 110mm Rd 5 | AJ19: 2.32 | AK19: 15 | AL19: 19.6
A20: LiteTop | B20: 200 | C20: mm | D20: Rd | E20: 5.40 | F20: LiteTop 200 | G20: LiteTop 200mm Rd 5,4 | H20: 0.81 | I20: 13 | J20: 9.1 | K20: 205 | L20: 5.35 | M20: Steenwol | N20: Steenwol 205mm Rd 5,35 | O20: 2.58 | P20: 21 | Q20: 21.8 | R20: 210 | S20: 5.35 | T20: kurk | U20: kurk 210mm Rd 5,35 | V20: 1.05 | W20: 10 | X20: 9.7 | Y20: 215 | Z20: 5.35 | AA20: Houtvezel | AB20: Houtvezel 215mm Rd 5,35 | AC20: 1.99 | AD20: 19 | AE20: 21.8 | AF20: 120 | AG20: 5.45 | AH20: PIR | AI20: PIR 120mm Rd 5,45 | AJ20: 2.53 | AK20: 16 | AL20: 21.3
A21: LiteTop | B21: 210 | C21: mm | D21: Rd | E21: 5.65 | F21: LiteTop 210 | G21: LiteTop 210mm Rd 5,65 | H21: 0.86 | I21: 13 | J21: 9.6 | K21: 215 | L21: 5.65 | M21: Steenwol | N21: Steenwol 215mm Rd 5,65 | O21: 2.71 | P21: 22 | Q21: 22.9 | R21: 220 | S21: 5.60 | T21: kurk | U21: kurk 220mm Rd 5,6 | V21: 1.10 | W21: 10 | X21: 10.2 | Y21: 225 | Z21: 5.60 | AA21: Houtvezel | AB21: Houtvezel 225mm Rd 5,6 | AC21: 2.08 | AD21: 20 | AE21: 22.9 | AF21: 125 | AG21: 5.65 | AH21: PIR | AI21: PIR 125mm Rd 5,65 | AJ21: 2.64 | AK21: 17 | AL21: 22.2
A22: LiteTop | B22: 220 | C22: mm | D22: Rd | E22: 5.90 | F22: LiteTop 220 | G22: LiteTop 220mm Rd 5,9 | H22: 0.90 | I22: 14 | J22: 10.1 | K22: 225 | L22: 5.90 | M22: Steenwol | N22: Steenwol 225mm Rd 5,9 | O22: 2.84 | P22: 23 | Q22: 24.0 | R22: 230 | S22: 5.85 | T22: kurk | U22: kurk 230mm Rd 5,85 | V22: 1.15 | W22: 11 | X22: 10.7 | Y22: 235 | Z22: 5.85 | AA22: Houtvezel | AB22: Houtvezel 235mm Rd 5,85 | AC22: 2.18 | AD22: 21 | AE22: 23.9 | AF22: 130 | AG22: 5.90 | AH22: PIR | AI22: PIR 130mm Rd 5,9 | AJ22: 2.75 | AK22: 17 | AL22: 23.1
A23: LiteTop | B23: 230 | C23: mm | D23: Rd | E23: 6.20 | F23: LiteTop 230 | G23: LiteTop 230mm Rd 6,2 | H23: 0.94 | I23: 14 | J23: 10.5 | K23: 235 | L23: 6.15 | M23: Steenwol | N23: Steenwol 235mm Rd 6,15 | O23: 2.96 | P23: 24 | Q23: 25.0 | R23: 245 | S23: 6.25 | T23: kurk | U23: kurk 245mm Rd 6,25 | V23: 1.22 | W23: 11 | X23: 11.4 | Y23: 250 | Z23: 6.25 | AA23: Houtvezel | AB23: Houtvezel 250mm Rd 6,25 | AC23: 2.31 | AD23: 22 | AE23: 25.4 | AF23: 135 | AG23: 6.10 | AH23: PIR | AI23: PIR 135mm Rd 6,1 | AJ23: 2.85 | AK23: 18 | AL23: 24.0
A24: LiteTop | B24: 240 | C24: mm | D24: Rd | E24: 6.45 | F24: LiteTop 240 | G24: LiteTop 240mm Rd 6,45 | H24: 0.98 | I24: 15 | J24: 11.0 | K24: 245 | L24: 6.40 | M24: Steenwol | N24: Steenwol 245mm Rd 6,4 | O24: 3.09 | P24: 25 | Q24: 26.1 | R24: 255 | S24: 6.50 | T24: kurk | U24: kurk 255mm Rd 6,5 | V24: 1.27 | W24: 12 | X24: 11.8 | Y24: 260 | Z24: 6.50 | AA24: Houtvezel | AB24: Houtvezel 260mm Rd 6,5 | AC24: 2.41 | AD24: 23 | AE24: 26.4 | AF24: 140 | AG24: 6.35 | AH24: PIR | AI24: PIR 140mm Rd 6,35 | AJ24: 2.96 | AK24: 19 | AL24: 24.9
A25: LiteTop | B25: 250 | C25: mm | D25: Rd | E25: 6.75 | F25: LiteTop 250 | G25: LiteTop 250mm Rd 6,75 | H25: 1.02 | I25: 16 | J25: 11.4 | K25: 255 | L25: 6.70 | M25: Steenwol | N25: Steenwol 255mm Rd 6,7 | O25: 3.21 | P25: 26 | Q25: 27.2 | R25: 265 | S25: 6.75 | T25: kurk | U25: kurk 265mm Rd 6,75 | V25: 1.32 | W25: 12 | X25: 12.3 | Y25: 270 | Z25: 6.75 | AA25: Houtvezel | AB25: Houtvezel 270mm Rd 6,75 | AC25: 2.50 | AD25: 24 | AE25: 27.4 | AF25: 150 | AG25: 6.80 | AH25: PIR | AI25: PIR 150mm Rd 6,8 | AJ25: 3.17 | AK25: 20 | AL25: 26.7
A26: LiteTop | B26: 260 | C26: mm | D26: Rd | E26: 7.00 | F26: LiteTop 260 | G26: LiteTop 260mm Rd 7 | H26: 1.06 | I26: 16 | J26: 11.9 | K26: 265 | L26: 6.95 | M26: Steenwol | N26: Steenwol 265mm Rd 6,95 | O26: 3.34 | P26: 27 | Q26: 28.2 | R26: 275 | S26: 7.05 | T26: kurk | U26: kurk 275mm Rd 7,05 | V26: 1.37 | W26: 13 | X26: 12.7 | Y26: 280 | Z26: 7.00 | AA26: Houtvezel | AB26: Houtvezel 280mm Rd 7 | AC26: 2.59 | AD26: 25 | AE26: 28.4 | AF26: 155 | AG26: 7.00 | AH26: PIR | AI26: PIR 155mm Rd 7 | AJ26: 3.27 | AK26: 20 | AL26: 27.6
A27: LiteTop | B27: 270 | C27: mm | D27: Rd | E27: 7.25 | F27: LiteTop 270 | G27: LiteTop 270mm Rd 7,25 | H27: 1.10 | I27: 17 | J27: 12.3 | K27: 275 | L27: 7.20 | M27: Steenwol | N27: Steenwol 275mm Rd 7,2 | O27: 3.47 | P27: 28 | Q27: 29.3 | R27: 285 | S27: 7.30 | T27: kurk | U27: kurk 285mm Rd 7,3 | V27: 1.42 | W27: 13 | X27: 13.2 | Y27: 290 | Z27: 7.25 | AA27: Houtvezel | AB27: Houtvezel 290mm Rd 7,25 | AC27: 2.68 | AD27: 26 | AE27: 29.5 | AF27: 160 | AG27: 7.25 | AH27: PIR | AI27: PIR 160mm Rd 7,25 | AJ27: 3.38 | AK27: 21 | AL27: 28.5
A28: LiteTop | B28: 280 | C28: mm | D28: Rd | E28: 7.55 | F28: LiteTop 280 | G28: LiteTop 280mm Rd 7,55 | H28: 1.14 | I28: 18 | J28: 12.8 | K28: 285 | L28: 7.50 | M28: Steenwol | N28: Steenwol 285mm Rd 7,5 | O28: 3.59 | P28: 29 | Q28: 30.4 | R28: 295 | S28: 7.55 | T28: kurk | U28: kurk 295mm Rd 7,55 | V28: 1.47 | W28: 14 | X28: 13.7 | Y28: 300 | Z28: 7.50 | AA28: Houtvezel | AB28: Houtvezel 300mm Rd 7,5 | AC28: 2.78 | AD28: 27 | AE28: 30.5 | AF28: 165 | AG28: 7.50 | AH28: PIR | AI28: PIR 165mm Rd 7,5 | AJ28: 3.49 | AK28: 22 | AL28: 29.3
A29: LiteTop | B29: 40 | C29: mm | D29: Rd | E29: 1.05 | F29: LiteTop 40 | G29: LiteTop 40mm Rd 1,05 | H29: 0.16 | I29: 3 | J29: 1.8 | K29: 40 | L29: 1.05 | M29: Steenwol | N29: Steenwol 40mm Rd 1,05 | O29: 0.50 | P29: 4 | Q29: 4.3 | R29: 40 | S29: 1.00 | T29: kurk | U29: kurk 40mm Rd 1 | V29: 0.20 | W29: 2 | X29: 1.9 | Y29: 40 | Z29: 1.00 | AA29: Houtvezel | AB29: Houtvezel 40mm Rd 1 | AC29: 0.37 | AD29: 4 | AE29: 4.1 | AF29: 25 | AG29: 1.10 | AH29: PIR | AI29: PIR 25mm Rd 1,1 | AJ29: 0.53 | AK29: 3 | AL29: 4.4
A30: LiteTop | B30: 50 | C30: mm | D30: Rd | E30: 1.35 | F30: LiteTop 50 | G30: LiteTop 50mm Rd 1,35 | H30: 0.20 | I30: 3 | J30: 2.3 | K30: 50 | L30: 1.30 | M30: Steenwol | N30: Steenwol 50mm Rd 1,3 | O30: 0.63 | P30: 5 | Q30: 5.3 | R30: 55 | S30: 1.40 | T30: kurk | U30: kurk 55mm Rd 1,4 | V30: 0.27 | W30: 3 | X30: 2.5 | Y30: 55 | Z30: 1.35 | AA30: Houtvezel | AB30: Houtvezel 55mm Rd 1,35 | AC30: 0.51 | AD30: 5 | AE30: 5.6 | AF30: 30 | AG30: 1.35 | AH30: PIR | AI30: PIR 30mm Rd 1,35 | AJ30: 0.63 | AK30: 4 | AL30: 5.3
A31: LiteTop | B31: 60 | C31: mm | D31: Rd | E31: 1.60 | F31: LiteTop 60 | G31: LiteTop 60mm Rd 1,6 | H31: 0.24 | I31: 4 | J31: 2.7 | K31: 60 | L31: 1.55 | M31: Steenwol | N31: Steenwol 60mm Rd 1,55 | O31: 0.76 | P31: 6 | Q31: 6.4 | R31: 65 | S31: 1.65 | T31: kurk | U31: kurk 65mm Rd 1,65 | V31: 0.32 | W31: 3 | X31: 3.0 | Y31: 65 | Z31: 1.60 | AA31: Houtvezel | AB31: Houtvezel 65mm Rd 1,6 | AC31: 0.60 | AD31: 6 | AE31: 6.6 | AF31: 35 | AG31: 1.55 | AH31: PIR | AI31: PIR 35mm Rd 1,55 | AJ31: 0.74 | AK31: 5 | AL31: 6.2
A32: LiteTop | B32: 70 | C32: mm | D32: Rd | E32: 1.85 | F32: LiteTop 70 | G32: LiteTop 70mm Rd 1,85 | H32: 0.29 | I32: 4 | J32: 3.2 | K32: 70 | L32: 1.80 | M32: Steenwol | N32: Steenwol 70mm Rd 1,8 | O32: 0.88 | P32: 7 | Q32: 7.5 | R32: 75 | S32: 1.90 | T32: kurk | U32: kurk 75mm Rd 1,9 | V32: 0.37 | W32: 3 | X32: 3.5 | Y32: 75 | Z32: 1.85 | AA32: Houtvezel | AB32: Houtvezel 75mm Rd 1,85 | AC32: 0.69 | AD32: 7 | AE32: 7.6 | AF32: 40 | AG32: 1.80 | AH32: PIR | AI32: PIR 40mm Rd 1,8 | AJ32: 0.84 | AK32: 5 | AL32: 7.1
A33: LiteTop | B33: 80 | C33: mm | D33: Rd | E33: 2.15 | F33: LiteTop 80 | G33: LiteTop 80mm Rd 2,15 | H33: 0.33 | I33: 5 | J33: 3.7 | K33: 80 | L33: 2.10 | M33: Steenwol | N33: Steenwol 80mm Rd 2,1 | O33: 1.01 | P33: 8 | Q33: 8.5 | R33: 85 | S33: 2.15 | T33: kurk | U33: kurk 85mm Rd 2,15 | V33: 0.42 | W33: 4 | X33: 3.9 | Y33: 85 | Z33: 2.10 | AA33: Houtvezel | AB33: Houtvezel 85mm Rd 2,1 | AC33: 0.79 | AD33: 8 | AE33: 8.6 | AF33: 50 | AG33: 2.25 | AH33: PIR | AI33: PIR 50mm Rd 2,25 | AJ33: 1.06 | AK33: 7 | AL33: 8.9
A34: LiteTop | B34: 90 | C34: mm | D34: Rd | E34: 2.40 | F34: LiteTop 90 | G34: LiteTop 90mm Rd 2,4 | H34: 0.37 | I34: 6 | J34: 4.1 | K34: 90 | L34: 2.35 | M34: Steenwol | N34: Steenwol 90mm Rd 2,35 | O34: 1.13 | P34: 9 | Q34: 9.6 | R34: 95 | S34: 2.40 | T34: kurk | U34: kurk 95mm Rd 2,4 | V34: 0.47 | W34: 4 | X34: 4.4 | Y34: 95 | Z34: 2.35 | AA34: Houtvezel | AB34: Houtvezel 95mm Rd 2,35 | AC34: 0.88 | AD34: 8 | AE34: 9.7 | AF34: 55 | AG34: 2.50 | AH34: PIR | AI34: PIR 55mm Rd 2,5 | AJ34: 1.16 | AK34: 7 | AL34: 9.8
A35: LiteTop-HR | B35: 100 | C35: mm | D35: Rd | E35: 3.20 | F35: LiteTop-HR 100 | G35: LiteTop-HR 100mm Rd 3,2 | H35: =($H$4/$G$4)*B35 -> 0.39 | I35: =($I$4/$G$4)*B35 -> 6 | J35: =($J$4/$G$4)*B35 -> 4.4 | K35: 120 | L35: 3.15 | M35: Steenwol | N35: Steenwol 120mm Rd 3,15 | O35: 1.51 | P35: 12 | Q35: 12.8 | R35: 125 | S35: 3.20 | T35: kurk | U35: kurk 125mm Rd 3,2 | V35: 0.62 | W35: 6 | X35: 5.8 | Y35: 130 | Z35: 3.25 | AA35: Houtvezel | AB35: Houtvezel 130mm Rd 3,25 | AC35: 1.20 | AD35: 12 | AE35: 13.2 | AF35: 70 | AG35: 3.15 | AH35: PIR | AI35: PIR 70mm Rd 3,15 | AJ35: 1.48 | AK35: 9 | AL35: 12.5
A36: LiteTop-HR | B36: 110 | C36: mm | D36: Rd | E36: 3.50 | F36: LiteTop-HR 110 | G36: LiteTop-HR 110mm Rd 3,5 | H36: =($H$4/$G$4)*B36 -> 0.43 | I36: =($I$4/$G$4)*B36 -> 7 | J36: =($J$4/$G$4)*B36 -> 4.9 | K36: 135 | L36: 3.55 | M36: Steenwol | N36: Steenwol 135mm Rd 3,55 | O36: 1.70 | P36: 14 | Q36: 14.4 | R36: 140 | S36: 3.55 | T36: kurk | U36: kurk 140mm Rd 3,55 | V36: 0.70 | W36: 6 | X36: 6.5 | Y36: 140 | Z36: 3.50 | AA36: Houtvezel | AB36: Houtvezel 140mm Rd 3,5 | AC36: 1.30 | AD36: 12 | AE36: 14.2 | AF36: 75 | AG36: 3.40 | AH36: PIR | AI36: PIR 75mm Rd 3,4 | AJ36: 1.58 | AK36: 10 | AL36: 13.3
A37: LiteTop-HR | B37: 120 | C37: mm | D37: Rd | E37: 3.85 | F37: LiteTop-HR 120 | G37: LiteTop-HR 120mm Rd 3,85 | H37: 0.47 | I37: 7 | J37: 5.3 | K37: 145 | L37: 3.80 | M37: Steenwol | N37: Steenwol 145mm Rd 3,8 | O37: 1.83 | P37: 15 | Q37: 15.4 | R37: 150 | S37: 3.80 | T37: kurk | U37: kurk 150mm Rd 3,8 | V37: 0.75 | W37: 7 | X37: 7.0 | Y37: 155 | Z37: 3.85 | AA37: Houtvezel | AB37: Houtvezel 155mm Rd 3,85 | AC37: 1.43 | AD37: 14 | AE37: 15.7 | AF37: 85 | AG37: 3.85 | AH37: PIR | AI37: PIR 85mm Rd 3,85 | AJ37: 1.80 | AK37: 11 | AL37: 15.1
A38: LiteTop-HR | B38: 130 | C38: mm | D38: Rd | E38: 4.15 | F38: LiteTop-HR 130 | G38: LiteTop-HR 130mm Rd 4,15 | H38: 0.51 | I38: 8 | J38: 5.7 | K38: 160 | L38: 4.20 | M38: Steenwol | N38: Steenwol 160mm Rd 4,2 | O38: 2.02 | P38: 17 | Q38: 17.0 | R38: 165 | S38: 4.20 | T38: kurk | U38: kurk 165mm Rd 4,2 | V38: 0.82 | W38: 8 | X38: 7.6 | Y38: 165 | Z38: 4.10 | AA38: Houtvezel | AB38: Houtvezel 165mm Rd 4,1 | AC38: 1.53 | AD38: 15 | AE38: 16.8 | AF38: 90 | AG38: 4.05 | AH38: PIR | AI38: PIR 90mm Rd 4,05 | AJ38: 1.90 | AK38: 12 | AL38: 16.0
A39: LiteTop-HR | B39: 140 | C39: mm | D39: Rd | E39: 4.50 | F39: LiteTop-HR 140 | G39: LiteTop-HR 140mm Rd 4,5 | H39: 0.55 | I39: 9 | J39: 6.2 | K39: 170 | L39: 4.45 | M39: Steenwol | N39: Steenwol 170mm Rd 4,45 | O39: 2.14 | P39: 18 | Q39: 18.1 | R39: 175 | S39: 4.45 | T39: kurk | U39: kurk 175mm Rd 4,45 | V39: 0.87 | W39: 8 | X39: 8.1 | Y39: 180 | Z39: 4.50 | AA39: Houtvezel | AB39: Houtvezel 180mm Rd 4,5 | AC39: 1.67 | AD39: 16 | AE39: 18.3 | AF39: 100 | AG39: 4.50 | AH39: PIR | AI39: PIR 100mm Rd 4,5 | AJ39: 2.11 | AK39: 13 | AL39: 17.8
A40: LiteTop-HR | B40: 150 | C40: mm | D40: Rd | E40: 4.80 | F40: LiteTop-HR 150 | G40: LiteTop-HR 150mm Rd 4,8 | H40: 0.59 | I40: 9 | J40: 6.6 | K40: 185 | L40: 4.85 | M40: Steenwol | N40: Steenwol 185mm Rd 4,85 | O40: 2.33 | P40: 19 | Q40: 19.7 | R40: 190 | S40: 4.85 | T40: kurk | U40: kurk 190mm Rd 4,85 | V40: 0.95 | W40: 9 | X40: 8.8 | Y40: 190 | Z40: 4.75 | AA40: Houtvezel | AB40: Houtvezel 190mm Rd 4,75 | AC40: 1.76 | AD40: 17 | AE40: 19.3 | AF40: 105 | AG40: 4.75 | AH40: PIR | AI40: PIR 105mm Rd 4,75 | AJ40: 2.22 | AK40: 14 | AL40: 18.7
A41: LiteTop-HR | B41: 160 | C41: mm | D41: Rd | E41: 5.15 | F41: LiteTop-HR 160 | G41: LiteTop-HR 160mm Rd 5,15 | H41: 0.63 | I41: 10 | J41: 7.1 | K41: 195 | L41: 5.10 | M41: Steenwol | N41: Steenwol 195mm Rd 5,1 | O41: 2.46 | P41: 20 | Q41: 20.8 | R41: 200 | S41: 5.10 | T41: kurk | U41: kurk 200mm Rd 5,1 | V41: 1.00 | W41: 9 | X41: 9.3 | Y41: 205 | Z41: 5.10 | AA41: Houtvezel | AB41: Houtvezel 205mm Rd 5,1 | AC41: 1.90 | AD41: 18 | AE41: 20.8 | AF41: 115 | AG41: 5.20 | AH41: PIR | AI41: PIR 115mm Rd 5,2 | AJ41: 2.43 | AK41: 15 | AL41: 20.5
A42: LiteTop-HR | B42: 170 | C42: mm | D42: Rd | E42: 5.45 | F42: =A42&" "&B42 -> LiteTop-HR 170 | G42: =A42&" "&B42&C42&" "&D42&" "&E42 -> LiteTop-HR 170mm Rd 5,45 | H42: 0.67 | I42: 10 | J42: 7.5 | K42: 210 | L42: =FLOOR((K42/1000)/$L$9,0.05) -> 5.50 | M42: Steenwol | N42: =M42&" "&K42&C42&" "&D42&" "&L42 -> Steenwol 210mm Rd 5,5 | O42: =($O$8/$N$8)*K42 -> 2.65 | P42: =($P$8/$N$8)*K42 -> 22 | Q42: =($Q$8/$N$8)*K42 -> 22.4 | R42: 215 | S42: =FLOOR((R42/1000)/$S$9,0.05) -> 5.50 | T42: kurk | U42: =T42&" "&R42&C42&" "&D42&" "&S42 -> kurk 215mm Rd 5,5 | V42: =($V$8/$U$8)*R42 -> 1.07 | W42: =($W$8/$U$8)*R42 -> 10 | X42: =($X$8/$U$8)*R42 -> 10.0 | Y42: 220 | Z42: =FLOOR((Y42/1000)/$Z$9,0.05) -> 5.50 | AA42: Houtvezel | AB42: =AA42&" "&Y42&C42&" "&D42&" "&Z42 -> Houtvezel 220mm Rd 5,5 | AC42: =($AC$8/$AB$8)*Y42 -> 2.04 | AD42: =($AD$8/$AB$8)*Y42 -> 19 | AE42: =($AE$8/$AB$8)*Y42 -> 22.3 | AF42: 120 | AG42: =FLOOR((AF42/1000)/$AG$9,0.05) -> 5.45 | AH42: PIR | AI42: =AH42&" "&AF42&C42&" "&D42&" "&AG42 -> PIR 120mm Rd 5,45 | AJ42: =($AJ$8/$AI$8)*AF42 -> 2.53 | AK42: =($AK$8/$AI$8)*AF42 -> 16 | AL42: =($AL$8/$AI$8)*AF42 -> 21.3
A43: LiteTop-HR | B43: 180 | C43: mm | D43: Rd | E43: 5.80 | F43: LiteTop-HR 180 | G43: LiteTop-HR 180mm Rd 5,8 | H43: 0.71 | I43: 11 | J43: 7.9 | K43: 220 | L43: 5.75 | M43: Steenwol | N43: Steenwol 220mm Rd 5,75 | O43: 2.77 | P43: 23 | Q43: 23.4 | R43: 225 | S43: 5.75 | T43: kurk | U43: kurk 225mm Rd 5,75 | V43: 1.12 | W43: 10 | X43: 10.4 | Y43: 230 | Z43: 5.75 | AA43: Houtvezel | AB43: Houtvezel 230mm Rd 5,75 | AC43: 2.13 | AD43: 20 | AE43: 23.4 | AF43: 130 | AG43: 5.90 | AH43: PIR | AI43: PIR 130mm Rd 5,9 | AJ43: 2.75 | AK43: 17 | AL43: 23.1
A44: LiteTop-HR | B44: 190 | C44: mm | D44: Rd | E44: 6.10 | F44: LiteTop-HR 190 | G44: LiteTop-HR 190mm Rd 6,1 | H44: 0.75 | I44: 12 | J44: 8.4 | K44: 230 | L44: 6.05 | M44: Steenwol | N44: Steenwol 230mm Rd 6,05 | O44: 2.90 | P44: 24 | Q44: 24.5 | R44: 240 | S44: 6.15 | T44: kurk | U44: kurk 240mm Rd 6,15 | V44: 1.20 | W44: 11 | X44: 11.1 | Y44: 245 | Z44: 6.10 | AA44: Houtvezel | AB44: Houtvezel 245mm Rd 6,1 | AC44: 2.27 | AD44: 22 | AE44: 24.9 | AF44: 135 | AG44: 6.10 | AH44: PIR | AI44: PIR 135mm Rd 6,1 | AJ44: 2.85 | AK44: 18 | AL44: 24.0
A45: LiteTop-HR | B45: 200 | C45: mm | D45: Rd | E45: 6.45 | F45: LiteTop-HR 200 | G45: LiteTop-HR 200mm Rd 6,45 | H45: 0.79 | I45: 12 | J45: 8.8 | K45: 245 | L45: 6.40 | M45: Steenwol | N45: Steenwol 245mm Rd 6,4 | O45: 3.09 | P45: 25 | Q45: 26.1 | R45: 255 | S45: 6.50 | T45: kurk | U45: kurk 255mm Rd 6,5 | V45: 1.27 | W45: 12 | X45: 11.8 | Y45: 260 | Z45: 6.50 | AA45: Houtvezel | AB45: Houtvezel 260mm Rd 6,5 | AC45: 2.41 | AD45: 23 | AE45: 26.4 | AF45: 140 | AG45: 6.35 | AH45: PIR | AI45: PIR 140mm Rd 6,35 | AJ45: 2.96 | AK45: 19 | AL45: 24.9
A46: LiteTop-HR | B46: 210 | C46: mm | D46: Rd | E46: 6.75 | F46: LiteTop-HR 210 | G46: LiteTop-HR 210mm Rd 6,75 | H46: 0.82 | I46: 13 | J46: 9.3 | K46: 255 | L46: 6.70 | M46: Steenwol | N46: Steenwol 255mm Rd 6,7 | O46: 3.21 | P46: 26 | Q46: 27.2 | R46: 265 | S46: 6.75 | T46: kurk | U46: kurk 265mm Rd 6,75 | V46: 1.32 | W46: 12 | X46: 12.3 | Y46: 270 | Z46: 6.75 | AA46: Houtvezel | AB46: Houtvezel 270mm Rd 6,75 | AC46: 2.50 | AD46: 24 | AE46: 27.4 | AF46: 150 | AG46: 6.80 | AH46: PIR | AI46: PIR 150mm Rd 6,8 | AJ46: 3.17 | AK46: 20 | AL46: 26.7
A47: LiteTop-HR | B47: 220 | C47: mm | D47: Rd | E47: 7.05 | F47: LiteTop-HR 220 | G47: LiteTop-HR 220mm Rd 7,05 | H47: 0.86 | I47: 13 | J47: 9.7 | K47: 270 | L47: 7.10 | M47: Steenwol | N47: Steenwol 270mm Rd 7,1 | O47: 3.40 | P47: 28 | Q47: 28.8 | R47: 275 | S47: 7.05 | T47: kurk | U47: kurk 275mm Rd 7,05 | V47: 1.37 | W47: 13 | X47: 12.7 | Y47: 280 | Z47: 7.00 | AA47: Houtvezel | AB47: Houtvezel 280mm Rd 7 | AC47: 2.59 | AD47: 25 | AE47: 28.4 | AF47: 155 | AG47: 7.00 | AH47: PIR | AI47: PIR 155mm Rd 7 | AJ47: 3.27 | AK47: 20 | AL47: 27.6
A48: LiteTop-HR | B48: 230 | C48: mm | D48: Rd | E48: 7.40 | F48: LiteTop-HR 230 | G48: LiteTop-HR 230mm Rd 7,4 | H48: 0.90 | I48: 14 | J48: 10.1 | K48: 280 | L48: 7.35 | M48: Steenwol | N48: Steenwol 280mm Rd 7,35 | O48: 3.53 | P48: 29 | Q48: 29.8 | R48: 290 | S48: 7.40 | T48: kurk | U48: kurk 290mm Rd 7,4 | V48: 1.44 | W48: 13 | X48: 13.4 | Y48: 295 | Z48: 7.35 | AA48: Houtvezel | AB48: Houtvezel 295mm Rd 7,35 | AC48: 2.73 | AD48: 26 | AE48: 30.0 | AF48: 165 | AG48: 7.50 | AH48: PIR | AI48: PIR 165mm Rd 7,5 | AJ48: 3.49 | AK48: 22 | AL48: 29.3
A49: LiteTop-HR | B49: 240 | C49: mm | D49: Rd | E49: 7.70 | F49: LiteTop-HR 240 | G49: LiteTop-HR 240mm Rd 7,7 | H49: 0.94 | I49: 15 | J49: 10.6 | K49: 295 | L49: 7.75 | M49: Steenwol | N49: Steenwol 295mm Rd 7,75 | O49: 3.72 | P49: 30 | Q49: 31.4 | R49: 300 | S49: 7.65 | T49: kurk | U49: kurk 300mm Rd 7,65 | V49: 1.49 | W49: 14 | X49: 13.9 | Y49: 310 | Z49: 7.75 | AA49: Houtvezel | AB49: Houtvezel 310mm Rd 7,75 | AC49: 2.87 | AD49: 27 | AE49: 31.5 | AF49: 170 | AG49: 7.70 | AH49: PIR | AI49: PIR 170mm Rd 7,7 | AJ49: 3.59 | AK49: 22 | AL49: 30.2
A50: LiteTop-HR | B50: 250 | C50: mm | D50: Rd | E50: 8.05 | F50: LiteTop-HR 250 | G50: LiteTop-HR 250mm Rd 8,05 | H50: 0.98 | I50: 15 | J50: 11.0 | K50: 305 | L50: 8.00 | M50: Steenwol | N50: Steenwol 305mm Rd 8 | O50: 3.84 | P50: 32 | Q50: 32.5 | R50: 315 | S50: 8.05 | T50: kurk | U50: kurk 315mm Rd 8,05 | V50: 1.57 | W50: 15 | X50: 14.6 | Y50: 320 | Z50: 8.00 | AA50: Houtvezel | AB50: Houtvezel 320mm Rd 8 | AC50: 2.96 | AD50: 28 | AE50: 32.5 | AF50: 180 | AG50: 8.15 | AH50: PIR | AI50: PIR 180mm Rd 8,15 | AJ50: 3.80 | AK50: 24 | AL50: 32.0
A51: LiteTop-HR | B51: 260 | C51: mm | D51: Rd | E51: 8.35 | F51: LiteTop-HR 260 | G51: LiteTop-HR 260mm Rd 8,35 | H51: 1.02 | I51: 16 | J51: 11.5 | K51: 320 | L51: 8.40 | M51: Steenwol | N51: Steenwol 320mm Rd 8,4 | O51: 4.03 | P51: 33 | Q51: 34.1 | R51: 325 | S51: 8.30 | T51: kurk | U51: kurk 325mm Rd 8,3 | V51: 1.62 | W51: 15 | X51: 15.1 | Y51: 335 | Z51: 8.35 | AA51: Houtvezel | AB51: Houtvezel 335mm Rd 8,35 | AC51: 3.10 | AD51: 30 | AE51: 34.0 | AF51: 185 | AG51: 8.40 | AH51: PIR | AI51: PIR 185mm Rd 8,4 | AJ51: 3.91 | AK51: 24 | AL51: 32.9
A52: LiteTop-HR | B52: 270 | C52: mm | D52: Rd | E52: 8.70 | F52: LiteTop-HR 270 | G52: LiteTop-HR 270mm Rd 8,7 | H52: 1.06 | I52: 16 | J52: 11.9 | K52: 330 | L52: 8.65 | M52: Steenwol | N52: Steenwol 330mm Rd 8,65 | O52: 4.16 | P52: 34 | Q52: 35.1 | R52: 340 | S52: 8.70 | T52: kurk | U52: kurk 340mm Rd 8,7 | V52: 1.69 | W52: 16 | X52: 15.8 | Y52: 350 | Z52: 8.75 | AA52: Houtvezel | AB52: Houtvezel 350mm Rd 8,75 | AC52: 3.24 | AD52: 31 | AE52: 35.6 | AF52: 190 | AG52: 8.60 | AH52: PIR | AI52: PIR 190mm Rd 8,6 | AJ52: 4.01 | AK52: 25 | AL52: 33.8
A53: LiteTop-HR | B53: 280 | C53: mm | D53: Rd | E53: 9.00 | F53: LiteTop-HR 280 | G53: LiteTop-HR 280mm Rd 9 | H53: 1.10 | I53: 17 | J53: 12.3 | K53: 345 | L53: 9.05 | M53: Steenwol | N53: Steenwol 345mm Rd 9,05 | O53: 4.35 | P53: 36 | Q53: 36.7 | R53: 350 | S53: 8.95 | T53: kurk | U53: kurk 350mm Rd 8,95 | V53: 1.74 | W53: 16 | X53: 16.2 | Y53: 360 | Z53: 9.00 | AA53: Houtvezel | AB53: Houtvezel 360mm Rd 9 | AC53: 3.33 | AD53: 32 | AE53: 36.6 | AF53: 200 | AG53: 9.05 | AH53: PIR | AI53: PIR 200mm Rd 9,05 | AJ53: 4.22 | AK53: 26 | AL53: 35.6
A54: LiteTop-HR | B54: 40 | C54: mm | D54: Rd | E54: 1.25 | F54: LiteTop-HR 40 | G54: LiteTop-HR 40mm Rd 1,25 | H54: 0.16 | I54: 2 | J54: 1.8 | K54: 50 | L54: 1.30 | M54: Steenwol | N54: Steenwol 50mm Rd 1,3 | O54: 0.63 | P54: 5 | Q54: 5.3 | R54: 50 | S54: 1.25 | T54: kurk | U54: kurk 50mm Rd 1,25 | V54: 0.25 | W54: 2 | X54: 2.3 | Y54: 50 | Z54: 1.25 | AA54: Houtvezel | AB54: Houtvezel 50mm Rd 1,25 | AC54: 0.46 | AD54: 4 | AE54: 5.1 | AF54: 30 | AG54: 1.35 | AH54: PIR | AI54: PIR 30mm Rd 1,35 | AJ54: 0.63 | AK54: 4 | AL54: 5.3
A55: LiteTop-HR | B55: 50 | C55: mm | D55: Rd | E55: 1.60 | F55: LiteTop-HR 50 | G55: LiteTop-HR 50mm Rd 1,6 | H55: 0.20 | I55: 3 | J55: 2.2 | K55: 60 | L55: 1.55 | M55: Steenwol | N55: Steenwol 60mm Rd 1,55 | O55: 0.76 | P55: 6 | Q55: 6.4 | R55: 65 | S55: 1.65 | T55: kurk | U55: kurk 65mm Rd 1,65 | V55: 0.32 | W55: 3 | X55: 3.0 | Y55: 65 | Z55: 1.60 | AA55: Houtvezel | AB55: Houtvezel 65mm Rd 1,6 | AC55: 0.60 | AD55: 6 | AE55: 6.6 | AF55: 35 | AG55: 1.55 | AH55: PIR | AI55: PIR 35mm Rd 1,55 | AJ55: 0.74 | AK55: 5 | AL55: 6.2
A56: LiteTop-HR | B56: 60 | C56: mm | D56: Rd | E56: 1.90 | F56: LiteTop-HR 60 | G56: LiteTop-HR 60mm Rd 1,9 | H56: 0.24 | I56: 4 | J56: 2.6 | K56: 75 | L56: 1.95 | M56: Steenwol | N56: Steenwol 75mm Rd 1,95 | O56: 0.95 | P56: 8 | Q56: 8.0 | R56: 75 | S56: 1.90 | T56: kurk | U56: kurk 75mm Rd 1,9 | V56: 0.37 | W56: 3 | X56: 3.5 | Y56: 75 | Z56: 1.85 | AA56: Houtvezel | AB56: Houtvezel 75mm Rd 1,85 | AC56: 0.69 | AD56: 7 | AE56: 7.6 | AF56: 40 | AG56: 1.80 | AH56: PIR | AI56: PIR 40mm Rd 1,8 | AJ56: 0.84 | AK56: 5 | AL56: 7.1
A57: LiteTop-HR | B57: 70 | C57: mm | D57: Rd | E57: 2.25 | F57: LiteTop-HR 70 | G57: LiteTop-HR 70mm Rd 2,25 | H57: 0.27 | I57: 4 | J57: 3.1 | K57: 85 | L57: 2.20 | M57: Steenwol | N57: Steenwol 85mm Rd 2,2 | O57: 1.07 | P57: 9 | Q57: 9.1 | R57: 90 | S57: 2.30 | T57: kurk | U57: kurk 90mm Rd 2,3 | V57: 0.45 | W57: 4 | X57: 4.2 | Y57: 90 | Z57: 2.25 | AA57: Houtvezel | AB57: Houtvezel 90mm Rd 2,25 | AC57: 0.83 | AD57: 8 | AE57: 9.1 | AF57: 50 | AG57: 2.25 | AH57: PIR | AI57: PIR 50mm Rd 2,25 | AJ57: 1.06 | AK57: 7 | AL57: 8.9
A58: LiteTop-HR | B58: 80 | C58: mm | D58: Rd | E58: 2.55 | F58: LiteTop-HR 80 | G58: LiteTop-HR 80mm Rd 2,55 | H58: 0.31 | I58: 5 | J58: 3.5 | K58: 95 | L58: 2.50 | M58: Steenwol | N58: Steenwol 95mm Rd 2,5 | O58: 1.20 | P58: 10 | Q58: 10.1 | R58: 100 | S58: 2.55 | T58: kurk | U58: kurk 100mm Rd 2,55 | V58: 0.50 | W58: 5 | X58: 4.6 | Y58: 100 | Z58: 2.50 | AA58: Houtvezel | AB58: Houtvezel 100mm Rd 2,5 | AC58: 0.93 | AD58: 9 | AE58: 10.2 | AF58: 55 | AG58: 2.50 | AH58: PIR | AI58: PIR 55mm Rd 2,5 | AJ58: 1.16 | AK58: 7 | AL58: 9.8
A59: LiteTop-HR | B59: 90 | C59: mm | D59: Rd | E59: 2.90 | F59: LiteTop-HR 90 | G59: LiteTop-HR 90mm Rd 2,9 | H59: 0.35 | I59: 5 | J59: 4.0 | K59: 110 | L59: 2.85 | M59: Steenwol | N59: Steenwol 110mm Rd 2,85 | O59: 1.39 | P59: 11 | Q59: 11.7 | R59: 115 | S59: 2.90 | T59: kurk | U59: kurk 115mm Rd 2,9 | V59: 0.57 | W59: 5 | X59: 5.3 | Y59: 115 | Z59: 2.85 | AA59: Houtvezel | AB59: Houtvezel 115mm Rd 2,85 | AC59: 1.06 | AD59: 10 | AE59: 11.7 | AF59: 65 | AG59: 2.95 | AH59: PIR | AI59: PIR 65mm Rd 2,95 | AJ59: 1.37 | AK59: 9 | AL59: 11.6
A60: PolyTop | B60: 100 | C60: mm | D60: Rd | E60: 2.75 | F60: PolyTop 100 | G60: PolyTop 100mm Rd 2,75 | H60: =($H$5/$G$5)*B60 -> 0.46 | I60: =($I$5/$G$5)*B60 -> 7 | J60: =($J$5/$G$5)*B60 -> 5.2 | K60: 105 | L60: 2.75 | M60: Steenwol | N60: Steenwol 105mm Rd 2,75 | O60: 1.32 | P60: 11 | Q60: 11.2 | R60: 110 | S60: 2.8 | T60: kurk | U60: kurk 110mm Rd 2,8 | V60: 0.55 | W60: 5 | X60: 5.1 | Y60: 110 | Z60: 2.75 | AA60: Houtvezel | AB60: Houtvezel 110mm Rd 2,75 | AC60: 1.02 | AD60: 10 | AE60: 11.2 | AF60: 60 | AG60: 2.70 | AH60: PIR | AI60: PIR 60mm Rd 2,7 | AJ60: 1.27 | AK60: 8 | AL60: 10.7
A61: PolyTop | B61: 110 | C61: mm | D61: Rd | E61: 3.05 | F61: PolyTop 110 | G61: PolyTop 110mm Rd 3,05 | H61: =($H$5/$G$5)*B61 -> 0.51 | I61: =($I$5/$G$5)*B61 -> 8 | J61: =($J$5/$G$5)*B61 -> 5.7 | K61: 115 | L61: 3.00 | M61: Steenwol | N61: Steenwol 115mm Rd 3 | O61: 1.45 | P61: 12 | Q61: 12.2 | R61: 220 | S61: 5.6 | T61: kurk | U61: kurk 220mm Rd 5,6 | V61: 1.10 | W61: 10 | X61: 10.2 | Y61: 125 | Z61: 3.10 | AA61: Houtvezel | AB61: Houtvezel 125mm Rd 3,1 | AC61: 1.16 | AD61: 11 | AE61: 12.7 | AF61: 65 | AG61: 2.95 | AH61: PIR | AI61: PIR 65mm Rd 2,95 | AJ61: 1.37 | AK61: 9 | AL61: 11.6
A62: PolyTop | B62: 120 | C62: mm | D62: Rd | E62: 3.30 | F62: PolyTop 120 | G62: PolyTop 120mm Rd 3,3 | H62: 0.55 | I62: 9 | J62: 6.2 | K62: 125 | L62: 3.25 | M62: Steenwol | N62: Steenwol 125mm Rd 3,25 | O62: 1.58 | P62: 13 | Q62: 13.3 | R62: 130 | S62: 3.3 | T62: kurk | U62: kurk 130mm Rd 3,3 | V62: 0.65 | W62: 6 | X62: 6.0 | Y62: 135 | Z62: 3.35 | AA62: Houtvezel | AB62: Houtvezel 135mm Rd 3,35 | AC62: 1.25 | AD62: 12 | AE62: 13.7 | AF62: 75 | AG62: 3.40 | AH62: PIR | AI62: PIR 75mm Rd 3,4 | AJ62: 1.58 | AK62: 10 | AL62: 13.3
A63: PolyTop | B63: 130 | C63: mm | D63: Rd | E63: 3.60 | F63: PolyTop 130 | G63: PolyTop 130mm Rd 3,6 | H63: 0.60 | I63: 9 | J63: 6.7 | K63: 135 | L63: 3.55 | M63: Steenwol | N63: Steenwol 135mm Rd 3,55 | O63: 1.70 | P63: 14 | Q63: 14.4 | R63: 140 | S63: 3.55 | T63: kurk | U63: kurk 140mm Rd 3,55 | V63: 0.70 | W63: 6 | X63: 6.5 | Y63: 145 | Z63: 3.60 | AA63: Houtvezel | AB63: Houtvezel 145mm Rd 3,6 | AC63: 1.34 | AD63: 13 | AE63: 14.7 | AF63: 80 | AG63: 3.60 | AH63: PIR | AI63: PIR 80mm Rd 3,6 | AJ63: 1.69 | AK63: 11 | AL63: 14.2
A64: PolyTop | B64: 140 | C64: mm | D64: Rd | E64: 3.85 | F64: PolyTop 140 | G64: PolyTop 140mm Rd 3,85 | H64: 0.64 | I64: 10 | J64: 7.2 | K64: 145 | L64: 3.80 | M64: Steenwol | N64: Steenwol 145mm Rd 3,8 | O64: 1.83 | P64: 15 | Q64: 15.4 | R64: 150 | S64: 3.8 | T64: kurk | U64: kurk 150mm Rd 3,8 | V64: 0.75 | W64: 7 | X64: 7.0 | Y64: 155 | Z64: 3.85 | AA64: Houtvezel | AB64: Houtvezel 155mm Rd 3,85 | AC64: 1.43 | AD64: 14 | AE64: 15.7 | AF64: 85 | AG64: 3.85 | AH64: PIR | AI64: PIR 85mm Rd 3,85 | AJ64: 1.80 | AK64: 11 | AL64: 15.1
A65: PolyTop | B65: 150 | C65: mm | D65: Rd | E65: 4.15 | F65: PolyTop 150 | G65: PolyTop 150mm Rd 4,15 | H65: 0.69 | I65: 11 | J65: 7.7 | K65: 160 | L65: 4.20 | M65: Steenwol | N65: Steenwol 160mm Rd 4,2 | O65: 2.02 | P65: 17 | Q65: 17.0 | R65: 165 | S65: 4.2 | T65: kurk | U65: kurk 165mm Rd 4,2 | V65: 0.82 | W65: 8 | X65: 7.6 | Y65: 165 | Z65: 4.10 | AA65: Houtvezel | AB65: Houtvezel 165mm Rd 4,1 | AC65: 1.53 | AD65: 15 | AE65: 16.8 | AF65: 90 | AG65: 4.05 | AH65: PIR | AI65: PIR 90mm Rd 4,05 | AJ65: 1.90 | AK65: 12 | AL65: 16.0
A66: PolyTop | B66: 160 | C66: mm | D66: Rd | E66: 4.40 | F66: PolyTop 160 | G66: PolyTop 160mm Rd 4,4 | H66: 0.73 | I66: 11 | J66: 8.2 | K66: 170 | L66: 4.45 | M66: Steenwol | N66: Steenwol 170mm Rd 4,45 | O66: 2.14 | P66: 18 | Q66: 18.1 | R66: 175 | S66: 4.45 | T66: kurk | U66: kurk 175mm Rd 4,45 | V66: 0.87 | W66: 8 | X66: 8.1 | Y66: 175 | Z66: 4.35 | AA66: Houtvezel | AB66: Houtvezel 175mm Rd 4,35 | AC66: 1.62 | AD66: 15 | AE66: 17.8 | AF66: 95 | AG66: 4.30 | AH66: PIR | AI66: PIR 95mm Rd 4,3 | AJ66: 2.01 | AK66: 13 | AL66: 16.9
A67: PolyTop | B67: 170 | C67: mm | D67: Rd | E67: 4.70 | F67: PolyTop 170 | G67: PolyTop 170mm Rd 4,7 | H67: 0.78 | I67: 12 | J67: 8.8 | K67: 180 | L67: 4.70 | M67: Steenwol | N67: Steenwol 180mm Rd 4,7 | O67: 2.27 | P67: 19 | Q67: 19.2 | R67: 185 | S67: 4.7 | T67: kurk | U67: kurk 185mm Rd 4,7 | V67: 0.92 | W67: 9 | X67: 8.6 | Y67: 190 | Z67: 4.75 | AA67: Houtvezel | AB67: Houtvezel 190mm Rd 4,75 | AC67: 1.76 | AD67: 17 | AE67: 19.3 | AF67: 105 | AG67: 4.75 | AH67: PIR | AI67: PIR 105mm Rd 4,75 | AJ67: 2.22 | AK67: 14 | AL67: 18.7
A68: PolyTop | B68: 180 | C68: mm | D68: Rd | E68: 5.00 | F68: PolyTop 180 | G68: PolyTop 180mm Rd 5 | H68: 0.83 | I68: 13 | J68: 9.3 | K68: 190 | L68: 5.00 | M68: Steenwol | N68: Steenwol 190mm Rd 5 | O68: 2.39 | P68: 20 | Q68: 20.2 | R68: 195 | S68: 5 | T68: kurk | U68: kurk 195mm Rd 5 | V68: 0.97 | W68: 9 | X68: 9.0 | Y68: 200 | Z68: 5.00 | AA68: Houtvezel | AB68: Houtvezel 200mm Rd 5 | AC68: 1.85 | AD68: 18 | AE68: 20.3 | AF68: 110 | AG68: 5.00 | AH68: PIR | AI68: PIR 110mm Rd 5 | AJ68: 2.32 | AK68: 15 | AL68: 19.6
A69: PolyTop | B69: 190 | C69: mm | D69: Rd | E69: 5.25 | F69: PolyTop 190 | G69: PolyTop 190mm Rd 5,25 | H69: 0.87 | I69: 13 | J69: 9.8 | K69: 200 | L69: 5.25 | M69: Steenwol | N69: Steenwol 200mm Rd 5,25 | O69: 2.52 | P69: 21 | Q69: 21.3 | R69: 205 | S69: 5.25 | T69: kurk | U69: kurk 205mm Rd 5,25 | V69: 1.02 | W69: 10 | X69: 9.5 | Y69: 210 | Z69: 5.25 | AA69: Houtvezel | AB69: Houtvezel 210mm Rd 5,25 | AC69: 1.94 | AD69: 19 | AE69: 21.3 | AF69: 115 | AG69: 5.20 | AH69: PIR | AI69: PIR 115mm Rd 5,2 | AJ69: 2.43 | AK69: 15 | AL69: 20.5
A70: PolyTop | B70: 200 | C70: mm | D70: Rd | E70: 5.55 | F70: PolyTop 200 | G70: PolyTop 200mm Rd 5,55 | H70: 0.92 | I70: 14 | J70: 10.3 | K70: 210 | L70: 5.50 | M70: Steenwol | N70: Steenwol 210mm Rd 5,5 | O70: 2.65 | P70: 22 | Q70: 22.4 | R70: 215 | S70: 5.5 | T70: kurk | U70: kurk 215mm Rd 5,5 | V70: 1.07 | W70: 10 | X70: 10.0 | Y70: 225 | Z70: 5.60 | AA70: Houtvezel | AB70: Houtvezel 225mm Rd 5,6 | AC70: 2.08 | AD70: 20 | AE70: 22.9 | AF70: 120 | AG70: 5.45 | AH70: PIR | AI70: PIR 120mm Rd 5,45 | AJ70: 2.53 | AK70: 16 | AL70: 21.3
A71: PolyTop | B71: 210 | C71: mm | D71: Rd | E71: 5.80 | F71: PolyTop 210 | G71: PolyTop 210mm Rd 5,8 | H71: 0.96 | I71: 15 | J71: 10.8 | K71: 220 | L71: 5.75 | M71: Steenwol | N71: Steenwol 220mm Rd 5,75 | O71: 2.77 | P71: 23 | Q71: 23.4 | R71: 225 | S71: 5.75 | T71: kurk | U71: kurk 225mm Rd 5,75 | V71: 1.12 | W71: 10 | X71: 10.4 | Y71: 230 | Z71: 5.75 | AA71: Houtvezel | AB71: Houtvezel 230mm Rd 5,75 | AC71: 2.13 | AD71: 20 | AE71: 23.4 | AF71: 130 | AG71: 5.90 | AH71: PIR | AI71: PIR 130mm Rd 5,9 | AJ71: 2.75 | AK71: 17 | AL71: 23.1
A72: PolyTop | B72: 220 | C72: mm | D72: Rd | E72: 6.10 | F72: PolyTop 220 | G72: PolyTop 220mm Rd 6,1 | H72: 1.01 | I72: 16 | J72: 11.3 | K72: 230 | L72: 6.05 | M72: Steenwol | N72: Steenwol 230mm Rd 6,05 | O72: 2.90 | P72: 24 | Q72: 24.5 | R72: 240 | S72: 6.15 | T72: kurk | U72: kurk 240mm Rd 6,15 | V72: 1.20 | W72: 11 | X72: 11.1 | Y72: 245 | Z72: 6.10 | AA72: Houtvezel | AB72: Houtvezel 245mm Rd 6,1 | AC72: 2.27 | AD72: 22 | AE72: 24.9 | AF72: 135 | AG72: 6.10 | AH72: PIR | AI72: PIR 135mm Rd 6,1 | AJ72: 2.85 | AK72: 18 | AL72: 24.0
A73: PolyTop | B73: 230 | C73: mm | D73: Rd | E73: 6.35 | F73: PolyTop 230 | G73: PolyTop 230mm Rd 6,35 | H73: 1.06 | I73: 16 | J73: 11.9 | K73: 240 | L73: 6.30 | M73: Steenwol | N73: Steenwol 240mm Rd 6,3 | O73: 3.03 | P73: 25 | Q73: 25.6 | R73: 250 | S73: 6.4 | T73: kurk | U73: kurk 250mm Rd 6,4 | V73: 1.24 | W73: 12 | X73: 11.6 | Y73: 255 | Z73: 6.35 | AA73: Houtvezel | AB73: Houtvezel 255mm Rd 6,35 | AC73: 2.36 | AD73: 23 | AE73: 25.9 | AF73: 140 | AG73: 6.35 | AH73: PIR | AI73: PIR 140mm Rd 6,35 | AJ73: 2.96 | AK73: 19 | AL73: 24.9
A74: PolyTop | B74: 240 | C74: mm | D74: Rd | E74: 6.65 | F74: =A74&" "&B74 -> PolyTop 240 | G74: =A74&" "&B74&C74&" "&D74&" "&E74 -> PolyTop 240mm Rd 6,65 | H74: 1.10 | I74: 17 | J74: 12.4 | K74: 255 | L74: =FLOOR((K74/1000)/$L$9,0.05) -> 6.70 | M74: Steenwol | N74: =M74&" "&K74&C74&" "&D74&" "&L74 -> Steenwol 255mm Rd 6,7 | O74: =($O$8/$N$8)*K74 -> 3.21 | P74: =($P$8/$N$8)*K74 -> 26 | Q74: =($Q$8/$N$8)*K74 -> 27.2 | R74: 260 | S74: =FLOOR((R74/1000)/$S$9,0.05) -> 6.65 | T74: kurk | U74: =T74&" "&R74&C74&" "&D74&" "&S74 -> kurk 260mm Rd 6,65 | V74: =($V$8/$U$8)*R74 -> 1.29 | W74: =($W$8/$U$8)*R74 -> 12 | X74: =($X$8/$U$8)*R74 -> 12.0 | Y74: 265 | Z74: =FLOOR((Y74/1000)/$Z$9,0.05) -> 6.60 | AA74: Houtvezel | AB74: =AA74&" "&Y74&C74&" "&D74&" "&Z74 -> Houtvezel 265mm Rd 6,6 | AC74: =($AC$8/$AB$8)*Y74 -> 2.45 | AD74: =($AD$8/$AB$8)*Y74 -> 23 | AE74: =($AE$8/$AB$8)*Y74 -> 26.9 | AF74: 145 | AG74: =FLOOR((AF74/1000)/$AG$9,0.05) -> 6.55 | AH74: PIR | AI74: =AH74&" "&AF74&C74&" "&D74&" "&AG74 -> PIR 145mm Rd 6,55 | AJ74: =($AJ$8/$AI$8)*AF74 -> 3.06 | AK74: =($AK$8/$AI$8)*AF74 -> 19 | AL74: =($AL$8/$AI$8)*AF74 -> 25.8
A75: PolyTop | B75: 250 | C75: mm | D75: Rd | E75: 6.90 | F75: PolyTop 250 | G75: PolyTop 250mm Rd 6,9 | H75: 1.15 | I75: 18 | J75: 12.9 | K75: 265 | L75: 6.95 | M75: Steenwol | N75: Steenwol 265mm Rd 6,95 | O75: 3.34 | P75: 27 | Q75: 28.2 | R75: 270 | S75: 6.9 | T75: kurk | U75: kurk 270mm Rd 6,9 | V75: 1.34 | W75: 13 | X75: 12.5 | Y75: 275 | Z75: 6.85 | AA75: Houtvezel | AB75: Houtvezel 275mm Rd 6,85 | AC75: 2.55 | AD75: 24 | AE75: 27.9 | AF75: 150 | AG75: 6.80 | AH75: PIR | AI75: PIR 150mm Rd 6,8 | AJ75: 3.17 | AK75: 20 | AL75: 26.7
A76: PolyTop | B76: 260 | C76: mm | D76: Rd | E76: 7.20 | F76: PolyTop 260 | G76: PolyTop 260mm Rd 7,2 | H76: 1.19 | I76: 18 | J76: 13.4 | K76: 275 | L76: 7.20 | M76: Steenwol | N76: Steenwol 275mm Rd 7,2 | O76: 3.47 | P76: 28 | Q76: 29.3 | R76: 280 | S76: 7.15 | T76: kurk | U76: kurk 280mm Rd 7,15 | V76: 1.39 | W76: 13 | X76: 13.0 | Y76: 290 | Z76: 7.25 | AA76: Houtvezel | AB76: Houtvezel 290mm Rd 7,25 | AC76: 2.68 | AD76: 26 | AE76: 29.5 | AF76: 160 | AG76: 7.25 | AH76: PIR | AI76: PIR 160mm Rd 7,25 | AJ76: 3.38 | AK76: 21 | AL76: 28.5
A77: PolyTop | B77: 270 | C77: mm | D77: Rd | E77: 7.50 | F77: PolyTop 270 | G77: PolyTop 270mm Rd 7,5 | H77: 1.24 | I77: 19 | J77: 13.9 | K77: 285 | L77: 7.50 | M77: Steenwol | N77: Steenwol 285mm Rd 7,5 | O77: 3.59 | P77: 29 | Q77: 30.4 | R77: 295 | S77: 7.55 | T77: kurk | U77: kurk 295mm Rd 7,55 | V77: 1.47 | W77: 14 | X77: 13.7 | Y77: 300 | Z77: 7.50 | AA77: Houtvezel | AB77: Houtvezel 300mm Rd 7,5 | AC77: 2.78 | AD77: 27 | AE77: 30.5 | AF77: 165 | AG77: 7.50 | AH77: PIR | AI77: PIR 165mm Rd 7,5 | AJ77: 3.49 | AK77: 22 | AL77: 29.3
A78: PolyTop | B78: 280 | C78: mm | D78: Rd | E78: 7.75 | F78: PolyTop 280 | G78: PolyTop 280mm Rd 7,75 | H78: 1.29 | I78: 20 | J78: 14.4 | K78: 295 | L78: 7.75 | M78: Steenwol | N78: Steenwol 295mm Rd 7,75 | O78: 3.72 | P78: 30 | Q78: 31.4 | R78: 305 | S78: 7.8 | T78: kurk | U78: kurk 305mm Rd 7,8 | V78: 1.52 | W78: 14 | X78: 14.1 | Y78: 310 | Z78: 7.75 | AA78: Houtvezel | AB78: Houtvezel 310mm Rd 7,75 | AC78: 2.87 | AD78: 27 | AE78: 31.5 | AF78: 170 | AG78: 7.70 | AH78: PIR | AI78: PIR 170mm Rd 7,7 | AJ78: 3.59 | AK78: 22 | AL78: 30.2
A79: PolyTop | B79: 40 | C79: mm | D79: Rd | E79: 1.10 | F79: PolyTop 40 | G79: PolyTop 40mm Rd 1,1 | H79: 0.18 | I79: 3 | J79: 2.1 | K79: 40 | L79: 1.05 | M79: Steenwol | N79: Steenwol 40mm Rd 1,05 | O79: 0.50 | P79: 4 | Q79: 4.3 | R79: 45 | S79: 1.15 | T79: kurk | U79: kurk 45mm Rd 1,15 | V79: 0.22 | W79: 2 | X79: 2.1 | Y79: 45 | Z79: 1.10 | AA79: Houtvezel | AB79: Houtvezel 45mm Rd 1,1 | AC79: 0.42 | AD79: 4 | AE79: 4.6 | AF79: 25 | AG79: 1.10 | AH79: PIR | AI79: PIR 25mm Rd 1,1 | AJ79: 0.53 | AK79: 3 | AL79: 4.4
A80: PolyTop | B80: 50 | C80: mm | D80: Rd | E80: 1.35 | F80: PolyTop 50 | G80: PolyTop 50mm Rd 1,35 | H80: 0.23 | I80: 4 | J80: 2.6 | K80: 50 | L80: 1.30 | M80: Steenwol | N80: Steenwol 50mm Rd 1,3 | O80: 0.63 | P80: 5 | Q80: 5.3 | R80: 55 | S80: 1.4 | T80: kurk | U80: kurk 55mm Rd 1,4 | V80: 0.27 | W80: 3 | X80: 2.5 | Y80: 55 | Z80: 1.35 | AA80: Houtvezel | AB80: Houtvezel 55mm Rd 1,35 | AC80: 0.51 | AD80: 5 | AE80: 5.6 | AF80: 30 | AG80: 1.35 | AH80: PIR | AI80: PIR 30mm Rd 1,35 | AJ80: 0.63 | AK80: 4 | AL80: 5.3
A81: PolyTop | B81: 60 | C81: mm | D81: Rd | E81: 1.65 | F81: PolyTop 60 | G81: PolyTop 60mm Rd 1,65 | H81: 0.28 | I81: 4 | J81: 3.1 | K81: 65 | L81: 1.70 | M81: Steenwol | N81: Steenwol 65mm Rd 1,7 | O81: 0.82 | P81: 7 | Q81: 6.9 | R81: 65 | S81: 1.65 | T81: kurk | U81: kurk 65mm Rd 1,65 | V81: 0.32 | W81: 3 | X81: 3.0 | Y81: 65 | Z81: 1.60 | AA81: Houtvezel | AB81: Houtvezel 65mm Rd 1,6 | AC81: 0.60 | AD81: 6 | AE81: 6.6 | AF81: 35 | AG81: 1.55 | AH81: PIR | AI81: PIR 35mm Rd 1,55 | AJ81: 0.74 | AK81: 5 | AL81: 6.2
A82: PolyTop | B82: 70 | C82: mm | D82: Rd | E82: 1.90 | F82: PolyTop 70 | G82: PolyTop 70mm Rd 1,9 | H82: 0.32 | I82: 5 | J82: 3.6 | K82: 75 | L82: 1.95 | M82: Steenwol | N82: Steenwol 75mm Rd 1,95 | O82: 0.95 | P82: 8 | Q82: 8.0 | R82: 75 | S82: 1.9 | T82: kurk | U82: kurk 75mm Rd 1,9 | V82: 0.37 | W82: 3 | X82: 3.5 | Y82: 75 | Z82: 1.85 | AA82: Houtvezel | AB82: Houtvezel 75mm Rd 1,85 | AC82: 0.69 | AD82: 7 | AE82: 7.6 | AF82: 40 | AG82: 1.80 | AH82: PIR | AI82: PIR 40mm Rd 1,8 | AJ82: 0.84 | AK82: 5 | AL82: 7.1
A83: PolyTop | B83: 80 | C83: mm | D83: Rd | E83: 2.20 | F83: PolyTop 80 | G83: PolyTop 80mm Rd 2,2 | H83: 0.37 | I83: 6 | J83: 4.1 | K83: 85 | L83: 2.20 | M83: Steenwol | N83: Steenwol 85mm Rd 2,2 | O83: 1.07 | P83: 9 | Q83: 9.1 | R83: 85 | S83: 2.15 | T83: kurk | U83: kurk 85mm Rd 2,15 | V83: 0.42 | W83: 4 | X83: 3.9 | Y83: 90 | Z83: 2.25 | AA83: Houtvezel | AB83: Houtvezel 90mm Rd 2,25 | AC83: 0.83 | AD83: 8 | AE83: 9.1 | AF83: 50 | AG83: 2.25 | AH83: PIR | AI83: PIR 50mm Rd 2,25 | AJ83: 1.06 | AK83: 7 | AL83: 8.9
A84: PolyTop | B84: 90 | C84: mm | D84: Rd | E84: 2.50 | F84: PolyTop 90 | G84: PolyTop 90mm Rd 2,5 | H84: 0.41 | I84: 6 | J84: 4.6 | K84: 95 | L84: 2.50 | M84: Steenwol | N84: Steenwol 95mm Rd 2,5 | O84: 1.20 | P84: 10 | Q84: 10.1 | R84: 100 | S84: 2.55 | T84: kurk | U84: kurk 100mm Rd 2,55 | V84: 0.50 | W84: 5 | X84: 4.6 | Y84: 100 | Z84: 2.50 | AA84: Houtvezel | AB84: Houtvezel 100mm Rd 2,5 | AC84: 0.93 | AD84: 9 | AE84: 10.2 | AF84: 55 | AG84: 2.50 | AH84: PIR | AI84: PIR 55mm Rd 2,5 | AJ84: 1.16 | AK84: 7 | AL84: 9.8
A85: PolyTop-HR | B85: 100 | C85: mm | D85: Rd | E85: 3.20 | F85: PolyTop-HR 100 | G85: PolyTop-HR 100mm Rd 3,2 | H85: =($H$6/$G$6)*B85 -> 0.45 | I85: =($I$6/$G$6)*B85 -> 7 | J85: =($J$6/$G$6)*B85 -> 5.0 | K85: 120 | L85: 3.15 | M85: Steenwol | N85: Steenwol 120mm Rd 3,15 | O85: 1.51 | P85: 12 | Q85: 12.8 | R85: 125 | S85: 3.20 | T85: kurk | U85: kurk 125mm Rd 3,2 | V85: 0.62 | W85: 6 | X85: 5.8 | Y85: 130 | Z85: 3.25 | AA85: Houtvezel | AB85: Houtvezel 130mm Rd 3,25 | AC85: 1.20 | AD85: 12 | AE85: 13.2 | AF85: 70 | AG85: 3.15 | AH85: PIR | AI85: PIR 70mm Rd 3,15 | AJ85: 1.48 | AK85: 9 | AL85: 12.5
A86: PolyTop-HR | B86: 110 | C86: mm | D86: Rd | E86: 3.50 | F86: PolyTop-HR 110 | G86: PolyTop-HR 110mm Rd 3,5 | H86: =($H$6/$G$6)*B86 -> 0.49 | I86: =($I$6/$G$6)*B86 -> 8 | J86: =($J$6/$G$6)*B86 -> 5.6 | K86: 135 | L86: 3.55 | M86: Steenwol | N86: Steenwol 135mm Rd 3,55 | O86: 1.70 | P86: 14 | Q86: 14.4 | R86: 140 | S86: 3.55 | T86: kurk | U86: kurk 140mm Rd 3,55 | V86: 0.70 | W86: 6 | X86: 6.5 | Y86: 140 | Z86: 3.50 | AA86: Houtvezel | AB86: Houtvezel 140mm Rd 3,5 | AC86: 1.30 | AD86: 12 | AE86: 14.2 | AF86: 75 | AG86: 3.40 | AH86: PIR | AI86: PIR 75mm Rd 3,4 | AJ86: 1.58 | AK86: 10 | AL86: 13.3
A87: PolyTop-HR | B87: 120 | C87: mm | D87: Rd | E87: 3.85 | F87: PolyTop-HR 120 | G87: PolyTop-HR 120mm Rd 3,85 | H87: =($H$6/$G$6)*B87 -> 0.54 | I87: =($I$6/$G$6)*B87 -> 8 | J87: =($J$6/$G$6)*B87 -> 6.1 | K87: 145 | L87: 3.80 | M87: Steenwol | N87: Steenwol 145mm Rd 3,8 | O87: 1.83 | P87: 15 | Q87: 15.4 | R87: 150 | S87: 3.80 | T87: kurk | U87: kurk 150mm Rd 3,8 | V87: 0.75 | W87: 7 | X87: 7.0 | Y87: 155 | Z87: 3.85 | AA87: Houtvezel | AB87: Houtvezel 155mm Rd 3,85 | AC87: 1.43 | AD87: 14 | AE87: 15.7 | AF87: 85 | AG87: 3.85 | AH87: PIR | AI87: PIR 85mm Rd 3,85 | AJ87: 1.80 | AK87: 11 | AL87: 15.1
A88: PolyTop-HR | B88: 130 | C88: mm | D88: Rd | E88: 4.15 | F88: PolyTop-HR 130 | G88: PolyTop-HR 130mm Rd 4,15 | H88: 0.58 | I88: 9 | J88: 6.6 | K88: 160 | L88: 4.20 | M88: Steenwol | N88: Steenwol 160mm Rd 4,2 | O88: 2.02 | P88: 17 | Q88: 17.0 | R88: 165 | S88: 4.20 | T88: kurk | U88: kurk 165mm Rd 4,2 | V88: 0.82 | W88: 8 | X88: 7.6 | Y88: 165 | Z88: 4.10 | AA88: Houtvezel | AB88: Houtvezel 165mm Rd 4,1 | AC88: 1.53 | AD88: 15 | AE88: 16.8 | AF88: 90 | AG88: 4.05 | AH88: PIR | AI88: PIR 90mm Rd 4,05 | AJ88: 1.90 | AK88: 12 | AL88: 16.0
A89: PolyTop-HR | B89: 140 | C89: mm | D89: Rd | E89: 4.50 | F89: PolyTop-HR 140 | G89: PolyTop-HR 140mm Rd 4,5 | H89: 0.63 | I89: 10 | J89: 7.1 | K89: 170 | L89: 4.45 | M89: Steenwol | N89: Steenwol 170mm Rd 4,45 | O89: 2.14 | P89: 18 | Q89: 18.1 | R89: 175 | S89: 4.45 | T89: kurk | U89: kurk 175mm Rd 4,45 | V89: 0.87 | W89: 8 | X89: 8.1 | Y89: 180 | Z89: 4.50 | AA89: Houtvezel | AB89: Houtvezel 180mm Rd 4,5 | AC89: 1.67 | AD89: 16 | AE89: 18.3 | AF89: 100 | AG89: 4.50 | AH89: PIR | AI89: PIR 100mm Rd 4,5 | AJ89: 2.11 | AK89: 13 | AL89: 17.8
A90: PolyTop-HR | B90: 150 | C90: mm | D90: Rd | E90: 4.80 | F90: PolyTop-HR 150 | G90: PolyTop-HR 150mm Rd 4,8 | H90: 0.67 | I90: 10 | J90: 7.6 | K90: 185 | L90: 4.85 | M90: Steenwol | N90: Steenwol 185mm Rd 4,85 | O90: 2.33 | P90: 19 | Q90: 19.7 | R90: 190 | S90: 4.85 | T90: kurk | U90: kurk 190mm Rd 4,85 | V90: 0.95 | W90: 9 | X90: 8.8 | Y90: 190 | Z90: 4.75 | AA90: Houtvezel | AB90: Houtvezel 190mm Rd 4,75 | AC90: 1.76 | AD90: 17 | AE90: 19.3 | AF90: 105 | AG90: 4.75 | AH90: PIR | AI90: PIR 105mm Rd 4,75 | AJ90: 2.22 | AK90: 14 | AL90: 18.7
A91: PolyTop-HR | B91: 160 | C91: mm | D91: Rd | E91: 5.15 | F91: PolyTop-HR 160 | G91: PolyTop-HR 160mm Rd 5,15 | H91: 0.72 | I91: 11 | J91: 8.1 | K91: 195 | L91: 5.10 | M91: Steenwol | N91: Steenwol 195mm Rd 5,1 | O91: 2.46 | P91: 20 | Q91: 20.8 | R91: 200 | S91: 5.10 | T91: kurk | U91: kurk 200mm Rd 5,1 | V91: 1.00 | W91: 9 | X91: 9.3 | Y91: 205 | Z91: 5.10 | AA91: Houtvezel | AB91: Houtvezel 205mm Rd 5,1 | AC91: 1.90 | AD91: 18 | AE91: 20.8 | AF91: 115 | AG91: 5.20 | AH91: PIR | AI91: PIR 115mm Rd 5,2 | AJ91: 2.43 | AK91: 15 | AL91: 20.5
A92: PolyTop-HR | B92: 170 | C92: mm | D92: Rd | E92: 5.45 | F92: PolyTop-HR 170 | G92: PolyTop-HR 170mm Rd 5,45 | H92: 0.76 | I92: 12 | J92: 8.6 | K92: 210 | L92: 5.50 | M92: Steenwol | N92: Steenwol 210mm Rd 5,5 | O92: 2.65 | P92: 22 | Q92: 22.4 | R92: 215 | S92: 5.50 | T92: kurk | U92: kurk 215mm Rd 5,5 | V92: 1.07 | W92: 10 | X92: 10.0 | Y92: 220 | Z92: 5.50 | AA92: Houtvezel | AB92: Houtvezel 220mm Rd 5,5 | AC92: 2.04 | AD92: 19 | AE92: 22.3 | AF92: 120 | AG92: 5.45 | AH92: PIR | AI92: PIR 120mm Rd 5,45 | AJ92: 2.53 | AK92: 16 | AL92: 21.3
A93: PolyTop-HR | B93: 180 | C93: mm | D93: Rd | E93: 5.80 | F93: PolyTop-HR 180 | G93: PolyTop-HR 180mm Rd 5,8 | H93: 0.81 | I93: 13 | J93: 9.1 | K93: 220 | L93: 5.75 | M93: Steenwol | N93: Steenwol 220mm Rd 5,75 | O93: 2.77 | P93: 23 | Q93: 23.4 | R93: 225 | S93: 5.75 | T93: kurk | U93: kurk 225mm Rd 5,75 | V93: 1.12 | W93: 10 | X93: 10.4 | Y93: 230 | Z93: 5.75 | AA93: Houtvezel | AB93: Houtvezel 230mm Rd 5,75 | AC93: 2.13 | AD93: 20 | AE93: 23.4 | AF93: 130 | AG93: 5.90 | AH93: PIR | AI93: PIR 130mm Rd 5,9 | AJ93: 2.75 | AK93: 17 | AL93: 23.1
A94: PolyTop-HR | B94: 190 | C94: mm | D94: Rd | E94: 6.10 | F94: PolyTop-HR 190 | G94: PolyTop-HR 190mm Rd 6,1 | H94: 0.85 | I94: 13 | J94: 9.6 | K94: 230 | L94: 6.05 | M94: Steenwol | N94: Steenwol 230mm Rd 6,05 | O94: 2.90 | P94: 24 | Q94: 24.5 | R94: 240 | S94: 6.15 | T94: kurk | U94: kurk 240mm Rd 6,15 | V94: 1.20 | W94: 11 | X94: 11.1 | Y94: 245 | Z94: 6.10 | AA94: Houtvezel | AB94: Houtvezel 245mm Rd 6,1 | AC94: 2.27 | AD94: 22 | AE94: 24.9 | AF94: 135 | AG94: 6.10 | AH94: PIR | AI94: PIR 135mm Rd 6,1 | AJ94: 2.85 | AK94: 18 | AL94: 24.0
A95: PolyTop-HR | B95: 200 | C95: mm | D95: Rd | E95: 6.45 | F95: PolyTop-HR 200 | G95: PolyTop-HR 200mm Rd 6,45 | H95: 0.90 | I95: 14 | J95: 10.1 | K95: 245 | L95: 6.40 | M95: Steenwol | N95: Steenwol 245mm Rd 6,4 | O95: 3.09 | P95: 25 | Q95: 26.1 | R95: 255 | S95: 6.50 | T95: kurk | U95: kurk 255mm Rd 6,5 | V95: 1.27 | W95: 12 | X95: 11.8 | Y95: 260 | Z95: 6.50 | AA95: Houtvezel | AB95: Houtvezel 260mm Rd 6,5 | AC95: 2.41 | AD95: 23 | AE95: 26.4 | AF95: 140 | AG95: 6.35 | AH95: PIR | AI95: PIR 140mm Rd 6,35 | AJ95: 2.96 | AK95: 19 | AL95: 24.9
A96: PolyTop-HR | B96: 210 | C96: mm | D96: Rd | E96: 6.75 | F96: PolyTop-HR 210 | G96: PolyTop-HR 210mm Rd 6,75 | H96: 0.94 | I96: 15 | J96: 10.6 | K96: 255 | L96: 6.70 | M96: Steenwol | N96: Steenwol 255mm Rd 6,7 | O96: 3.21 | P96: 26 | Q96: 27.2 | R96: 265 | S96: 6.75 | T96: kurk | U96: kurk 265mm Rd 6,75 | V96: 1.32 | W96: 12 | X96: 12.3 | Y96: 270 | Z96: 6.75 | AA96: Houtvezel | AB96: Houtvezel 270mm Rd 6,75 | AC96: 2.50 | AD96: 24 | AE96: 27.4 | AF96: 150 | AG96: 6.80 | AH96: PIR | AI96: PIR 150mm Rd 6,8 | AJ96: 3.17 | AK96: 20 | AL96: 26.7
A97: PolyTop-HR | B97: 220 | C97: mm | D97: Rd | E97: 7.05 | F97: PolyTop-HR 220 | G97: PolyTop-HR 220mm Rd 7,05 | H97: 0.99 | I97: 15 | J97: 11.1 | K97: 270 | L97: 7.10 | M97: Steenwol | N97: Steenwol 270mm Rd 7,1 | O97: 3.40 | P97: 28 | Q97: 28.8 | R97: 275 | S97: 7.05 | T97: kurk | U97: kurk 275mm Rd 7,05 | V97: 1.37 | W97: 13 | X97: 12.7 | Y97: 280 | Z97: 7.00 | AA97: Houtvezel | AB97: Houtvezel 280mm Rd 7 | AC97: 2.59 | AD97: 25 | AE97: 28.4 | AF97: 155 | AG97: 7.00 | AH97: PIR | AI97: PIR 155mm Rd 7 | AJ97: 3.27 | AK97: 20 | AL97: 27.6
A98: PolyTop-HR | B98: 230 | C98: mm | D98: Rd | E98: 7.40 | F98: PolyTop-HR 230 | G98: PolyTop-HR 230mm Rd 7,4 | H98: 1.03 | I98: 16 | J98: 11.6 | K98: 280 | L98: 7.35 | M98: Steenwol | N98: Steenwol 280mm Rd 7,35 | O98: 3.53 | P98: 29 | Q98: 29.8 | R98: 290 | S98: 7.40 | T98: kurk | U98: kurk 290mm Rd 7,4 | V98: 1.44 | W98: 13 | X98: 13.4 | Y98: 295 | Z98: 7.35 | AA98: Houtvezel | AB98: Houtvezel 295mm Rd 7,35 | AC98: 2.73 | AD98: 26 | AE98: 30.0 | AF98: 165 | AG98: 7.50 | AH98: PIR | AI98: PIR 165mm Rd 7,5 | AJ98: 3.49 | AK98: 22 | AL98: 29.3
A99: PolyTop-HR | B99: 240 | C99: mm | D99: Rd | E99: 7.70 | F99: PolyTop-HR 240 | G99: PolyTop-HR 240mm Rd 7,7 | H99: 1.08 | I99: 17 | J99: 12.1 | K99: 295 | L99: 7.75 | M99: Steenwol | N99: Steenwol 295mm Rd 7,75 | O99: 3.72 | P99: 30 | Q99: 31.4 | R99: 300 | S99: 7.65 | T99: kurk | U99: kurk 300mm Rd 7,65 | V99: 1.49 | W99: 14 | X99: 13.9 | Y99: 310 | Z99: 7.75 | AA99: Houtvezel | AB99: Houtvezel 310mm Rd 7,75 | AC99: 2.87 | AD99: 27 | AE99: 31.5 | AF99: 170 | AG99: 7.70 | AH99: PIR | AI99: PIR 170mm Rd 7,7 | AJ99: 3.59 | AK99: 22 | AL99: 30.2
A100: PolyTop-HR | B100: 250 | C100: mm | D100: Rd | E100: 8.05 | F100: PolyTop-HR 250 | G100: PolyTop-HR 250mm Rd 8,05 | H100: 1.12 | I100: 17 | J100: 12.6 | K100: 305 | L100: 8.00 | M100: Steenwol | N100: Steenwol 305mm Rd 8 | O100: 3.84 | P100: 32 | Q100: 32.5 | R100: 315 | S100: 8.05 | T100: kurk | U100: kurk 315mm Rd 8,05 | V100: 1.57 | W100: 15 | X100: 14.6 | Y100: 320 | Z100: 8.00 | AA100: Houtvezel | AB100: Houtvezel 320mm Rd 8 | AC100: 2.96 | AD100: 28 | AE100: 32.5 | AF100: 175 | AG100: 7.95 | AH100: PIR | AI100: PIR 175mm Rd 7,95 | AJ100: 3.70 | AK100: 23 | AL100: 31.1
A101: PolyTop-HR | B101: 260 | C101: mm | D101: Rd | E101: 8.35 | F101: PolyTop-HR 260 | G101: PolyTop-HR 260mm Rd 8,35 | H101: 1.17 | I101: 18 | J101: 13.1 | K101: 320 | L101: 8.40 | M101: Steenwol | N101: Steenwol 320mm Rd 8,4 | O101: 4.03 | P101: 33 | Q101: 34.1 | R101: 325 | S101: 8.30 | T101: kurk | U101: kurk 325mm Rd 8,3 | V101: 1.62 | W101: 15 | X101: 15.1 | Y101: 335 | Z101: 8.35 | AA101: Houtvezel | AB101: Houtvezel 335mm Rd 8,35 | AC101: 3.10 | AD101: 30 | AE101: 34.0 | AF101: 185 | AG101: 8.40 | AH101: PIR | AI101: PIR 185mm Rd 8,4 | AJ101: 3.91 | AK101: 24 | AL101: 32.9
A102: PolyTop-HR | B102: 270 | C102: mm | D102: Rd | E102: 8.70 | F102: PolyTop-HR 270 | G102: PolyTop-HR 270mm Rd 8,7 | H102: 1.21 | I102: 19 | J102: 13.6 | K102: 330 | L102: 8.65 | M102: Steenwol | N102: Steenwol 330mm Rd 8,65 | O102: 4.16 | P102: 34 | Q102: 35.1 | R102: 340 | S102: 8.70 | T102: kurk | U102: kurk 340mm Rd 8,7 | V102: 1.69 | W102: 16 | X102: 15.8 | Y102: 350 | Z102: 8.75 | AA102: Houtvezel | AB102: Houtvezel 350mm Rd 8,75 | AC102: 3.24 | AD102: 31 | AE102: 35.6 | AF102: 190 | AG102: 8.60 | AH102: PIR | AI102: PIR 190mm Rd 8,6 | AJ102: 4.01 | AK102: 25 | AL102: 33.8
A103: PolyTop-HR | B103: 280 | C103: mm | D103: Rd | E103: 9.00 | F103: PolyTop-HR 280 | G103: PolyTop-HR 280mm Rd 9 | H103: 1.26 | I103: 20 | J103: 14.1 | K103: 345 | L103: 9.05 | M103: Steenwol | N103: Steenwol 345mm Rd 9,05 | O103: 4.35 | P103: 36 | Q103: 36.7 | R103: 350 | S103: 8.95 | T103: kurk | U103: kurk 350mm Rd 8,95 | V103: 1.74 | W103: 16 | X103: 16.2 | Y103: 360 | Z103: 9.00 | AA103: Houtvezel | AB103: Houtvezel 360mm Rd 9 | AC103: 3.33 | AD103: 32 | AE103: 36.6 | AF103: 200 | AG103: 9.05 | AH103: PIR | AI103: PIR 200mm Rd 9,05 | AJ103: 4.22 | AK103: 26 | AL103: 35.6
A104: PolyTop-HR | B104: 40 | C104: mm | D104: Rd | E104: 1.25 | F104: PolyTop-HR 40 | G104: PolyTop-HR 40mm Rd 1,25 | H104: 0.18 | I104: 3 | J104: 2.0 | K104: 50 | L104: 1.30 | M104: Steenwol | N104: Steenwol 50mm Rd 1,3 | O104: 0.63 | P104: 5 | Q104: 5.3 | R104: 50 | S104: 1.25 | T104: kurk | U104: kurk 50mm Rd 1,25 | V104: 0.25 | W104: 2 | X104: 2.3 | Y104: 50 | Z104: 1.25 | AA104: Houtvezel | AB104: Houtvezel 50mm Rd 1,25 | AC104: 0.46 | AD104: 4 | AE104: 5.1 | AF104: 30 | AG104: 1.35 | AH104: PIR | AI104: PIR 30mm Rd 1,35 | AJ104: 0.63 | AK104: 4 | AL104: 5.3
A105: PolyTop-HR | B105: 50 | C105: mm | D105: Rd | E105: 1.60 | F105: PolyTop-HR 50 | G105: PolyTop-HR 50mm Rd 1,6 | H105: 0.22 | I105: 3 | J105: 2.5 | K105: 60 | L105: 1.55 | M105: Steenwol | N105: Steenwol 60mm Rd 1,55 | O105: 0.76 | P105: 6 | Q105: 6.4 | R105: 65 | S105: 1.65 | T105: kurk | U105: kurk 65mm Rd 1,65 | V105: 0.32 | W105: 3 | X105: 3.0 | Y105: 65 | Z105: 1.60 | AA105: Houtvezel | AB105: Houtvezel 65mm Rd 1,6 | AC105: 0.60 | AD105: 6 | AE105: 6.6 | AF105: 35 | AG105: 1.55 | AH105: PIR | AI105: PIR 35mm Rd 1,55 | AJ105: 0.74 | AK105: 5 | AL105: 6.2
A106: PolyTop-HR | B106: 60 | C106: mm | D106: Rd | E106: 1.90 | F106: =A106&" "&B106 -> PolyTop-HR 60 | G106: =A106&" "&B106&C106&" "&D106&" "&E106 -> PolyTop-HR 60mm Rd 1,9 | H106: 0.27 | I106: 4 | J106: 3.0 | K106: 75 | L106: =FLOOR((K106/1000)/$L$9,0.05) -> 1.95 | M106: Steenwol | N106: =M106&" "&K106&C106&" "&D106&" "&L106 -> Steenwol 75mm Rd 1,95 | O106: =($O$8/$N$8)*K106 -> 0.95 | P106: =($P$8/$N$8)*K106 -> 8 | Q106: =($Q$8/$N$8)*K106 -> 8.0 | R106: 75 | S106: =FLOOR((R106/1000)/$S$9,0.05) -> 1.90 | T106: kurk | U106: =T106&" "&R106&C106&" "&D106&" "&S106 -> kurk 75mm Rd 1,9 | V106: =($V$8/$U$8)*R106 -> 0.37 | W106: =($W$8/$U$8)*R106 -> 3 | X106: =($X$8/$U$8)*R106 -> 3.5 | Y106: 75 | Z106: =FLOOR((Y106/1000)/$Z$9,0.05) -> 1.85 | AA106: Houtvezel | AB106: =AA106&" "&Y106&C106&" "&D106&" "&Z106 -> Houtvezel 75mm Rd 1,85 | AC106: =($AC$8/$AB$8)*Y106 -> 0.69 | AD106: =($AD$8/$AB$8)*Y106 -> 7 | AE106: =($AE$8/$AB$8)*Y106 -> 7.6 | AF106: 40 | AG106: =FLOOR((AF106/1000)/$AG$9,0.05) -> 1.80 | AH106: PIR | AI106: =AH106&" "&AF106&C106&" "&D106&" "&AG106 -> PIR 40mm Rd 1,8 | AJ106: =($AJ$8/$AI$8)*AF106 -> 0.84 | AK106: =($AK$8/$AI$8)*AF106 -> 5 | AL106: =($AL$8/$AI$8)*AF106 -> 7.1
A107: PolyTop-HR | B107: 70 | C107: mm | D107: Rd | E107: 2.25 | F107: PolyTop-HR 70 | G107: PolyTop-HR 70mm Rd 2,25 | H107: 0.31 | I107: 5 | J107: 3.5 | K107: 85 | L107: 2.20 | M107: Steenwol | N107: Steenwol 85mm Rd 2,2 | O107: 1.07 | P107: 9 | Q107: 9.1 | R107: 90 | S107: 2.30 | T107: kurk | U107: kurk 90mm Rd 2,3 | V107: 0.45 | W107: 4 | X107: 4.2 | Y107: 90 | Z107: 2.25 | AA107: Houtvezel | AB107: Houtvezel 90mm Rd 2,25 | AC107: 0.83 | AD107: 8 | AE107: 9.1 | AF107: 50 | AG107: 2.25 | AH107: PIR | AI107: PIR 50mm Rd 2,25 | AJ107: 1.06 | AK107: 7 | AL107: 8.9
A108: PolyTop-HR | B108: 80 | C108: mm | D108: Rd | E108: 2.55 | F108: PolyTop-HR 80 | G108: PolyTop-HR 80mm Rd 2,55 | H108: 0.36 | I108: 6 | J108: 4.0 | K108: 95 | L108: 2.50 | M108: Steenwol | N108: Steenwol 95mm Rd 2,5 | O108: 1.20 | P108: 10 | Q108: 10.1 | R108: 100 | S108: 2.55 | T108: kurk | U108: kurk 100mm Rd 2,55 | V108: 0.50 | W108: 5 | X108: 4.6 | Y108: 100 | Z108: 2.50 | AA108: Houtvezel | AB108: Houtvezel 100mm Rd 2,5 | AC108: 0.93 | AD108: 9 | AE108: 10.2 | AF108: 55 | AG108: 2.50 | AH108: PIR | AI108: PIR 55mm Rd 2,5 | AJ108: 1.16 | AK108: 7 | AL108: 9.8
A109: PolyTop-HR | B109: 90 | C109: mm | D109: Rd | E109: 2.90 | F109: PolyTop-HR 90 | G109: PolyTop-HR 90mm Rd 2,9 | H109: 0.40 | I109: 6 | J109: 4.5 | K109: 110 | L109: 2.85 | M109: Steenwol | N109: Steenwol 110mm Rd 2,85 | O109: 1.39 | P109: 11 | Q109: 11.7 | R109: 115 | S109: 2.90 | T109: kurk | U109: kurk 115mm Rd 2,9 | V109: 0.57 | W109: 5 | X109: 5.3 | Y109: 115 | Z109: 2.85 | AA109: Houtvezel | AB109: Houtvezel 115mm Rd 2,85 | AC109: 1.06 | AD109: 10 | AE109: 11.7 | AF109: 65 | AG109: 2.95 | AH109: PIR | AI109: PIR 65mm Rd 2,95 | AJ109: 1.37 | AK109: 9 | AL109: 11.6
A110: PowerTop | B110: 180 | C110: mm | D110: Rd | E110: 5.70 | F110: PowerTop 180 | G110: PowerTop 180mm Rd 5,7 | H110: =($H$7/$G$7)*B110 -> 0.79 | I110: =($I$7/$G$7)*B110 -> 13 | J110: =($J$7/$G$7)*B110 -> 8.1 | K110: 215 | L110: 5.65 | M110: Steenwol | N110: Steenwol 215mm Rd 5,65 | O110: 2.71 | P110: 22 | Q110: 22.9 | R110: 225 | S110: 5.75 | T110: kurk | U110: kurk 225mm Rd 5,75 | V110: 1.12 | W110: 10 | X110: 10.4 | Y110: 230 | Z110: 5.75 | AA110: Houtvezel | AB110: Houtvezel 230mm Rd 5,75 | AC110: 2.13 | AD110: 20 | AE110: 23.4 | AF110: 125 | AG110: 5.65 | AH110: PIR | AI110: PIR 125mm Rd 5,65 | AJ110: 2.64 | AK110: 17 | AL110: 22.2
A111: PowerTop | B111: 185 | C111: mm | D111: Rd | E111: 5.85 | F111: PowerTop 185 | G111: PowerTop 185mm Rd 5,85 | H111: 0.81 | I111: 13 | J111: 8.3 | K111: 225 | L111: 5.90 | M111: Steenwol | N111: Steenwol 225mm Rd 5,9 | O111: 2.84 | P111: 23 | Q111: 24.0 | R111: 230 | S111: 5.85 | T111: kurk | U111: kurk 230mm Rd 5,85 | V111: 1.15 | W111: 11 | X111: 10.7 | Y111: 235 | Z111: 5.85 | AA111: Houtvezel | AB111: Houtvezel 235mm Rd 5,85 | AC111: 2.18 | AD111: 21 | AE111: 23.9 | AF111: 130 | AG111: 5.90 | AH111: PIR | AI111: PIR 130mm Rd 5,9 | AJ111: 2.75 | AK111: 17 | AL111: 23.1
A112: PowerTop | B112: 190 | C112: mm | D112: Rd | E112: 6.00 | F112: PowerTop 190 | G112: PowerTop 190mm Rd 6 | H112: 0.83 | I112: 13 | J112: 8.6 | K112: 230 | L112: 6.05 | M112: Steenwol | N112: Steenwol 230mm Rd 6,05 | O112: 2.90 | P112: 24 | Q112: 24.5 | R112: 235 | S112: 6.00 | T112: kurk | U112: kurk 235mm Rd 6 | V112: 1.17 | W112: 11 | X112: 10.9 | Y112: 240 | Z112: 6.00 | AA112: Houtvezel | AB112: Houtvezel 240mm Rd 6 | AC112: 2.22 | AD112: 21 | AE112: 24.4 | AF112: 130 | AG112: 5.90 | AH112: PIR | AI112: PIR 130mm Rd 5,9 | AJ112: 2.75 | AK112: 17 | AL112: 23.1
A113: PowerTop | B113: 195 | C113: mm | D113: Rd | E113: 6.20 | F113: PowerTop 195 | G113: PowerTop 195mm Rd 6,2 | H113: 0.86 | I113: 14 | J113: 8.8 | K113: 235 | L113: 6.15 | M113: Steenwol | N113: Steenwol 235mm Rd 6,15 | O113: 2.96 | P113: 24 | Q113: 25.0 | R113: 245 | S113: 6.25 | T113: kurk | U113: kurk 245mm Rd 6,25 | V113: 1.22 | W113: 11 | X113: 11.4 | Y113: 250 | Z113: 6.25 | AA113: Houtvezel | AB113: Houtvezel 250mm Rd 6,25 | AC113: 2.31 | AD113: 22 | AE113: 25.4 | AF113: 135 | AG113: 6.10 | AH113: PIR | AI113: PIR 135mm Rd 6,1 | AJ113: 2.85 | AK113: 18 | AL113: 24.0
A114: PowerTop | B114: 200 | C114: mm | D114: Rd | E114: 6.35 | F114: PowerTop 200 | G114: PowerTop 200mm Rd 6,35 | H114: 0.88 | I114: 14 | J114: 9.0 | K114: 240 | L114: 6.30 | M114: Steenwol | N114: Steenwol 240mm Rd 6,3 | O114: 3.03 | P114: 25 | Q114: 25.6 | R114: 250 | S114: 6.40 | T114: kurk | U114: kurk 250mm Rd 6,4 | V114: 1.24 | W114: 12 | X114: 11.6 | Y114: 255 | Z114: 6.35 | AA114: Houtvezel | AB114: Houtvezel 255mm Rd 6,35 | AC114: 2.36 | AD114: 23 | AE114: 25.9 | AF114: 140 | AG114: 6.35 | AH114: PIR | AI114: PIR 140mm Rd 6,35 | AJ114: 2.96 | AK114: 19 | AL114: 24.9
A115: PowerTop | B115: 205 | C115: mm | D115: Rd | E115: 6.50 | F115: PowerTop 205 | G115: PowerTop 205mm Rd 6,5 | H115: 0.90 | I115: 15 | J115: 9.2 | K115: 250 | L115: 6.55 | M115: Steenwol | N115: Steenwol 250mm Rd 6,55 | O115: 3.15 | P115: 26 | Q115: 26.6 | R115: 255 | S115: 6.50 | T115: kurk | U115: kurk 255mm Rd 6,5 | V115: 1.27 | W115: 12 | X115: 11.8 | Y115: 260 | Z115: 6.50 | AA115: Houtvezel | AB115: Houtvezel 260mm Rd 6,5 | AC115: 2.41 | AD115: 23 | AE115: 26.4 | AF115: 145 | AG115: 6.55 | AH115: PIR | AI115: PIR 145mm Rd 6,55 | AJ115: 3.06 | AK115: 19 | AL115: 25.8
A116: PowerTop | B116: 210 | C116: mm | D116: Rd | E116: 6.65 | F116: PowerTop 210 | G116: PowerTop 210mm Rd 6,65 | H116: 0.92 | I116: 15 | J116: 9.5 | K116: 255 | L116: 6.70 | M116: Steenwol | N116: Steenwol 255mm Rd 6,7 | O116: 3.21 | P116: 26 | Q116: 27.2 | R116: 260 | S116: 6.65 | T116: kurk | U116: kurk 260mm Rd 6,65 | V116: 1.29 | W116: 12 | X116: 12.0 | Y116: 265 | Z116: 6.60 | AA116: Houtvezel | AB116: Houtvezel 265mm Rd 6,6 | AC116: 2.45 | AD116: 23 | AE116: 26.9 | AF116: 145 | AG116: 6.55 | AH116: PIR | AI116: PIR 145mm Rd 6,55 | AJ116: 3.06 | AK116: 19 | AL116: 25.8
A117: PowerTop | B117: 215 | C117: mm | D117: Rd | E117: 6.85 | F117: PowerTop 215 | G117: PowerTop 215mm Rd 6,85 | H117: 0.94 | I117: 15 | J117: 9.7 | K117: 260 | L117: 6.80 | M117: Steenwol | N117: Steenwol 260mm Rd 6,8 | O117: 3.28 | P117: 27 | Q117: 27.7 | R117: 270 | S117: 6.90 | T117: kurk | U117: kurk 270mm Rd 6,9 | V117: 1.34 | W117: 13 | X117: 12.5 | Y117: 275 | Z117: 6.85 | AA117: Houtvezel | AB117: Houtvezel 275mm Rd 6,85 | AC117: 2.55 | AD117: 24 | AE117: 27.9 | AF117: 150 | AG117: 6.80 | AH117: PIR | AI117: PIR 150mm Rd 6,8 | AJ117: 3.17 | AK117: 20 | AL117: 26.7
A118: PowerTop | B118: 220 | C118: mm | D118: Rd | E118: 7.00 | F118: PowerTop 220 | G118: PowerTop 220mm Rd 7 | H118: 0.96 | I118: 16 | J118: 9.9 | K118: 265 | L118: 6.95 | M118: Steenwol | N118: Steenwol 265mm Rd 6,95 | O118: 3.34 | P118: 27 | Q118: 28.2 | R118: 275 | S118: 7.05 | T118: kurk | U118: kurk 275mm Rd 7,05 | V118: 1.37 | W118: 13 | X118: 12.7 | Y118: 280 | Z118: 7.00 | AA118: Houtvezel | AB118: Houtvezel 280mm Rd 7 | AC118: 2.59 | AD118: 25 | AE118: 28.4 | AF118: 155 | AG118: 7.00 | AH118: PIR | AI118: PIR 155mm Rd 7 | AJ118: 3.27 | AK118: 20 | AL118: 27.6
A119: PowerTop | B119: 225 | C119: mm | D119: Rd | E119: 7.15 | F119: PowerTop 225 | G119: PowerTop 225mm Rd 7,15 | H119: 0.99 | I119: 16 | J119: 10.1 | K119: 270 | L119: 7.10 | M119: Steenwol | N119: Steenwol 270mm Rd 7,1 | O119: 3.40 | P119: 28 | Q119: 28.8 | R119: 280 | S119: 7.15 | T119: kurk | U119: kurk 280mm Rd 7,15 | V119: 1.39 | W119: 13 | X119: 13.0 | Y119: 285 | Z119: 7.10 | AA119: Houtvezel | AB119: Houtvezel 285mm Rd 7,1 | AC119: 2.64 | AD119: 25 | AE119: 29.0 | AF119: 155 | AG119: 7.00 | AH119: PIR | AI119: PIR 155mm Rd 7 | AJ119: 3.27 | AK119: 20 | AL119: 27.6
A120: PowerTop | B120: 230 | C120: mm | D120: Rd | E120: 7.30 | F120: PowerTop 230 | G120: PowerTop 230mm Rd 7,3 | H120: 1.01 | I120: 16 | J120: 10.4 | K120: 280 | L120: 7.35 | M120: Steenwol | N120: Steenwol 280mm Rd 7,35 | O120: 3.53 | P120: 29 | Q120: 29.8 | R120: 285 | S120: 7.30 | T120: kurk | U120: kurk 285mm Rd 7,3 | V120: 1.42 | W120: 13 | X120: 13.2 | Y120: 290 | Z120: 7.25 | AA120: Houtvezel | AB120: Houtvezel 290mm Rd 7,25 | AC120: 2.68 | AD120: 26 | AE120: 29.5 | AF120: 160 | AG120: 7.25 | AH120: PIR | AI120: PIR 160mm Rd 7,25 | AJ120: 3.38 | AK120: 21 | AL120: 28.5
A121: PowerTop | B121: 235 | C121: mm | D121: Rd | E121: 7.45 | F121: PowerTop 235 | G121: PowerTop 235mm Rd 7,45 | H121: 1.03 | I121: 17 | J121: 10.6 | K121: 285 | L121: 7.50 | M121: Steenwol | N121: Steenwol 285mm Rd 7,5 | O121: 3.59 | P121: 29 | Q121: 30.4 | R121: 290 | S121: 7.40 | T121: kurk | U121: kurk 290mm Rd 7,4 | V121: 1.44 | W121: 13 | X121: 13.4 | Y121: 300 | Z121: 7.50 | AA121: Houtvezel | AB121: Houtvezel 300mm Rd 7,5 | AC121: 2.78 | AD121: 27 | AE121: 30.5 | AF121: 165 | AG121: 7.50 | AH121: PIR | AI121: PIR 165mm Rd 7,5 | AJ121: 3.49 | AK121: 22 | AL121: 29.3
A122: PowerTop | B122: 240 | C122: mm | D122: Rd | E122: 7.65 | F122: PowerTop 240 | G122: PowerTop 240mm Rd 7,65 | H122: 1.05 | I122: 17 | J122: 10.8 | K122: 290 | L122: 7.60 | M122: Steenwol | N122: Steenwol 290mm Rd 7,6 | O122: 3.66 | P122: 30 | Q122: 30.9 | R122: 300 | S122: 7.65 | T122: kurk | U122: kurk 300mm Rd 7,65 | V122: 1.49 | W122: 14 | X122: 13.9 | Y122: 305 | Z122: 7.60 | AA122: Houtvezel | AB122: Houtvezel 305mm Rd 7,6 | AC122: 2.82 | AD122: 27 | AE122: 31.0 | AF122: 170 | AG122: 7.70 | AH122: PIR | AI122: PIR 170mm Rd 7,7 | AJ122: 3.59 | AK122: 22 | AL122: 30.2
A123: PowerTop | B123: 245 | C123: mm | D123: Rd | E123: 7.80 | F123: PowerTop 245 | G123: PowerTop 245mm Rd 7,8 | H123: 1.07 | I123: 17 | J123: 11.0 | K123: 295 | L123: 7.75 | M123: Steenwol | N123: Steenwol 295mm Rd 7,75 | O123: 3.72 | P123: 30 | Q123: 31.4 | R123: 305 | S123: 7.80 | T123: kurk | U123: kurk 305mm Rd 7,8 | V123: 1.52 | W123: 14 | X123: 14.1 | Y123: 315 | Z123: 7.85 | AA123: Houtvezel | AB123: Houtvezel 315mm Rd 7,85 | AC123: 2.92 | AD123: 28 | AE123: 32.0 | AF123: 170 | AG123: 7.70 | AH123: PIR | AI123: PIR 170mm Rd 7,7 | AJ123: 3.59 | AK123: 22 | AL123: 30.2
A124: PowerTop | B124: 250 | C124: mm | D124: Rd | E124: 7.95 | F124: PowerTop 250 | G124: PowerTop 250mm Rd 7,95 | H124: 1.10 | I124: 18 | J124: 11.3 | K124: 305 | L124: 8.00 | M124: Steenwol | N124: Steenwol 305mm Rd 8 | O124: 3.84 | P124: 32 | Q124: 32.5 | R124: 310 | S124: 7.90 | T124: kurk | U124: kurk 310mm Rd 7,9 | V124: 1.54 | W124: 14 | X124: 14.4 | Y124: 230 | Z124: 5.75 | AA124: Houtvezel | AB124: Houtvezel 230mm Rd 5,75 | AC124: 2.13 | AD124: 20 | AE124: 23.4 | AF124: 175 | AG124: 7.95 | AH124: PIR | AI124: PIR 175mm Rd 7,95 | AJ124: 3.70 | AK124: 23 | AL124: 31.1
A125: PowerTop | B125: 255 | C125: mm | D125: Rd | E125: 8.10 | F125: PowerTop 255 | G125: PowerTop 255mm Rd 8,1 | H125: 1.12 | I125: 18 | J125: 11.5 | K125: 310 | L125: 8.15 | M125: Steenwol | N125: Steenwol 310mm Rd 8,15 | O125: 3.91 | P125: 32 | Q125: 33.0 | R125: 315 | S125: 8.05 | T125: kurk | U125: kurk 315mm Rd 8,05 | V125: 1.57 | W125: 15 | X125: 14.6 | Y125: 325 | Z125: 8.10 | AA125: Houtvezel | AB125: Houtvezel 325mm Rd 8,1 | AC125: 3.01 | AD125: 29 | AE125: 33.0 | AF125: 180 | AG125: 8.15 | AH125: PIR | AI125: PIR 180mm Rd 8,15 | AJ125: 3.80 | AK125: 24 | AL125: 32.0
A126: PowerTop | B126: 260 | C126: mm | D126: Rd | E126: 8.30 | F126: PowerTop 260 | G126: PowerTop 260mm Rd 8,3 | H126: 1.14 | I126: 18 | J126: 11.7 | K126: 315 | L126: 8.25 | M126: Steenwol | N126: Steenwol 315mm Rd 8,25 | O126: 3.97 | P126: 33 | Q126: 33.5 | R126: 325 | S126: 8.30 | T126: kurk | U126: kurk 325mm Rd 8,3 | V126: 1.62 | W126: 15 | X126: 15.1 | Y126: 335 | Z126: 8.35 | AA126: Houtvezel | AB126: Houtvezel 335mm Rd 8,35 | AC126: 3.10 | AD126: 30 | AE126: 34.0 | AF126: 185 | AG126: 8.40 | AH126: PIR | AI126: PIR 185mm Rd 8,4 | AJ126: 3.91 | AK126: 24 | AL126: 32.9
A127: PowerTop | B127: 265 | C127: mm | D127: Rd | E127: 8.45 | F127: PowerTop 265 | G127: PowerTop 265mm Rd 8,45 | H127: 1.16 | I127: 19 | J127: 11.9 | K127: 320 | L127: 8.40 | M127: Steenwol | N127: Steenwol 320mm Rd 8,4 | O127: 4.03 | P127: 33 | Q127: 34.1 | R127: 330 | S127: 8.45 | T127: kurk | U127: kurk 330mm Rd 8,45 | V127: 1.64 | W127: 15 | X127: 15.3 | Y127: 340 | Z127: 8.50 | AA127: Houtvezel | AB127: Houtvezel 340mm Rd 8,5 | AC127: 3.15 | AD127: 30 | AE127: 34.5 | AF127: 185 | AG127: 8.40 | AH127: PIR | AI127: PIR 185mm Rd 8,4 | AJ127: 3.91 | AK127: 24 | AL127: 32.9
A128: PowerTop | B128: 270 | C128: mm | D128: Rd | E128: 8.60 | F128: PowerTop 270 | G128: PowerTop 270mm Rd 8,6 | H128: 1.18 | I128: 19 | J128: 12.2 | K128: 325 | L128: 8.55 | M128: Steenwol | N128: Steenwol 325mm Rd 8,55 | O128: 4.10 | P128: 34 | Q128: 34.6 | R128: 335 | S128: 8.55 | T128: kurk | U128: kurk 335mm Rd 8,55 | V128: 1.67 | W128: 16 | X128: 15.5 | Y128: 345 | Z128: 8.60 | AA128: Houtvezel | AB128: Houtvezel 345mm Rd 8,6 | AC128: 3.19 | AD128: 31 | AE128: 35.0 | AF128: 190 | AG128: 8.60 | AH128: PIR | AI128: PIR 190mm Rd 8,6 | AJ128: 4.01 | AK128: 25 | AL128: 33.8
A129: PowerTop | B129: 275 | C129: mm | D129: Rd | E129: 8.75 | F129: PowerTop 275 | G129: PowerTop 275mm Rd 8,75 | H129: 1.21 | I129: 19 | J129: 12.4 | K129: 335 | L129: 8.80 | M129: Steenwol | N129: Steenwol 335mm Rd 8,8 | O129: 4.22 | P129: 35 | Q129: 35.7 | R129: 340 | S129: 8.70 | T129: kurk | U129: kurk 340mm Rd 8,7 | V129: 1.69 | W129: 16 | X129: 15.8 | Y129: 350 | Z129: 8.75 | AA129: Houtvezel | AB129: Houtvezel 350mm Rd 8,75 | AC129: 3.24 | AD129: 31 | AE129: 35.6 | AF129: 195 | AG129: 8.85 | AH129: PIR | AI129: PIR 195mm Rd 8,85 | AJ129: 4.12 | AK129: 26 | AL129: 34.7
A130: PowerTop | B130: 280 | C130: mm | D130: Rd | E130: 8.90 | F130: PowerTop 280 | G130: PowerTop 280mm Rd 8,9 | H130: 1.23 | I130: 20 | J130: 12.6 | K130: 340 | L130: 8.90 | M130: Steenwol | N130: Steenwol 340mm Rd 8,9 | O130: 4.29 | P130: 35 | Q130: 36.2 | R130: 350 | S130: 8.95 | T130: kurk | U130: kurk 350mm Rd 8,95 | V130: 1.74 | W130: 16 | X130: 16.2 | Y130: 355 | Z130: 8.85 | AA130: Houtvezel | AB130: Houtvezel 355mm Rd 8,85 | AC130: 3.29 | AD130: 31 | AE130: 36.1 | AF130: 195 | AG130: 8.85 | AH130: PIR | AI130: PIR 195mm Rd 8,85 | AJ130: 4.12 | AK130: 26 | AL130: 34.7
A131: PowerTop | B131: 285 | C131: mm | D131: Rd | E131: 9.10 | F131: PowerTop 285 | G131: PowerTop 285mm Rd 9,1 | H131: 1.25 | I131: 20 | J131: 12.9 | K131: 345 | L131: 9.05 | M131: Steenwol | N131: Steenwol 345mm Rd 9,05 | O131: 4.35 | P131: 36 | Q131: 36.7 | R131: 355 | S131: 9.10 | T131: kurk | U131: kurk 355mm Rd 9,1 | V131: 1.77 | W131: 16 | X131: 16.5 | Y131: 365 | Z131: 9.10 | AA131: Houtvezel | AB131: Houtvezel 365mm Rd 9,1 | AC131: 3.38 | AD131: 32 | AE131: 37.1 | AF131: 200 | AG131: 9.05 | AH131: PIR | AI131: PIR 200mm Rd 9,05 | AJ131: 4.22 | AK131: 26 | AL131: 35.6
A132: PowerTop | B132: 290 | C132: mm | D132: Rd | E132: 9.25 | F132: PowerTop 290 | G132: PowerTop 290mm Rd 9,25 | H132: 1.27 | I132: 21 | J132: 13.1 | K132: 350 | L132: 9.20 | M132: Steenwol | N132: Steenwol 350mm Rd 9,2 | O132: 4.41 | P132: 36 | Q132: 37.3 | R132: 360 | S132: 9.20 | T132: kurk | U132: kurk 360mm Rd 9,2 | V132: 1.79 | W132: 17 | X132: 16.7 | Y132: 370 | Z132: 9.25 | AA132: Houtvezel | AB132: Houtvezel 370mm Rd 9,25 | AC132: 3.43 | AD132: 33 | AE132: 37.6 | AF132: 205 | AG132: 9.30 | AH132: PIR | AI132: PIR 205mm Rd 9,3 | AJ132: 4.33 | AK132: 27 | AL132: 36.5
A133: PowerTop | B133: 295 | C133: mm | D133: Rd | E133: 9.40 | F133: PowerTop 295 | G133: PowerTop 295mm Rd 9,4 | H133: 1.29 | I133: 21 | J133: 13.3 | K133: 360 | L133: 9.45 | M133: Steenwol | N133: Steenwol 360mm Rd 9,45 | O133: 4.54 | P133: 37 | Q133: 38.3 | R133: 370 | S133: 9.45 | T133: kurk | U133: kurk 370mm Rd 9,45 | V133: 1.84 | W133: 17 | X133: 17.1 | Y133: 375 | Z133: 9.35 | AA133: Houtvezel | AB133: Houtvezel 375mm Rd 9,35 | AC133: 3.47 | AD133: 33 | AE133: 38.1 | AF133: 205 | AG133: 9.30 | AH133: PIR | AI133: PIR 205mm Rd 9,3 | AJ133: 4.33 | AK133: 27 | AL133: 36.5
A134: PowerTop | B134: 300 | C134: mm | D134: Rd | E134: 9.55 | F134: PowerTop 300 | G134: PowerTop 300mm Rd 9,55 | H134: 1.32 | I134: 21 | J134: 13.5 | K134: 365 | L134: 9.60 | M134: Steenwol | N134: Steenwol 365mm Rd 9,6 | O134: 4.60 | P134: 38 | Q134: 38.9 | R134: 375 | S134: 9.60 | T134: kurk | U134: kurk 375mm Rd 9,6 | V134: 1.87 | W134: 17 | X134: 17.4 | Y134: 385 | Z134: 9.60 | AA134: Houtvezel | AB134: Houtvezel 385mm Rd 9,6 | AC134: 3.56 | AD134: 34 | AE134: 39.1 | AF134: 210 | AG134: 9.50 | AH134: PIR | AI134: PIR 210mm Rd 9,5 | AJ134: 4.44 | AK134: 28 | AL134: 37.4
A135: PowerTop | B135: 305 | C135: mm | D135: Rd | E135: 9.75 | F135: PowerTop 305 | G135: PowerTop 305mm Rd 9,75 | H135: 1.34 | I135: 22 | J135: 13.8 | K135: 370 | L135: 9.70 | M135: Steenwol | N135: Steenwol 370mm Rd 9,7 | O135: 4.66 | P135: 38 | Q135: 39.4 | R135: 380 | S135: 9.70 | T135: kurk | U135: kurk 380mm Rd 9,7 | V135: 1.89 | W135: 18 | X135: 17.6 | Y135: 390 | Z135: 9.75 | AA135: Houtvezel | AB135: Houtvezel 390mm Rd 9,75 | AC135: 3.61 | AD135: 35 | AE135: 39.6 | AF135: 215 | AG135: 9.75 | AH135: PIR | AI135: PIR 215mm Rd 9,75 | AJ135: 4.54 | AK135: 28 | AL135: 38.2
A136: PowerTop | B136: 310 | C136: mm | D136: Rd | E136: 9.90 | F136: PowerTop 310 | G136: PowerTop 310mm Rd 9,9 | H136: 1.36 | I136: 22 | J136: 14.0 | K136: 375 | L136: 9.85 | M136: Steenwol | N136: Steenwol 375mm Rd 9,85 | O136: 4.73 | P136: 39 | Q136: 39.9 | R136: 385 | S136: 9.85 | T136: kurk | U136: kurk 385mm Rd 9,85 | V136: 1.92 | W136: 18 | X136: 17.8 | Y136: 395 | Z136: 9.85 | AA136: Houtvezel | AB136: Houtvezel 395mm Rd 9,85 | AC136: 3.66 | AD136: 35 | AE136: 40.1 | AF136: 220 | AG136: 10.00 | AH136: PIR | AI136: PIR 220mm Rd 10 | AJ136: 4.65 | AK136: 29 | AL136: 39.1
A137: PowerTop | B137: 315 | C137: mm | D137: Rd | E137: 10.05 | F137: PowerTop 315 | G137: PowerTop 315mm Rd 10,05 | H137: 1.38 | I137: 22 | J137: 14.2 | K137: 380 | L137: 10.00 | M137: Steenwol | N137: Steenwol 380mm Rd 10 | O137: 4.79 | P137: 39 | Q137: 40.5 | R137: 395 | S137: 10.10 | T137: kurk | U137: kurk 395mm Rd 10,1 | V137: 1.97 | W137: 18 | X137: 18.3 | Y137: 405 | Z137: 10.10 | AA137: Houtvezel | AB137: Houtvezel 405mm Rd 10,1 | AC137: 3.75 | AD137: 36 | AE137: 41.1 | AF137: 220 | AG137: 10.00 | AH137: PIR | AI137: PIR 220mm Rd 10 | AJ137: 4.65 | AK137: 29 | AL137: 39.1
A138: PowerTop | B138: 320 | C138: mm | D138: Rd | E138: 10.20 | F138: =A138&" "&B138 -> PowerTop 320 | G138: =A138&" "&B138&C138&" "&D138&" "&E138 -> PowerTop 320mm Rd 10,2 | H138: 1.40 | I138: 23 | J138: 14.4 | K138: 390 | L138: =FLOOR((K138/1000)/$L$9,0.05) -> 10.25 | M138: Steenwol | N138: =M138&" "&K138&C138&" "&D138&" "&L138 -> Steenwol 390mm Rd 10,25 | O138: =($O$8/$N$8)*K138 -> 4.92 | P138: =($P$8/$N$8)*K138 -> 40 | Q138: =($Q$8/$N$8)*K138 -> 41.5 | R138: 400 | S138: =FLOOR((R138/1000)/$S$9,0.05) -> 10.25 | T138: kurk | U138: =T138&" "&R138&C138&" "&D138&" "&S138 -> kurk 400mm Rd 10,25 | V138: =($V$8/$U$8)*R138 -> 1.99 | W138: =($W$8/$U$8)*R138 -> 19 | X138: =($X$8/$U$8)*R138 -> 18.5 | Y138: 410 | Z138: =FLOOR((Y138/1000)/$Z$9,0.05) -> 10.25 | AA138: Houtvezel | AB138: =AA138&" "&Y138&C138&" "&D138&" "&Z138 -> Houtvezel 410mm Rd 10,25 | AC138: =($AC$8/$AB$8)*Y138 -> 3.80 | AD138: =($AD$8/$AB$8)*Y138 -> 36 | AE138: =($AE$8/$AB$8)*Y138 -> 41.7 | AF138: 225 | AG138: =FLOOR((AF138/1000)/$AG$9,0.05) -> 10.20 | AH138: PIR | AI138: =AH138&" "&AF138&C138&" "&D138&" "&AG138 -> PIR 225mm Rd 10,2 | AJ138: =($AJ$8/$AI$8)*AF138 -> 4.75 | AK138: =($AK$8/$AI$8)*AF138 -> 30 | AL138: =($AL$8/$AI$8)*AF138 -> 40.0
A139: PowerTop | B139: 325 | C139: mm | D139: Rd | E139: 10.35 | F139: PowerTop 325 | G139: PowerTop 325mm Rd 10,35 | H139: 1.43 | I139: 23 | J139: 14.7 | K139: 395 | L139: 10.35 | M139: Steenwol | N139: Steenwol 395mm Rd 10,35 | O139: 4.98 | P139: 41 | Q139: 42.1 | R139: 405 | S139: 10.35 | T139: kurk | U139: kurk 405mm Rd 10,35 | V139: 2.02 | W139: 19 | X139: 18.8 | Y139: 415 | Z139: 10.35 | AA139: Houtvezel | AB139: Houtvezel 415mm Rd 10,35 | AC139: 3.84 | AD139: 37 | AE139: 42.2 | AF139: 230 | AG139: 10.45 | AH139: PIR | AI139: PIR 230mm Rd 10,45 | AJ139: 4.86 | AK139: 30 | AL139: 40.9
A140: PowerTop | B140: 330 | C140: mm | D140: Rd | E140: 10.55 | F140: PowerTop 330 | G140: PowerTop 330mm Rd 10,55 | H140: 1.45 | I140: 23 | J140: 14.9 | K140: 400 | L140: 10.50 | M140: Steenwol | N140: Steenwol 400mm Rd 10,5 | O140: 5.04 | P140: 41 | Q140: 42.6 | R140: 410 | S140: 10.50 | T140: kurk | U140: kurk 410mm Rd 10,5 | V140: 2.04 | W140: 19 | X140: 19.0 | Y140: 425 | Z140: 10.60 | AA140: Houtvezel | AB140: Houtvezel 425mm Rd 10,6 | AC140: 3.93 | AD140: 38 | AE140: 43.2 | AF140: 230 | AG140: 10.45 | AH140: PIR | AI140: PIR 230mm Rd 10,45 | AJ140: 4.86 | AK140: 30 | AL140: 40.9
A141: PowerTop | B141: 335 | C141: mm | D141: Rd | E141: 10.70 | F141: PowerTop 335 | G141: PowerTop 335mm Rd 10,7 | H141: 1.47 | I141: 24 | J141: 15.1 | K141: 405 | L141: 10.65 | M141: Steenwol | N141: Steenwol 405mm Rd 10,65 | O141: 5.10 | P141: 42 | Q141: 43.1 | R141: 420 | S141: 10.75 | T141: kurk | U141: kurk 420mm Rd 10,75 | V141: 2.09 | W141: 19 | X141: 19.5 | Y141: 430 | Z141: 10.75 | AA141: Houtvezel | AB141: Houtvezel 430mm Rd 10,75 | AC141: 3.98 | AD141: 38 | AE141: 43.7 | AF141: 235 | AG141: 10.65 | AH141: PIR | AI141: PIR 235mm Rd 10,65 | AJ141: 4.96 | AK141: 31 | AL141: 41.8
A142: PowerTop | B142: 340 | C142: mm | D142: Rd | E142: 10.85 | F142: PowerTop 340 | G142: PowerTop 340mm Rd 10,85 | H142: 1.49 | I142: 24 | J142: 15.3 | K142: 415 | L142: 10.90 | M142: Steenwol | N142: Steenwol 415mm Rd 10,9 | O142: 5.23 | P142: 43 | Q142: 44.2 | R142: 425 | S142: 10.85 | T142: kurk | U142: kurk 425mm Rd 10,85 | V142: 2.12 | W142: 20 | X142: 19.7 | Y142: 435 | Z142: 10.85 | AA142: Houtvezel | AB142: Houtvezel 435mm Rd 10,85 | AC142: 4.03 | AD142: 38 | AE142: 44.2 | AF142: 240 | AG142: 10.90 | AH142: PIR | AI142: PIR 240mm Rd 10,9 | AJ142: 5.07 | AK142: 32 | AL142: 42.7
A143: PowerTop | B143: 345 | C143: mm | D143: Rd | E143: 11.00 | F143: PowerTop 345 | G143: PowerTop 345mm Rd 11 | H143: 1.51 | I143: 24 | J143: 15.6 | K143: 420 | L143: 11.05 | M143: Steenwol | N143: Steenwol 420mm Rd 11,05 | O143: 5.29 | P143: 43 | Q143: 44.7 | R143: 430 | S143: 11.00 | T143: kurk | U143: kurk 430mm Rd 11 | V143: 2.14 | W143: 20 | X143: 19.9 | Y143: 440 | Z143: 11.00 | AA143: Houtvezel | AB143: Houtvezel 440mm Rd 11 | AC143: 4.07 | AD143: 39 | AE143: 44.7 | AF143: 240 | AG143: 10.90 | AH143: PIR | AI143: PIR 240mm Rd 10,9 | AJ143: 5.07 | AK143: 32 | AL143: 42.7
A144: PowerTop | B144: 350 | C144: mm | D144: Rd | E144: 11.20 | F144: PowerTop 350 | G144: PowerTop 350mm Rd 11,2 | H144: 1.53 | I144: 25 | J144: 15.8 | K144: 425 | L144: 11.15 | M144: Steenwol | N144: Steenwol 425mm Rd 11,15 | O144: 5.36 | P144: 44 | Q144: 45.3 | R144: 440 | S144: 11.25 | T144: kurk | U144: kurk 440mm Rd 11,25 | V144: 2.19 | W144: 20 | X144: 20.4 | Y144: 450 | Z144: 11.25 | AA144: Houtvezel | AB144: Houtvezel 450mm Rd 11,25 | AC144: 4.17 | AD144: 40 | AE144: 45.7 | AF144: 245 | AG144: 11.10 | AH144: PIR | AI144: PIR 245mm Rd 11,1 | AJ144: 5.17 | AK144: 32 | AL144: 43.6
A145: PowerTop | B145: 355 | C145: mm | D145: Rd | E145: 11.35 | F145: PowerTop 355 | G145: PowerTop 355mm Rd 11,35 | H145: 1.56 | I145: 25 | J145: 16.0 | K145: 430 | L145: 11.30 | M145: Steenwol | N145: Steenwol 430mm Rd 11,3 | O145: 5.42 | P145: 44 | Q145: 45.8 | R145: 445 | S145: 11.40 | T145: kurk | U145: kurk 445mm Rd 11,4 | V145: 2.22 | W145: 21 | X145: 20.6 | Y145: 455 | Z145: 11.35 | AA145: Houtvezel | AB145: Houtvezel 455mm Rd 11,35 | AC145: 4.21 | AD145: 40 | AE145: 46.2 | AF145: 250 | AG145: 11.35 | AH145: PIR | AI145: PIR 250mm Rd 11,35 | AJ145: 5.28 | AK145: 33 | AL145: 44.5
A146: PowerTop | B146: 360 | C146: mm | D146: Rd | E146: 11.50 | F146: PowerTop 360 | G146: PowerTop 360mm Rd 11,5 | H146: 1.58 | I146: 25 | J146: 16.2 | K146: 440 | L146: 11.55 | M146: Steenwol | N146: Steenwol 440mm Rd 11,55 | O146: 5.55 | P146: 45 | Q146: 46.9 | R146: 450 | S146: 11.50 | T146: kurk | U146: kurk 450mm Rd 11,5 | V146: 2.24 | W146: 21 | X146: 20.9 | Y146: 460 | Z146: 11.50 | AA146: Houtvezel | AB146: Houtvezel 460mm Rd 11,5 | AC146: 4.26 | AD146: 41 | AE146: 46.7 | AF146: 255 | AG146: 11.55 | AH146: PIR | AI146: PIR 255mm Rd 11,55 | AJ146: 5.39 | AK146: 34 | AL146: 45.4
A147: PowerTop | B147: 365 | C147: mm | D147: Rd | E147: 11.65 | F147: PowerTop 365 | G147: PowerTop 365mm Rd 11,65 | H147: 1.60 | I147: 26 | J147: 16.5 | K147: 445 | L147: 11.70 | M147: Steenwol | N147: Steenwol 445mm Rd 11,7 | O147: 5.61 | P147: 46 | Q147: 47.4 | R147: 455 | S147: 11.65 | T147: kurk | U147: kurk 455mm Rd 11,65 | V147: 2.27 | W147: 21 | X147: 21.1 | Y147: 465 | Z147: 11.60 | AA147: Houtvezel | AB147: Houtvezel 465mm Rd 11,6 | AC147: 4.30 | AD147: 41 | AE147: 47.2 | AF147: 255 | AG147: 11.55 | AH147: PIR | AI147: PIR 255mm Rd 11,55 | AJ147: 5.39 | AK147: 34 | AL147: 45.4
A148: PowerTop | B148: 370 | C148: mm | D148: Rd | E148: 11.85 | F148: PowerTop 370 | G148: PowerTop 370mm Rd 11,85 | H148: 1.62 | I148: 26 | J148: 16.7 | K148: 450 | L148: 11.80 | M148: Steenwol | N148: Steenwol 450mm Rd 11,8 | O148: 5.67 | P148: 47 | Q148: 47.9 | R148: 465 | S148: 11.90 | T148: kurk | U148: kurk 465mm Rd 11,9 | V148: 2.32 | W148: 22 | X148: 21.5 | Y148: 475 | Z148: 11.85 | AA148: Houtvezel | AB148: Houtvezel 475mm Rd 11,85 | AC148: 4.40 | AD148: 42 | AE148: 48.3 | AF148: 260 | AG148: 11.80 | AH148: PIR | AI148: PIR 260mm Rd 11,8 | AJ148: 5.49 | AK148: 34 | AL148: 46.2
A149: PowerTop | B149: 375 | C149: mm | D149: Rd | E149: 12.00 | F149: PowerTop 375 | G149: PowerTop 375mm Rd 12 | H149: 1.64 | I149: 27 | J149: 16.9 | K149: 455 | L149: 11.95 | M149: Steenwol | N149: Steenwol 455mm Rd 11,95 | O149: 5.73 | P149: 47 | Q149: 48.5 | R149: 470 | S149: 12.05 | T149: kurk | U149: kurk 470mm Rd 12,05 | V149: 2.34 | W149: 22 | X149: 21.8 | Y149: 480 | Z149: 12.00 | AA149: Houtvezel | AB149: Houtvezel 480mm Rd 12 | AC149: 4.44 | AD149: 42 | AE149: 48.8 | AF149: 265 | AG149: 12.00 | AH149: PIR | AI149: PIR 265mm Rd 12 | AJ149: 5.60 | AK149: 35 | AL149: 47.1
A150: PowerTop | B150: 380 | C150: mm | D150: Rd | E150: 12.15 | F150: PowerTop 380 | G150: PowerTop 380mm Rd 12,15 | H150: 1.67 | I150: 27 | J150: 17.1 | K150: 460 | L150: 12.10 | M150: Steenwol | N150: Steenwol 460mm Rd 12,1 | O150: 5.80 | P150: 48 | Q150: 49.0 | R150: 475 | S150: 12.15 | T150: kurk | U150: kurk 475mm Rd 12,15 | V150: 2.37 | W150: 22 | X150: 22.0 | Y150: 485 | Z150: 12.10 | AA150: Houtvezel | AB150: Houtvezel 485mm Rd 12,1 | AC150: 4.49 | AD150: 43 | AE150: 49.3 | AF150: 265 | AG150: 12.00 | AH150: PIR | AI150: PIR 265mm Rd 12 | AJ150: 5.60 | AK150: 35 | AL150: 47.1
A151: PowerTop | B151: 385 | C151: mm | D151: Rd | E151: 12.30 | F151: PowerTop 385 | G151: PowerTop 385mm Rd 12,3 | H151: 1.69 | I151: 27 | J151: 17.4 | K151: 470 | L151: 12.35 | M151: Steenwol | N151: Steenwol 470mm Rd 12,35 | O151: 5.92 | P151: 49 | Q151: 50.1 | R151: 480 | S151: 12.30 | T151: kurk | U151: kurk 480mm Rd 12,3 | V151: 2.39 | W151: 22 | X151: 22.2 | Y151: 495 | Z151: 12.35 | AA151: Houtvezel | AB151: Houtvezel 495mm Rd 12,35 | AC151: 4.58 | AD151: 44 | AE151: 50.3 | AF151: 270 | AG151: 12.25 | AH151: PIR | AI151: PIR 270mm Rd 12,25 | AJ151: 5.70 | AK151: 36 | AL151: 48.0
A152: PowerTop | B152: 390 | C152: mm | D152: Rd | E152: 12.45 | F152: PowerTop 390 | G152: PowerTop 390mm Rd 12,45 | H152: 1.71 | I152: 28 | J152: 17.6 | K152: 475 | L152: 12.50 | M152: Steenwol | N152: Steenwol 475mm Rd 12,5 | O152: 5.99 | P152: 49 | Q152: 50.6 | R152: 485 | S152: 12.40 | T152: kurk | U152: kurk 485mm Rd 12,4 | V152: 2.42 | W152: 22 | X152: 22.5 | Y152: 500 | Z152: 12.50 | AA152: Houtvezel | AB152: Houtvezel 500mm Rd 12,5 | AC152: 4.63 | AD152: 44 | AE152: 50.8 | AF152: 275 | AG152: 12.50 | AH152: PIR | AI152: PIR 275mm Rd 12,5 | AJ152: 5.81 | AK152: 36 | AL152: 48.9
A153: PowerTop | B153: 395 | C153: mm | D153: Rd | E153: 12.65 | F153: PowerTop 395 | G153: PowerTop 395mm Rd 12,65 | H153: 1.73 | I153: 28 | J153: 17.8 | K153: 480 | L153: 12.60 | M153: Steenwol | N153: Steenwol 480mm Rd 12,6 | O153: 6.05 | P153: 50 | Q153: 51.1 | R153: 495 | S153: 12.65 | T153: kurk | U153: kurk 495mm Rd 12,65 | V153: 2.46 | W153: 23 | X153: 22.9 | Y153: 505 | Z153: 12.60 | AA153: Houtvezel | AB153: Houtvezel 505mm Rd 12,6 | AC153: 4.68 | AD153: 45 | AE153: 51.3 | AF153: 280 | AG153: 12.70 | AH153: PIR | AI153: PIR 280mm Rd 12,7 | AJ153: 5.91 | AK153: 37 | AL153: 49.8
A154: PowerTop | B154: 400 | C154: mm | D154: Rd | E154: 12.80 | F154: PowerTop 400 | G154: PowerTop 400mm Rd 12,8 | H154: 1.75 | I154: 28 | J154: 18.0 | K154: 485 | L154: 12.75 | M154: Steenwol | N154: Steenwol 485mm Rd 12,75 | O154: 6.11 | P154: 50 | Q154: 51.7 | R154: 500 | S154: 12.80 | T154: kurk | U154: kurk 500mm Rd 12,8 | V154: 2.49 | W154: 23 | X154: 23.2 | Y154: 515 | Z154: 12.85 | AA154: Houtvezel | AB154: Houtvezel 515mm Rd 12,85 | AC154: 4.77 | AD154: 46 | AE154: 52.3 | AF154: 280 | AG154: 12.70 | AH154: PIR | AI154: PIR 280mm Rd 12,7 | AJ154: 5.91 | AK154: 37 | AL154: 49.8
A155: PowerTop Eco30 | B155: 180 | C155: mm | D155: Rd | E155: 5.70 | F155: PowerTop Eco30 180 | G155: PowerTop Eco30 180mm Rd 5,7 | H155: =($H$8/$G$8)*B155 -> 0.76 | I155: =($I$8/$G$8)*B155 -> 10 | J155: =($J$8/$G$8)*B155 -> 7.5 | K155: 215 | L155: 5.65 | M155: Steenwol | N155: Steenwol 215mm Rd 5,65 | O155: 2.71 | P155: 22 | Q155: 22.9 | R155: 225 | S155: 5.75 | T155: kurk | U155: kurk 225mm Rd 5,75 | V155: 1.12 | W155: 10 | X155: 10.4 | Y155: 230 | Z155: 5.75 | AA155: Houtvezel | AB155: Houtvezel 230mm Rd 5,75 | AC155: 2.13 | AD155: 20 | AE155: 23.4 | AF155: 125 | AG155: 5.65 | AH155: PIR | AI155: PIR 125mm Rd 5,65 | AJ155: 2.64 | AK155: 17 | AL155: 22.2
A156: PowerTop Eco30 | B156: 185 | C156: mm | D156: Rd | E156: 5.85 | F156: PowerTop Eco30 185 | G156: PowerTop Eco30 185mm Rd 5,85 | H156: =($H$8/$G$8)*B156 -> 0.78 | I156: =($I$8/$G$8)*B156 -> 10 | J156: =($J$8/$G$8)*B156 -> 7.7 | K156: 225 | L156: 5.90 | M156: Steenwol | N156: Steenwol 225mm Rd 5,9 | O156: 2.84 | P156: 23 | Q156: 24.0 | R156: 230 | S156: 5.85 | T156: kurk | U156: kurk 230mm Rd 5,85 | V156: 1.15 | W156: 11 | X156: 10.7 | Y156: 235 | Z156: 5.85 | AA156: Houtvezel | AB156: Houtvezel 235mm Rd 5,85 | AC156: 2.18 | AD156: 21 | AE156: 23.9 | AF156: 130 | AG156: 5.90 | AH156: PIR | AI156: PIR 130mm Rd 5,9 | AJ156: 2.75 | AK156: 17 | AL156: 23.1
A157: PowerTop Eco30 | B157: 190 | C157: mm | D157: Rd | E157: 6.00 | F157: PowerTop Eco30 190 | G157: PowerTop Eco30 190mm Rd 6 | H157: 0.80 | I157: 10 | J157: 7.9 | K157: 230 | L157: 6.05 | M157: Steenwol | N157: Steenwol 230mm Rd 6,05 | O157: 2.90 | P157: 24 | Q157: 24.5 | R157: 235 | S157: 6.00 | T157: kurk | U157: kurk 235mm Rd 6 | V157: 1.17 | W157: 11 | X157: 10.9 | Y157: 240 | Z157: 6.00 | AA157: Houtvezel | AB157: Houtvezel 240mm Rd 6 | AC157: 2.22 | AD157: 21 | AE157: 24.4 | AF157: 130 | AG157: 5.90 | AH157: PIR | AI157: PIR 130mm Rd 5,9 | AJ157: 2.75 | AK157: 17 | AL157: 23.1
A158: PowerTop Eco30 | B158: 195 | C158: mm | D158: Rd | E158: 6.20 | F158: PowerTop Eco30 195 | G158: PowerTop Eco30 195mm Rd 6,2 | H158: 0.82 | I158: 10 | J158: 8.1 | K158: 235 | L158: 6.15 | M158: Steenwol | N158: Steenwol 235mm Rd 6,15 | O158: 2.96 | P158: 24 | Q158: 25.0 | R158: 245 | S158: 6.25 | T158: kurk | U158: kurk 245mm Rd 6,25 | V158: 1.22 | W158: 11 | X158: 11.4 | Y158: 250 | Z158: 6.25 | AA158: Houtvezel | AB158: Houtvezel 250mm Rd 6,25 | AC158: 2.31 | AD158: 22 | AE158: 25.4 | AF158: 135 | AG158: 6.10 | AH158: PIR | AI158: PIR 135mm Rd 6,1 | AJ158: 2.85 | AK158: 18 | AL158: 24.0
A159: PowerTop Eco30 | B159: 200 | C159: mm | D159: Rd | E159: 6.35 | F159: PowerTop Eco30 200 | G159: PowerTop Eco30 200mm Rd 6,35 | H159: 0.84 | I159: 11 | J159: 8.3 | K159: 240 | L159: 6.30 | M159: Steenwol | N159: Steenwol 240mm Rd 6,3 | O159: 3.03 | P159: 25 | Q159: 25.6 | R159: 250 | S159: 6.40 | T159: kurk | U159: kurk 250mm Rd 6,4 | V159: 1.24 | W159: 12 | X159: 11.6 | Y159: 255 | Z159: 6.35 | AA159: Houtvezel | AB159: Houtvezel 255mm Rd 6,35 | AC159: 2.36 | AD159: 23 | AE159: 25.9 | AF159: 140 | AG159: 6.35 | AH159: PIR | AI159: PIR 140mm Rd 6,35 | AJ159: 2.96 | AK159: 19 | AL159: 24.9
A160: PowerTop Eco30 | B160: 205 | C160: mm | D160: Rd | E160: 6.50 | F160: PowerTop Eco30 205 | G160: PowerTop Eco30 205mm Rd 6,5 | H160: 0.86 | I160: 11 | J160: 8.5 | K160: 250 | L160: 6.55 | M160: Steenwol | N160: Steenwol 250mm Rd 6,55 | O160: 3.15 | P160: 26 | Q160: 26.6 | R160: 255 | S160: 6.50 | T160: kurk | U160: kurk 255mm Rd 6,5 | V160: 1.27 | W160: 12 | X160: 11.8 | Y160: 260 | Z160: 6.50 | AA160: Houtvezel | AB160: Houtvezel 260mm Rd 6,5 | AC160: 2.41 | AD160: 23 | AE160: 26.4 | AF160: 145 | AG160: 6.55 | AH160: PIR | AI160: PIR 145mm Rd 6,55 | AJ160: 3.06 | AK160: 19 | AL160: 25.8
A161: PowerTop Eco30 | B161: 210 | C161: mm | D161: Rd | E161: 6.65 | F161: PowerTop Eco30 210 | G161: PowerTop Eco30 210mm Rd 6,65 | H161: 0.89 | I161: 11 | J161: 8.7 | K161: 255 | L161: 6.70 | M161: Steenwol | N161: Steenwol 255mm Rd 6,7 | O161: 3.21 | P161: 26 | Q161: 27.2 | R161: 260 | S161: 6.65 | T161: kurk | U161: kurk 260mm Rd 6,65 | V161: 1.29 | W161: 12 | X161: 12.0 | Y161: 265 | Z161: 6.60 | AA161: Houtvezel | AB161: Houtvezel 265mm Rd 6,6 | AC161: 2.45 | AD161: 23 | AE161: 26.9 | AF161: 145 | AG161: 6.55 | AH161: PIR | AI161: PIR 145mm Rd 6,55 | AJ161: 3.06 | AK161: 19 | AL161: 25.8
A162: PowerTop Eco30 | B162: 215 | C162: mm | D162: Rd | E162: 6.85 | F162: PowerTop Eco30 215 | G162: PowerTop Eco30 215mm Rd 6,85 | H162: 0.91 | I162: 11 | J162: 8.9 | K162: 260 | L162: 6.80 | M162: Steenwol | N162: Steenwol 260mm Rd 6,8 | O162: 3.28 | P162: 27 | Q162: 27.7 | R162: 270 | S162: 6.90 | T162: kurk | U162: kurk 270mm Rd 6,9 | V162: 1.34 | W162: 13 | X162: 12.5 | Y162: 275 | Z162: 6.85 | AA162: Houtvezel | AB162: Houtvezel 275mm Rd 6,85 | AC162: 2.55 | AD162: 24 | AE162: 27.9 | AF162: 150 | AG162: 6.80 | AH162: PIR | AI162: PIR 150mm Rd 6,8 | AJ162: 3.17 | AK162: 20 | AL162: 26.7
A163: PowerTop Eco30 | B163: 220 | C163: mm | D163: Rd | E163: 7.00 | F163: PowerTop Eco30 220 | G163: PowerTop Eco30 220mm Rd 7 | H163: 0.93 | I163: 12 | J163: 9.1 | K163: 265 | L163: 6.95 | M163: Steenwol | N163: Steenwol 265mm Rd 6,95 | O163: 3.34 | P163: 27 | Q163: 28.2 | R163: 275 | S163: 7.05 | T163: kurk | U163: kurk 275mm Rd 7,05 | V163: 1.37 | W163: 13 | X163: 12.7 | Y163: 280 | Z163: 7.00 | AA163: Houtvezel | AB163: Houtvezel 280mm Rd 7 | AC163: 2.59 | AD163: 25 | AE163: 28.4 | AF163: 155 | AG163: 7.00 | AH163: PIR | AI163: PIR 155mm Rd 7 | AJ163: 3.27 | AK163: 20 | AL163: 27.6
A164: PowerTop Eco30 | B164: 225 | C164: mm | D164: Rd | E164: 7.15 | F164: PowerTop Eco30 225 | G164: PowerTop Eco30 225mm Rd 7,15 | H164: 0.95 | I164: 12 | J164: 9.3 | K164: 270 | L164: 7.10 | M164: Steenwol | N164: Steenwol 270mm Rd 7,1 | O164: 3.40 | P164: 28 | Q164: 28.8 | R164: 280 | S164: 7.15 | T164: kurk | U164: kurk 280mm Rd 7,15 | V164: 1.39 | W164: 13 | X164: 13.0 | Y164: 285 | Z164: 7.10 | AA164: Houtvezel | AB164: Houtvezel 285mm Rd 7,1 | AC164: 2.64 | AD164: 25 | AE164: 29.0 | AF164: 155 | AG164: 7.00 | AH164: PIR | AI164: PIR 155mm Rd 7 | AJ164: 3.27 | AK164: 20 | AL164: 27.6
A165: PowerTop Eco30 | B165: 230 | C165: mm | D165: Rd | E165: 7.30 | F165: PowerTop Eco30 230 | G165: PowerTop Eco30 230mm Rd 7,3 | H165: 0.97 | I165: 12 | J165: 9.5 | K165: 280 | L165: 7.35 | M165: Steenwol | N165: Steenwol 280mm Rd 7,35 | O165: 3.53 | P165: 29 | Q165: 29.8 | R165: 285 | S165: 7.30 | T165: kurk | U165: kurk 285mm Rd 7,3 | V165: 1.42 | W165: 13 | X165: 13.2 | Y165: 290 | Z165: 7.25 | AA165: Houtvezel | AB165: Houtvezel 290mm Rd 7,25 | AC165: 2.68 | AD165: 26 | AE165: 29.5 | AF165: 160 | AG165: 7.25 | AH165: PIR | AI165: PIR 160mm Rd 7,25 | AJ165: 3.38 | AK165: 21 | AL165: 28.5
A166: PowerTop Eco30 | B166: 235 | C166: mm | D166: Rd | E166: 7.45 | F166: PowerTop Eco30 235 | G166: PowerTop Eco30 235mm Rd 7,45 | H166: 0.99 | I166: 12 | J166: 9.7 | K166: 285 | L166: 7.50 | M166: Steenwol | N166: Steenwol 285mm Rd 7,5 | O166: 3.59 | P166: 29 | Q166: 30.4 | R166: 290 | S166: 7.40 | T166: kurk | U166: kurk 290mm Rd 7,4 | V166: 1.44 | W166: 13 | X166: 13.4 | Y166: 300 | Z166: 7.50 | AA166: Houtvezel | AB166: Houtvezel 300mm Rd 7,5 | AC166: 2.78 | AD166: 27 | AE166: 30.5 | AF166: 165 | AG166: 7.50 | AH166: PIR | AI166: PIR 165mm Rd 7,5 | AJ166: 3.49 | AK166: 22 | AL166: 29.3
A167: PowerTop Eco30 | B167: 240 | C167: mm | D167: Rd | E167: 7.65 | F167: PowerTop Eco30 240 | G167: PowerTop Eco30 240mm Rd 7,65 | H167: 1.01 | I167: 13 | J167: 9.9 | K167: 290 | L167: 7.60 | M167: Steenwol | N167: Steenwol 290mm Rd 7,6 | O167: 3.66 | P167: 30 | Q167: 30.9 | R167: 300 | S167: 7.65 | T167: kurk | U167: kurk 300mm Rd 7,65 | V167: 1.49 | W167: 14 | X167: 13.9 | Y167: 305 | Z167: 7.60 | AA167: Houtvezel | AB167: Houtvezel 305mm Rd 7,6 | AC167: 2.82 | AD167: 27 | AE167: 31.0 | AF167: 170 | AG167: 7.70 | AH167: PIR | AI167: PIR 170mm Rd 7,7 | AJ167: 3.59 | AK167: 22 | AL167: 30.2
A168: PowerTop Eco30 | B168: 245 | C168: mm | D168: Rd | E168: 7.80 | F168: PowerTop Eco30 245 | G168: PowerTop Eco30 245mm Rd 7,8 | H168: 1.03 | I168: 13 | J168: 10.1 | K168: 295 | L168: 7.75 | M168: Steenwol | N168: Steenwol 295mm Rd 7,75 | O168: 3.72 | P168: 30 | Q168: 31.4 | R168: 305 | S168: 7.80 | T168: kurk | U168: kurk 305mm Rd 7,8 | V168: 1.52 | W168: 14 | X168: 14.1 | Y168: 315 | Z168: 7.85 | AA168: Houtvezel | AB168: Houtvezel 315mm Rd 7,85 | AC168: 2.92 | AD168: 28 | AE168: 32.0 | AF168: 170 | AG168: 7.70 | AH168: PIR | AI168: PIR 170mm Rd 7,7 | AJ168: 3.59 | AK168: 22 | AL168: 30.2
A169: PowerTop Eco30 | B169: 250 | C169: mm | D169: Rd | E169: 7.95 | F169: PowerTop Eco30 250 | G169: PowerTop Eco30 250mm Rd 7,95 | H169: 1.05 | I169: 13 | J169: 10.3 | K169: 305 | L169: 8.00 | M169: Steenwol | N169: Steenwol 305mm Rd 8 | O169: 3.84 | P169: 32 | Q169: 32.5 | R169: 310 | S169: 7.90 | T169: kurk | U169: kurk 310mm Rd 7,9 | V169: 1.54 | W169: 14 | X169: 14.4 | Y169: 230 | Z169: 5.75 | AA169: Houtvezel | AB169: Houtvezel 230mm Rd 5,75 | AC169: 2.13 | AD169: 20 | AE169: 23.4 | AF169: 175 | AG169: 7.95 | AH169: PIR | AI169: PIR 175mm Rd 7,95 | AJ169: 3.70 | AK169: 23 | AL169: 31.1
A170: PowerTop Eco30 | B170: 255 | C170: mm | D170: Rd | E170: 8.10 | F170: PowerTop Eco30 255 | G170: PowerTop Eco30 255mm Rd 8,1 | H170: 1.07 | I170: 14 | J170: 10.6 | K170: 310 | L170: 8.15 | M170: Steenwol | N170: Steenwol 310mm Rd 8,15 | O170: 3.91 | P170: 32 | Q170: 33.0 | R170: 315 | S170: 8.05 | T170: kurk | U170: kurk 315mm Rd 8,05 | V170: 1.57 | W170: 15 | X170: 14.6 | Y170: 325 | Z170: 8.10 | AA170: Houtvezel | AB170: Houtvezel 325mm Rd 8,1 | AC170: 3.01 | AD170: 29 | AE170: 33.0 | AF170: 180 | AG170: 8.15 | AH170: PIR | AI170: PIR 180mm Rd 8,15 | AJ170: 3.80 | AK170: 24 | AL170: 32.0
A171: PowerTop Eco30 | B171: 260 | C171: mm | D171: Rd | E171: 8.30 | F171: PowerTop Eco30 260 | G171: PowerTop Eco30 260mm Rd 8,3 | H171: 1.10 | I171: 14 | J171: 10.8 | K171: 315 | L171: 8.25 | M171: Steenwol | N171: Steenwol 315mm Rd 8,25 | O171: 3.97 | P171: 33 | Q171: 33.5 | R171: 325 | S171: 8.30 | T171: kurk | U171: kurk 325mm Rd 8,3 | V171: 1.62 | W171: 15 | X171: 15.1 | Y171: 335 | Z171: 8.35 | AA171: Houtvezel | AB171: Houtvezel 335mm Rd 8,35 | AC171: 3.10 | AD171: 30 | AE171: 34.0 | AF171: 185 | AG171: 8.40 | AH171: PIR | AI171: PIR 185mm Rd 8,4 | AJ171: 3.91 | AK171: 24 | AL171: 32.9
A172: PowerTop Eco30 | B172: 265 | C172: mm | D172: Rd | E172: 8.45 | F172: PowerTop Eco30 265 | G172: PowerTop Eco30 265mm Rd 8,45 | H172: 1.12 | I172: 14 | J172: 11.0 | K172: 320 | L172: 8.40 | M172: Steenwol | N172: Steenwol 320mm Rd 8,4 | O172: 4.03 | P172: 33 | Q172: 34.1 | R172: 330 | S172: 8.45 | T172: kurk | U172: kurk 330mm Rd 8,45 | V172: 1.64 | W172: 15 | X172: 15.3 | Y172: 340 | Z172: 8.50 | AA172: Houtvezel | AB172: Houtvezel 340mm Rd 8,5 | AC172: 3.15 | AD172: 30 | AE172: 34.5 | AF172: 185 | AG172: 8.40 | AH172: PIR | AI172: PIR 185mm Rd 8,4 | AJ172: 3.91 | AK172: 24 | AL172: 32.9
A173: PowerTop Eco30 | B173: 270 | C173: mm | D173: Rd | E173: 8.60 | F173: PowerTop Eco30 270 | G173: PowerTop Eco30 270mm Rd 8,6 | H173: 1.14 | I173: 14 | J173: 11.2 | K173: 325 | L173: 8.55 | M173: Steenwol | N173: Steenwol 325mm Rd 8,55 | O173: 4.10 | P173: 34 | Q173: 34.6 | R173: 335 | S173: 8.55 | T173: kurk | U173: kurk 335mm Rd 8,55 | V173: 1.67 | W173: 16 | X173: 15.5 | Y173: 345 | Z173: 8.60 | AA173: Houtvezel | AB173: Houtvezel 345mm Rd 8,6 | AC173: 3.19 | AD173: 31 | AE173: 35.0 | AF173: 190 | AG173: 8.60 | AH173: PIR | AI173: PIR 190mm Rd 8,6 | AJ173: 4.01 | AK173: 25 | AL173: 33.8
A174: PowerTop Eco30 | B174: 275 | C174: mm | D174: Rd | E174: 8.75 | F174: PowerTop Eco30 275 | G174: PowerTop Eco30 275mm Rd 8,75 | H174: 1.16 | I174: 15 | J174: 11.4 | K174: 335 | L174: 8.80 | M174: Steenwol | N174: Steenwol 335mm Rd 8,8 | O174: 4.22 | P174: 35 | Q174: 35.7 | R174: 340 | S174: 8.70 | T174: kurk | U174: kurk 340mm Rd 8,7 | V174: 1.69 | W174: 16 | X174: 15.8 | Y174: 350 | Z174: 8.75 | AA174: Houtvezel | AB174: Houtvezel 350mm Rd 8,75 | AC174: 3.24 | AD174: 31 | AE174: 35.6 | AF174: 195 | AG174: 8.85 | AH174: PIR | AI174: PIR 195mm Rd 8,85 | AJ174: 4.12 | AK174: 26 | AL174: 34.7
A175: PowerTop Eco30 | B175: 280 | C175: mm | D175: Rd | E175: 8.90 | F175: PowerTop Eco30 280 | G175: PowerTop Eco30 280mm Rd 8,9 | H175: 1.18 | I175: 15 | J175: 11.6 | K175: 340 | L175: 8.90 | M175: Steenwol | N175: Steenwol 340mm Rd 8,9 | O175: 4.29 | P175: 35 | Q175: 36.2 | R175: 350 | S175: 8.95 | T175: kurk | U175: kurk 350mm Rd 8,95 | V175: 1.74 | W175: 16 | X175: 16.2 | Y175: 355 | Z175: 8.85 | AA175: Houtvezel | AB175: Houtvezel 355mm Rd 8,85 | AC175: 3.29 | AD175: 31 | AE175: 36.1 | AF175: 195 | AG175: 8.85 | AH175: PIR | AI175: PIR 195mm Rd 8,85 | AJ175: 4.12 | AK175: 26 | AL175: 34.7
A176: PowerTop Eco30 | B176: 285 | C176: mm | D176: Rd | E176: 9.10 | F176: PowerTop Eco30 285 | G176: PowerTop Eco30 285mm Rd 9,1 | H176: 1.20 | I176: 15 | J176: 11.8 | K176: 345 | L176: 9.05 | M176: Steenwol | N176: Steenwol 345mm Rd 9,05 | O176: 4.35 | P176: 36 | Q176: 36.7 | R176: 355 | S176: 9.10 | T176: kurk | U176: kurk 355mm Rd 9,1 | V176: 1.77 | W176: 16 | X176: 16.5 | Y176: 365 | Z176: 9.10 | AA176: Houtvezel | AB176: Houtvezel 365mm Rd 9,1 | AC176: 3.38 | AD176: 32 | AE176: 37.1 | AF176: 200 | AG176: 9.05 | AH176: PIR | AI176: PIR 200mm Rd 9,05 | AJ176: 4.22 | AK176: 26 | AL176: 35.6
A177: PowerTop Eco30 | B177: 290 | C177: mm | D177: Rd | E177: 9.25 | F177: PowerTop Eco30 290 | G177: PowerTop Eco30 290mm Rd 9,25 | H177: 1.22 | I177: 15 | J177: 12.0 | K177: 350 | L177: 9.20 | M177: Steenwol | N177: Steenwol 350mm Rd 9,2 | O177: 4.41 | P177: 36 | Q177: 37.3 | R177: 360 | S177: 9.20 | T177: kurk | U177: kurk 360mm Rd 9,2 | V177: 1.79 | W177: 17 | X177: 16.7 | Y177: 370 | Z177: 9.25 | AA177: Houtvezel | AB177: Houtvezel 370mm Rd 9,25 | AC177: 3.43 | AD177: 33 | AE177: 37.6 | AF177: 205 | AG177: 9.30 | AH177: PIR | AI177: PIR 205mm Rd 9,3 | AJ177: 4.33 | AK177: 27 | AL177: 36.5
A178: PowerTop Eco30 | B178: 295 | C178: mm | D178: Rd | E178: 9.40 | F178: PowerTop Eco30 295 | G178: PowerTop Eco30 295mm Rd 9,4 | H178: 1.24 | I178: 16 | J178: 12.2 | K178: 360 | L178: 9.45 | M178: Steenwol | N178: Steenwol 360mm Rd 9,45 | O178: 4.54 | P178: 37 | Q178: 38.3 | R178: 370 | S178: 9.45 | T178: kurk | U178: kurk 370mm Rd 9,45 | V178: 1.84 | W178: 17 | X178: 17.1 | Y178: 375 | Z178: 9.35 | AA178: Houtvezel | AB178: Houtvezel 375mm Rd 9,35 | AC178: 3.47 | AD178: 33 | AE178: 38.1 | AF178: 205 | AG178: 9.30 | AH178: PIR | AI178: PIR 205mm Rd 9,3 | AJ178: 4.33 | AK178: 27 | AL178: 36.5
A179: PowerTop Eco30 | B179: 300 | C179: mm | D179: Rd | E179: 9.55 | F179: PowerTop Eco30 300 | G179: PowerTop Eco30 300mm Rd 9,55 | H179: 1.26 | I179: 16 | J179: 12.4 | K179: 365 | L179: 9.60 | M179: Steenwol | N179: Steenwol 365mm Rd 9,6 | O179: 4.60 | P179: 38 | Q179: 38.9 | R179: 375 | S179: 9.60 | T179: kurk | U179: kurk 375mm Rd 9,6 | V179: 1.87 | W179: 17 | X179: 17.4 | Y179: 385 | Z179: 9.60 | AA179: Houtvezel | AB179: Houtvezel 385mm Rd 9,6 | AC179: 3.56 | AD179: 34 | AE179: 39.1 | AF179: 210 | AG179: 9.50 | AH179: PIR | AI179: PIR 210mm Rd 9,5 | AJ179: 4.44 | AK179: 28 | AL179: 37.4
A180: PowerTop Eco30 | B180: 305 | C180: mm | D180: Rd | E180: 9.75 | F180: PowerTop Eco30 305 | G180: PowerTop Eco30 305mm Rd 9,75 | H180: 1.29 | I180: 16 | J180: 12.6 | K180: 370 | L180: 9.70 | M180: Steenwol | N180: Steenwol 370mm Rd 9,7 | O180: 4.66 | P180: 38 | Q180: 39.4 | R180: 380 | S180: 9.70 | T180: kurk | U180: kurk 380mm Rd 9,7 | V180: 1.89 | W180: 18 | X180: 17.6 | Y180: 390 | Z180: 9.75 | AA180: Houtvezel | AB180: Houtvezel 390mm Rd 9,75 | AC180: 3.61 | AD180: 35 | AE180: 39.6 | AF180: 215 | AG180: 9.75 | AH180: PIR | AI180: PIR 215mm Rd 9,75 | AJ180: 4.54 | AK180: 28 | AL180: 38.2
A181: PowerTop Eco30 | B181: 310 | C181: mm | D181: Rd | E181: 9.90 | F181: PowerTop Eco30 310 | G181: PowerTop Eco30 310mm Rd 9,9 | H181: 1.31 | I181: 16 | J181: 12.8 | K181: 375 | L181: 9.85 | M181: Steenwol | N181: Steenwol 375mm Rd 9,85 | O181: 4.73 | P181: 39 | Q181: 39.9 | R181: 385 | S181: 9.85 | T181: kurk | U181: kurk 385mm Rd 9,85 | V181: 1.92 | W181: 18 | X181: 17.8 | Y181: 395 | Z181: 9.85 | AA181: Houtvezel | AB181: Houtvezel 395mm Rd 9,85 | AC181: 3.66 | AD181: 35 | AE181: 40.1 | AF181: 220 | AG181: 10.00 | AH181: PIR | AI181: PIR 220mm Rd 10 | AJ181: 4.65 | AK181: 29 | AL181: 39.1
A182: PowerTop Eco30 | B182: 315 | C182: mm | D182: Rd | E182: 10.05 | F182: PowerTop Eco30 315 | G182: PowerTop Eco30 315mm Rd 10,05 | H182: 1.33 | I182: 17 | J182: 13.0 | K182: 380 | L182: 10.00 | M182: Steenwol | N182: Steenwol 380mm Rd 10 | O182: 4.79 | P182: 39 | Q182: 40.5 | R182: 395 | S182: 10.10 | T182: kurk | U182: kurk 395mm Rd 10,1 | V182: 1.97 | W182: 18 | X182: 18.3 | Y182: 405 | Z182: 10.10 | AA182: Houtvezel | AB182: Houtvezel 405mm Rd 10,1 | AC182: 3.75 | AD182: 36 | AE182: 41.1 | AF182: 220 | AG182: 10.00 | AH182: PIR | AI182: PIR 220mm Rd 10 | AJ182: 4.65 | AK182: 29 | AL182: 39.1
A183: PowerTop Eco30 | B183: 320 | C183: mm | D183: Rd | E183: 10.20 | F183: =A183&" "&B183 -> PowerTop Eco30 320 | G183: =A183&" "&B183&C183&" "&D183&" "&E183 -> PowerTop Eco30 320mm Rd 10,2 | H183: 1.35 | I183: 17 | J183: 13.2 | K183: 390 | L183: =FLOOR((K183/1000)/$L$9,0.05) -> 10.25 | M183: Steenwol | N183: =M183&" "&K183&C183&" "&D183&" "&L183 -> Steenwol 390mm Rd 10,25 | O183: =($O$8/$N$8)*K183 -> 4.92 | P183: =($P$8/$N$8)*K183 -> 40 | Q183: =($Q$8/$N$8)*K183 -> 41.5 | R183: 400 | S183: =FLOOR((R183/1000)/$S$9,0.05) -> 10.25 | T183: kurk | U183: =T183&" "&R183&C183&" "&D183&" "&S183 -> kurk 400mm Rd 10,25 | V183: =($V$8/$U$8)*R183 -> 1.99 | W183: =($W$8/$U$8)*R183 -> 19 | X183: =($X$8/$U$8)*R183 -> 18.5 | Y183: 410 | Z183: =FLOOR((Y183/1000)/$Z$9,0.05) -> 10.25 | AA183: Houtvezel | AB183: =AA183&" "&Y183&C183&" "&D183&" "&Z183 -> Houtvezel 410mm Rd 10,25 | AC183: =($AC$8/$AB$8)*Y183 -> 3.80 | AD183: =($AD$8/$AB$8)*Y183 -> 36 | AE183: =($AE$8/$AB$8)*Y183 -> 41.7 | AF183: 225 | AG183: =FLOOR((AF183/1000)/$AG$9,0.05) -> 10.20 | AH183: PIR | AI183: =AH183&" "&AF183&C183&" "&D183&" "&AG183 -> PIR 225mm Rd 10,2 | AJ183: =($AJ$8/$AI$8)*AF183 -> 4.75 | AK183: =($AK$8/$AI$8)*AF183 -> 30 | AL183: =($AL$8/$AI$8)*AF183 -> 40.0
A184: PowerTop Eco30 | B184: 325 | C184: mm | D184: Rd | E184: 10.35 | F184: PowerTop Eco30 325 | G184: PowerTop Eco30 325mm Rd 10,35 | H184: 1.37 | I184: 17 | J184: 13.5 | K184: 395 | L184: 10.35 | M184: Steenwol | N184: Steenwol 395mm Rd 10,35 | O184: 4.98 | P184: 41 | Q184: 42.1 | R184: 405 | S184: 10.35 | T184: kurk | U184: kurk 405mm Rd 10,35 | V184: 2.02 | W184: 19 | X184: 18.8 | Y184: 415 | Z184: 10.35 | AA184: Houtvezel | AB184: Houtvezel 415mm Rd 10,35 | AC184: 3.84 | AD184: 37 | AE184: 42.2 | AF184: 230 | AG184: 10.45 | AH184: PIR | AI184: PIR 230mm Rd 10,45 | AJ184: 4.86 | AK184: 30 | AL184: 40.9
A185: PowerTop Eco30 | B185: 330 | C185: mm | D185: Rd | E185: 10.55 | F185: PowerTop Eco30 330 | G185: PowerTop Eco30 330mm Rd 10,55 | H185: 1.39 | I185: 17 | J185: 13.7 | K185: 400 | L185: 10.50 | M185: Steenwol | N185: Steenwol 400mm Rd 10,5 | O185: 5.04 | P185: 41 | Q185: 42.6 | R185: 410 | S185: 10.50 | T185: kurk | U185: kurk 410mm Rd 10,5 | V185: 2.04 | W185: 19 | X185: 19.0 | Y185: 425 | Z185: 10.60 | AA185: Houtvezel | AB185: Houtvezel 425mm Rd 10,6 | AC185: 3.93 | AD185: 38 | AE185: 43.2 | AF185: 230 | AG185: 10.45 | AH185: PIR | AI185: PIR 230mm Rd 10,45 | AJ185: 4.86 | AK185: 30 | AL185: 40.9
A186: PowerTop Eco30 | B186: 335 | C186: mm | D186: Rd | E186: 10.70 | F186: PowerTop Eco30 335 | G186: PowerTop Eco30 335mm Rd 10,7 | H186: 1.41 | I186: 18 | J186: 13.9 | K186: 405 | L186: 10.65 | M186: Steenwol | N186: Steenwol 405mm Rd 10,65 | O186: 5.10 | P186: 42 | Q186: 43.1 | R186: 420 | S186: 10.75 | T186: kurk | U186: kurk 420mm Rd 10,75 | V186: 2.09 | W186: 19 | X186: 19.5 | Y186: 430 | Z186: 10.75 | AA186: Houtvezel | AB186: Houtvezel 430mm Rd 10,75 | AC186: 3.98 | AD186: 38 | AE186: 43.7 | AF186: 235 | AG186: 10.65 | AH186: PIR | AI186: PIR 235mm Rd 10,65 | AJ186: 4.96 | AK186: 31 | AL186: 41.8
A187: PowerTop Eco30 | B187: 340 | C187: mm | D187: Rd | E187: 10.85 | F187: PowerTop Eco30 340 | G187: PowerTop Eco30 340mm Rd 10,85 | H187: 1.43 | I187: 18 | J187: 14.1 | K187: 415 | L187: 10.90 | M187: Steenwol | N187: Steenwol 415mm Rd 10,9 | O187: 5.23 | P187: 43 | Q187: 44.2 | R187: 425 | S187: 10.85 | T187: kurk | U187: kurk 425mm Rd 10,85 | V187: 2.12 | W187: 20 | X187: 19.7 | Y187: 435 | Z187: 10.85 | AA187: Houtvezel | AB187: Houtvezel 435mm Rd 10,85 | AC187: 4.03 | AD187: 38 | AE187: 44.2 | AF187: 240 | AG187: 10.90 | AH187: PIR | AI187: PIR 240mm Rd 10,9 | AJ187: 5.07 | AK187: 32 | AL187: 42.7
A188: PowerTop Eco30 | B188: 345 | C188: mm | D188: Rd | E188: 11.00 | F188: PowerTop Eco30 345 | G188: PowerTop Eco30 345mm Rd 11 | H188: 1.45 | I188: 18 | J188: 14.3 | K188: 420 | L188: 11.05 | M188: Steenwol | N188: Steenwol 420mm Rd 11,05 | O188: 5.29 | P188: 43 | Q188: 44.7 | R188: 430 | S188: 11.00 | T188: kurk | U188: kurk 430mm Rd 11 | V188: 2.14 | W188: 20 | X188: 19.9 | Y188: 440 | Z188: 11.00 | AA188: Houtvezel | AB188: Houtvezel 440mm Rd 11 | AC188: 4.07 | AD188: 39 | AE188: 44.7 | AF188: 240 | AG188: 10.90 | AH188: PIR | AI188: PIR 240mm Rd 10,9 | AJ188: 5.07 | AK188: 32 | AL188: 42.7
A189: PowerTop Eco30 | B189: 350 | C189: mm | D189: Rd | E189: 11.20 | F189: PowerTop Eco30 350 | G189: PowerTop Eco30 350mm Rd 11,2 | H189: 1.48 | I189: 19 | J189: 14.5 | K189: 425 | L189: 11.15 | M189: Steenwol | N189: Steenwol 425mm Rd 11,15 | O189: 5.36 | P189: 44 | Q189: 45.3 | R189: 440 | S189: 11.25 | T189: kurk | U189: kurk 440mm Rd 11,25 | V189: 2.19 | W189: 20 | X189: 20.4 | Y189: 450 | Z189: 11.25 | AA189: Houtvezel | AB189: Houtvezel 450mm Rd 11,25 | AC189: 4.17 | AD189: 40 | AE189: 45.7 | AF189: 245 | AG189: 11.10 | AH189: PIR | AI189: PIR 245mm Rd 11,1 | AJ189: 5.17 | AK189: 32 | AL189: 43.6
A190: PowerTop Eco30 | B190: 355 | C190: mm | D190: Rd | E190: 11.35 | F190: PowerTop Eco30 355 | G190: PowerTop Eco30 355mm Rd 11,35 | H190: 1.50 | I190: 19 | J190: 14.7 | K190: 430 | L190: 11.30 | M190: Steenwol | N190: Steenwol 430mm Rd 11,3 | O190: 5.42 | P190: 44 | Q190: 45.8 | R190: 445 | S190: 11.40 | T190: kurk | U190: kurk 445mm Rd 11,4 | V190: 2.22 | W190: 21 | X190: 20.6 | Y190: 455 | Z190: 11.35 | AA190: Houtvezel | AB190: Houtvezel 455mm Rd 11,35 | AC190: 4.21 | AD190: 40 | AE190: 46.2 | AF190: 250 | AG190: 11.35 | AH190: PIR | AI190: PIR 250mm Rd 11,35 | AJ190: 5.28 | AK190: 33 | AL190: 44.5
A191: PowerTop Eco30 | B191: 360 | C191: mm | D191: Rd | E191: 11.50 | F191: PowerTop Eco30 360 | G191: PowerTop Eco30 360mm Rd 11,5 | H191: 1.52 | I191: 19 | J191: 14.9 | K191: 440 | L191: 11.55 | M191: Steenwol | N191: Steenwol 440mm Rd 11,55 | O191: 5.55 | P191: 45 | Q191: 46.9 | R191: 450 | S191: 11.50 | T191: kurk | U191: kurk 450mm Rd 11,5 | V191: 2.24 | W191: 21 | X191: 20.9 | Y191: 460 | Z191: 11.50 | AA191: Houtvezel | AB191: Houtvezel 460mm Rd 11,5 | AC191: 4.26 | AD191: 41 | AE191: 46.7 | AF191: 255 | AG191: 11.55 | AH191: PIR | AI191: PIR 255mm Rd 11,55 | AJ191: 5.39 | AK191: 34 | AL191: 45.4
A192: PowerTop Eco30 | B192: 365 | C192: mm | D192: Rd | E192: 11.65 | F192: PowerTop Eco30 365 | G192: PowerTop Eco30 365mm Rd 11,65 | H192: 1.54 | I192: 19 | J192: 15.1 | K192: 445 | L192: 11.70 | M192: Steenwol | N192: Steenwol 445mm Rd 11,7 | O192: 5.61 | P192: 46 | Q192: 47.4 | R192: 455 | S192: 11.65 | T192: kurk | U192: kurk 455mm Rd 11,65 | V192: 2.27 | W192: 21 | X192: 21.1 | Y192: 465 | Z192: 11.60 | AA192: Houtvezel | AB192: Houtvezel 465mm Rd 11,6 | AC192: 4.30 | AD192: 41 | AE192: 47.2 | AF192: 255 | AG192: 11.55 | AH192: PIR | AI192: PIR 255mm Rd 11,55 | AJ192: 5.39 | AK192: 34 | AL192: 45.4
A193: PowerTop Eco30 | B193: 370 | C193: mm | D193: Rd | E193: 11.85 | F193: PowerTop Eco30 370 | G193: PowerTop Eco30 370mm Rd 11,85 | H193: 1.56 | I193: 20 | J193: 15.3 | K193: 450 | L193: 11.80 | M193: Steenwol | N193: Steenwol 450mm Rd 11,8 | O193: 5.67 | P193: 47 | Q193: 47.9 | R193: 465 | S193: 11.90 | T193: kurk | U193: kurk 465mm Rd 11,9 | V193: 2.32 | W193: 22 | X193: 21.5 | Y193: 475 | Z193: 11.85 | AA193: Houtvezel | AB193: Houtvezel 475mm Rd 11,85 | AC193: 4.40 | AD193: 42 | AE193: 48.3 | AF193: 260 | AG193: 11.80 | AH193: PIR | AI193: PIR 260mm Rd 11,8 | AJ193: 5.49 | AK193: 34 | AL193: 46.2
A194: PowerTop Eco30 | B194: 375 | C194: mm | D194: Rd | E194: 12.00 | F194: PowerTop Eco30 375 | G194: PowerTop Eco30 375mm Rd 12 | H194: 1.58 | I194: 20 | J194: 15.5 | K194: 455 | L194: 11.95 | M194: Steenwol | N194: Steenwol 455mm Rd 11,95 | O194: 5.73 | P194: 47 | Q194: 48.5 | R194: 470 | S194: 12.05 | T194: kurk | U194: kurk 470mm Rd 12,05 | V194: 2.34 | W194: 22 | X194: 21.8 | Y194: 480 | Z194: 12.00 | AA194: Houtvezel | AB194: Houtvezel 480mm Rd 12 | AC194: 4.44 | AD194: 42 | AE194: 48.8 | AF194: 265 | AG194: 12.00 | AH194: PIR | AI194: PIR 265mm Rd 12 | AJ194: 5.60 | AK194: 35 | AL194: 47.1
A195: PowerTop Eco30 | B195: 380 | C195: mm | D195: Rd | E195: 12.15 | F195: PowerTop Eco30 380 | G195: PowerTop Eco30 380mm Rd 12,15 | H195: 1.60 | I195: 20 | J195: 15.7 | K195: 460 | L195: 12.10 | M195: Steenwol | N195: Steenwol 460mm Rd 12,1 | O195: 5.80 | P195: 48 | Q195: 49.0 | R195: 475 | S195: 12.15 | T195: kurk | U195: kurk 475mm Rd 12,15 | V195: 2.37 | W195: 22 | X195: 22.0 | Y195: 485 | Z195: 12.10 | AA195: Houtvezel | AB195: Houtvezel 485mm Rd 12,1 | AC195: 4.49 | AD195: 43 | AE195: 49.3 | AF195: 265 | AG195: 12.00 | AH195: PIR | AI195: PIR 265mm Rd 12 | AJ195: 5.60 | AK195: 35 | AL195: 47.1
A196: PowerTop Eco30 | B196: 385 | C196: mm | D196: Rd | E196: 12.30 | F196: PowerTop Eco30 385 | G196: PowerTop Eco30 385mm Rd 12,3 | H196: 1.62 | I196: 20 | J196: 15.9 | K196: 470 | L196: 12.35 | M196: Steenwol | N196: Steenwol 470mm Rd 12,35 | O196: 5.92 | P196: 49 | Q196: 50.1 | R196: 480 | S196: 12.30 | T196: kurk | U196: kurk 480mm Rd 12,3 | V196: 2.39 | W196: 22 | X196: 22.2 | Y196: 495 | Z196: 12.35 | AA196: Houtvezel | AB196: Houtvezel 495mm Rd 12,35 | AC196: 4.58 | AD196: 44 | AE196: 50.3 | AF196: 270 | AG196: 12.25 | AH196: PIR | AI196: PIR 270mm Rd 12,25 | AJ196: 5.70 | AK196: 36 | AL196: 48.0
A197: PowerTop Eco30 | B197: 390 | C197: mm | D197: Rd | E197: 12.45 | F197: PowerTop Eco30 390 | G197: PowerTop Eco30 390mm Rd 12,45 | H197: 1.64 | I197: 21 | J197: 16.1 | K197: 475 | L197: 12.50 | M197: Steenwol | N197: Steenwol 475mm Rd 12,5 | O197: 5.99 | P197: 49 | Q197: 50.6 | R197: 485 | S197: 12.40 | T197: kurk | U197: kurk 485mm Rd 12,4 | V197: 2.42 | W197: 22 | X197: 22.5 | Y197: 500 | Z197: 12.50 | AA197: Houtvezel | AB197: Houtvezel 500mm Rd 12,5 | AC197: 4.63 | AD197: 44 | AE197: 50.8 | AF197: 275 | AG197: 12.50 | AH197: PIR | AI197: PIR 275mm Rd 12,5 | AJ197: 5.81 | AK197: 36 | AL197: 48.9
A198: PowerTop Eco30 | B198: 395 | C198: mm | D198: Rd | E198: 12.65 | F198: PowerTop Eco30 395 | G198: PowerTop Eco30 395mm Rd 12,65 | H198: 1.66 | I198: 21 | J198: 16.4 | K198: 480 | L198: 12.60 | M198: Steenwol | N198: Steenwol 480mm Rd 12,6 | O198: 6.05 | P198: 50 | Q198: 51.1 | R198: 495 | S198: 12.65 | T198: kurk | U198: kurk 495mm Rd 12,65 | V198: 2.46 | W198: 23 | X198: 22.9 | Y198: 505 | Z198: 12.60 | AA198: Houtvezel | AB198: Houtvezel 505mm Rd 12,6 | AC198: 4.68 | AD198: 45 | AE198: 51.3 | AF198: 280 | AG198: 12.70 | AH198: PIR | AI198: PIR 280mm Rd 12,7 | AJ198: 5.91 | AK198: 37 | AL198: 49.8
A199: PowerTop Eco30 | B199: 400 | C199: mm | D199: Rd | E199: 12.80 | F199: PowerTop Eco30 400 | G199: PowerTop Eco30 400mm Rd 12,8 | H199: 1.69 | I199: 21 | J199: 16.6 | K199: 485 | L199: 12.75 | M199: Steenwol | N199: Steenwol 485mm Rd 12,75 | O199: 6.11 | P199: 50 | Q199: 51.7 | R199: 500 | S199: 12.80 | T199: kurk | U199: kurk 500mm Rd 12,8 | V199: 2.49 | W199: 23 | X199: 23.2 | Y199: 515 | Z199: 12.85 | AA199: Houtvezel | AB199: Houtvezel 515mm Rd 12,85 | AC199: 4.77 | AD199: 46 | AE199: 52.3 | AF199: 280 | AG199: 12.70 | AH199: PIR | AI199: PIR 280mm Rd 12,7 | AJ199: 5.91 | AK199: 37 | AL199: 49.8
F203: ='plat dak'!D9&" "&'plat dak'!I9 -> 
G204: LiteTop
... 17 more rows

Sheet lijst dikte (hidden)
A1: =matrix!B22 -> 0 | B1: LiteTop | C1: LiteTop HR | D1: PolyTop | E1: PolyTop HR | F1: PowerTop | G1: PowerTop Eco30 | H1: ATTENTIE: type op alfabetische volgorde
A2: =IF(HLOOKUP($A$1,$B$1:$F$46,2)>0,HLOOKUP($A$1,$B$1:$F$46,2)," ") ->  | B2: 40 | C2: 40 | D2: 40 | E2: 40 | F2: 180 | G2: 180
A3: =IF(HLOOKUP($A$1,$B$1:$F$46,3)>0,HLOOKUP($A$1,$B$1:$F$46,3)," ") ->  | B3: 50 | C3: 50 | D3: 50 | E3: 50 | F3: 185 | G3: 185
A4: =IF(HLOOKUP($A$1,$B$1:$F$46,4)>0,HLOOKUP($A$1,$B$1:$F$46,4)," ") ->  | B4: 60 | C4: 60 | D4: 60 | E4: 60 | F4: 190 | G4: 190
A5: =IF(HLOOKUP($A$1,$B$1:$F$46,5)>0,HLOOKUP($A$1,$B$1:$F$46,5)," ") ->  | B5: 70 | C5: 70 | D5: 70 | E5: 70 | F5: 195 | G5: 195
A6: =IF(HLOOKUP($A$1,$B$1:$F$46,6)>0,HLOOKUP($A$1,$B$1:$F$46,6)," ") ->  | B6: 80 | C6: 80 | D6: 80 | E6: 80 | F6: 200 | G6: 200
A7: =IF(HLOOKUP($A$1,$B$1:$F$46,7)>0,HLOOKUP($A$1,$B$1:$F$46,7)," ") ->  | B7: 90 | C7: 90 | D7: 90 | E7: 90 | F7: 205 | G7: 205
A8: =IF(HLOOKUP($A$1,$B$1:$F$46,8)>0,HLOOKUP($A$1,$B$1:$F$46,8)," ") ->  | B8: 100 | C8: 100 | D8: 100 | E8: 100 | F8: 210 | G8: 210
A9: =IF(HLOOKUP($A$1,$B$1:$F$46,9)>0,HLOOKUP($A$1,$B$1:$F$46,9)," ") ->  | B9: 110 | C9: 110 | D9: 110 | E9: 110 | F9: 215 | G9: 215
A10: =IF(HLOOKUP($A$1,$B$1:$F$46,10)>0,HLOOKUP($A$1,$B$1:$F$46,10)," ") ->  | B10: 120 | C10: 120 | D10: 120 | E10: 120 | F10: 220 | G10: 220
A11: =IF(HLOOKUP($A$1,$B$1:$F$46,11)>0,HLOOKUP($A$1,$B$1:$F$46,11)," ") ->  | B11: 130 | C11: 130 | D11: 130 | E11: 130 | F11: 225 | G11: 225
A12: =IF(HLOOKUP($A$1,$B$1:$F$46,12)>0,HLOOKUP($A$1,$B$1:$F$46,12)," ") ->  | B12: 140 | C12: 140 | D12: 140 | E12: 140 | F12: 230 | G12: 230
A13: =IF(HLOOKUP($A$1,$B$1:$F$46,13)>0,HLOOKUP($A$1,$B$1:$F$46,13)," ") ->  | B13: 150 | C13: 150 | D13: 150 | E13: 150 | F13: 235 | G13: 235
A14: =IF(HLOOKUP($A$1,$B$1:$F$46,14)>0,HLOOKUP($A$1,$B$1:$F$46,14)," ") ->  | B14: 160 | C14: 160 | D14: 160 | E14: 160 | F14: 240 | G14: 240
A15: =IF(HLOOKUP($A$1,$B$1:$F$46,15)>0,HLOOKUP($A$1,$B$1:$F$46,15)," ") ->  | B15: 170 | C15: 170 | D15: 170 | E15: 170 | F15: 245 | G15: 245
A16: =IF(HLOOKUP($A$1,$B$1:$F$46,16)>0,HLOOKUP($A$1,$B$1:$F$46,16)," ") ->  | B16: 180 | C16: 180 | D16: 180 | E16: 180 | F16: 250 | G16: 250
A17: =IF(HLOOKUP($A$1,$B$1:$F$46,17)>0,HLOOKUP($A$1,$B$1:$F$46,17)," ") ->  | B17: 190 | C17: 190 | D17: 190 | E17: 190 | F17: 255 | G17: 255
A18: =IF(HLOOKUP($A$1,$B$1:$F$46,18)>0,HLOOKUP($A$1,$B$1:$F$46,18)," ") ->  | B18: 200 | C18: 200 | D18: 200 | E18: 200 | F18: 260 | G18: 260
A19: =IF(HLOOKUP($A$1,$B$1:$F$46,19)>0,HLOOKUP($A$1,$B$1:$F$46,19)," ") ->  | B19: 210 | C19: 210 | D19: 210 | E19: 210 | F19: 265 | G19: 265
A20: =IF(HLOOKUP($A$1,$B$1:$F$46,20)>0,HLOOKUP($A$1,$B$1:$F$46,20)," ") ->  | B20: 220 | C20: 220 | D20: 220 | E20: 220 | F20: 270 | G20: 270
A21: =IF(HLOOKUP($A$1,$B$1:$F$46,21)>0,HLOOKUP($A$1,$B$1:$F$46,21)," ") ->  | B21: 230 | C21: 230 | D21: 230 | E21: 230 | F21: 275 | G21: 275
A22: =IF(HLOOKUP($A$1,$B$1:$F$46,22)>0,HLOOKUP($A$1,$B$1:$F$46,22)," ") ->  | B22: 240 | C22: 240 | D22: 240 | E22: 240 | F22: 280 | G22: 280
A23: =IF(HLOOKUP($A$1,$B$1:$F$46,23)>0,HLOOKUP($A$1,$B$1:$F$46,23)," ") ->  | B23: 250 | C23: 250 | D23: 250 | E23: 250 | F23: 285 | G23: 285
A24: =IF(HLOOKUP($A$1,$B$1:$F$46,24)>0,HLOOKUP($A$1,$B$1:$F$46,24)," ") ->  | B24: 260 | C24: 260 | D24: 260 | E24: 260 | F24: 290 | G24: 290
A25: =IF(HLOOKUP($A$1,$B$1:$F$46,25)>0,HLOOKUP($A$1,$B$1:$F$46,25)," ") ->  | B25: 270 | C25: 270 | D25: 270 | E25: 270 | F25: 295 | G25: 295
A26: =IF(HLOOKUP($A$1,$B$1:$F$46,26)>0,HLOOKUP($A$1,$B$1:$F$46,26)," ") ->  | B26: 280 | C26: 280 | D26: 280 | E26: 280 | F26: 300 | G26: 300
A27: =IF(HLOOKUP($A$1,$B$1:$F$46,27)>0,HLOOKUP($A$1,$B$1:$F$46,27)," ") ->  | F27: 305 | G27: 305
A28: =IF(HLOOKUP($A$1,$B$1:$F$46,28)>0,HLOOKUP($A$1,$B$1:$F$46,28)," ") ->  | F28: 310 | G28: 310
A29: =IF(HLOOKUP($A$1,$B$1:$F$46,29)>0,HLOOKUP($A$1,$B$1:$F$46,29)," ") ->  | F29: 315 | G29: 315
A30: =IF(HLOOKUP($A$1,$B$1:$F$46,30)>0,HLOOKUP($A$1,$B$1:$F$46,30)," ") ->  | F30: 320 | G30: 320
A31: =IF(HLOOKUP($A$1,$B$1:$F$46,31)>0,HLOOKUP($A$1,$B$1:$F$46,31)," ") ->  | F31: 325 | G31: 325
A32: =IF(HLOOKUP($A$1,$B$1:$F$46,32)>0,HLOOKUP($A$1,$B$1:$F$46,32)," ") ->  | F32: 330 | G32: 330
A33: =IF(HLOOKUP($A$1,$B$1:$F$46,33)>0,HLOOKUP($A$1,$B$1:$F$46,33)," ") ->  | F33: 335 | G33: 335
A34: =IF(HLOOKUP($A$1,$B$1:$F$46,34)>0,HLOOKUP($A$1,$B$1:$F$46,34)," ") ->  | F34: 340 | G34: 340
A35: =IF(HLOOKUP($A$1,$B$1:$F$46,35)>0,HLOOKUP($A$1,$B$1:$F$46,35)," ") ->  | F35: 345 | G35: 345
A36: =IF(HLOOKUP($A$1,$B$1:$F$46,36)>0,HLOOKUP($A$1,$B$1:$F$46,36)," ") ->  | F36: 350 | G36: 350
A37: =IF(HLOOKUP($A$1,$B$1:$F$46,37)>0,HLOOKUP($A$1,$B$1:$F$46,37)," ") ->  | F37: 355 | G37: 355
A38: =IF(HLOOKUP($A$1,$B$1:$F$46,38)>0,HLOOKUP($A$1,$B$1:$F$46,38)," ") ->  | F38: 360 | G38: 360
A39: =IF(HLOOKUP($A$1,$B$1:$F$46,39)>0,HLOOKUP($A$1,$B$1:$F$46,39)," ") ->  | F39: 365 | G39: 365
A40: =IF(HLOOKUP($A$1,$B$1:$F$46,40)>0,HLOOKUP($A$1,$B$1:$F$46,40)," ") ->  | F40: 370 | G40: 370
A41: =IF(HLOOKUP($A$1,$B$1:$F$46,41)>0,HLOOKUP($A$1,$B$1:$F$46,41)," ") ->  | F41: 375 | G41: 375
A42: =IF(HLOOKUP($A$1,$B$1:$F$46,42)>0,HLOOKUP($A$1,$B$1:$F$46,42)," ") ->  | F42: 380 | G42: 380
A43: =IF(HLOOKUP($A$1,$B$1:$F$46,43)>0,HLOOKUP($A$1,$B$1:$F$46,43)," ") ->  | F43: 385 | G43: 385
A44: =IF(HLOOKUP($A$1,$B$1:$F$46,44)>0,HLOOKUP($A$1,$B$1:$F$46,44)," ") ->  | F44: 390 | G44: 390
A45: =IF(HLOOKUP($A$1,$B$1:$F$46,45)>0,HLOOKUP($A$1,$B$1:$F$46,45)," ") ->  | F45: 395 | G45: 395
A46: =IF(HLOOKUP($A$1,$B$1:$F$46,46)>0,HLOOKUP($A$1,$B$1:$F$46,46)," ") ->  | F46: 400 | G46: 400

Sheet lijst RC (hidden)
A1: =matrix!B2 -> 0 | B1: SlimFix Reno+ | C1: SlimFix RenoTwin | D1: ATTENTIE: type op alfabetische volgorde
A2: =IF(HLOOKUP($A$1,B1:C3,2)>0,HLOOKUP($A$1,B1:C3,2)," ") ->  | B2: 3.5 | C2: 3.5
A3: =IF(HLOOKUP($A$1,$B$1:$C$3,3)>0,HLOOKUP($A$1,$B$1:$C$3,3)," ") ->  | B3: 6.3 | C3: 6.3
